Workbook

Sheet 考え方モデル
C1: 日分セ 環境 放射能と放射線 | F1: 環境放射線 監視センター | I1: 原子力安全対策課 | K1: 放射能情報 サイトみやぎ | N1: 原規委 放線モニタ 情報公表シス | Q1: 環省廃処施設空線 リアルタイムモニタ | U1: kmdみやぎ
B3: 降下物Cs(s35からデタあり) | F3: → | G3: 空間線≒外部被ばくを推算する
B4: 原セ以降のCs-137/Cs-134、Sr-90などから､それ以前のCs-134,Sr-90を推定
B5: 空間線データを,上方BG(宇宙線など),下方BG(地盤の天然核種由来),事故後の人工核種に分離
B7: 内部被ばくは､女発報告の預託線量当量の経年値から
B9: 外部被ばくと内部被ばくを併せて､昭和30年代から60年間の県内の被ばく量推移と積算量推定
B12: 宮城県環境放射線監視センターと原子力規制庁のHPから10分値DL
B13: 開始時期は様々､2012年1月から2016年まで
C14: (1) 環境放射能監視センター分は､ 10地点
C15: (2) 原子力安全委員会分は､74地点
B17: 地点別に日間値(最大･平均･最小)を集計
B18: 日別濃度などを計算した表からグラフで表示
B19: 福一事故の主要3核種の総排出量の経年変化を計算(BqからSvに換算)
B21: 最小値を使う理由
C22: 変動が少ない､空間線量率の主な変動要因は､宇宙線や降雨に伴う上昇(パルス状：短時間の急激な変化)
C23: 平均値は加工値だが、最小値は生の測定値､最頻値も同
B26: チェルノと福一は地上爆発で局地型、成層圏に達せず
B27: 核実験は、海洋でもきのこ雲、成層圏に達する、全地球的に拡散
B29: 核実験のピークはs33(1958)とs37(1962)の二峰型
B31: Cs-137と134比はチェルノ直前の両者の比から遡る
B32: 両事故のCs比は環境省資料から
B34: 降下物は事故直後以外､成層圏からの降下と地表からの舞い上がりの合作
B36: 空間線量率は下方地盤から+上方宇宙線から+地表人工核種で説明できる
B37: 下方地盤から成分と上方宇宙線から成分は長期間一定のバックグランド
B38: 変動するのは､上乗せされた人工核種分
B40: 日間最小値を使うと､10分値変動の最大成分(上記"長期間一定のBG"を除く)は、降水と積雪影響

Sheet 降物av経年
B2: 降下物から外部被ばくの長期変動を求める
B27: 降下物中のＣs-137の推移(MBq/km2.月) | G27: 左表を年毎に集計 | U27: (相加) | V27: (相乗)
B28: 年月日 | C28: 西暦1 | D28: 地点 | E28: 降下物中のCs-137 | G28: 元号 | H28: 西暦2 | I28: 年別件数 | J28: 初出行 | K28: 年終行 | L28: 算術平均 | M28: 幾何平均 | N28: 中央値 | O28: 年度平均 (手作業) | R28: 100から減衰 | T28: 例題 | U28: 算術平均_AVERAGE | V28: 幾何平均_PRODUCT | W28: 幾何平均_GEOMEAN | X28: 調整平均_TRIMMEAN | Y28: 中央値_MEDIAN | Z28: 最頻値_MODE
B29: 1959-09-01 | C29: =YEAR(B29) -> 1959 | D29: 仙台市宮城野区 | E29: 48.84 | G29: 21824 | H29: =YEAR(G29) -> 1959 | I29: =COUNTIF(西暦1列,H29) -> 2 | J29: =MATCH(西暦2列,西暦1列,0)+3 -> 4 | K29: =MATCH(西暦2列,西暦1列,0)+3+COUNTIF(西暦1列,西暦2列)-1 -> 5 | L29: =AVERAGEIF(西暦1列,H29,デタ列) -> 53.65 | M29: 53.43394427 | N29: 53.65 | O29: =AVERAGEIFS(デタ列,年月日1,">=21641",年月日1,"<22007") -> 41.1625 | R29: =100*2.71828^(-(0.69315/30.02)*(G29-21824)/365.25) -> 100 | T29: A | U29: =AVERAGE(U33:Z33) -> 8.833333333 | V29: =PRODUCT(U33:Z33)^(1/COUNT(U33:Z33)) -> 5.574255561 | W29: =GEOMEAN(U33:Z33) -> 5.574255561 | X29: =TRIMMEAN(U33:Z33,0.2) -> 8.833333333 | Y29: =MEDIAN(U33:Z33) -> 7.5 | Z29: =MODE(U33:Z33) -> 
B30: 1959-12-01 | C30: =YEAR(B30) -> 1959 | D30: 仙台市宮城野区 | E30: 58.46 | G30: 22190 | H30: =YEAR(G30) -> 1960 | I30: 5 | J30: 6 | K30: 10 | L30: 38.11 | M30: 27.31571513 | N30: 24.42 | O30: =AVERAGEIFS(E30:E2462,年月日1,">=21641",年月日1,"<22007") -> 54.205 | R30: =100*2.71828^(-(0.69315/30.02)*(G30-21824)/365.25) -> 97.71286048 | T30: B | U30: =AVERAGE(U34:Z34) -> 1.516666667 | V30: =PRODUCT(U34:Z34)^(1/COUNT(U34:Z34)) -> 0.953184293 | W30: =GEOMEAN(U34:Z34) -> 0.953184293 | X30: =TRIMMEAN(U34:Z34,0.2) -> 1.516666667 | Y30: =MEDIAN(U34:Z34) -> 1.5 | Z30: =MODE(U34:Z34) -> 
B31: 1960-02-01 | C31: 1960 | D31: 仙台市宮城野区 | E31: 23.31 | G31: 22555 | H31: 1961 | I31: 7 | J31: 11 | K31: 17 | L31: 24.47285714 | M31: 22.73951093 | N31: 22.57 | O31: =AVERAGEIFS(E29:E2461,年月日1,">=22372",年月日1,"<22737") -> 20.88444444 | R31: 95.48406694 | T31: C | U31: =AVERAGE(U35:Z35) -> 0.1066666667 | V31: =PRODUCT(U35:Z35)^(1/COUNT(U35:Z35)) -> 0.06380929732 | W31: =GEOMEAN(U35:Z35) -> 0.06380929732 | X31: =TRIMMEAN(U35:Z35,0.2) -> 0.1066666667 | Y31: =MEDIAN(U35:Z35) -> 0.075 | Z31: =MODE(U35:Z35) -> 
B32: 1960-03-01 | C32: 1960 | D32: 仙台市宮城野区 | E32: 34.04 | G32: 22920 | H32: 1962 | I32: 12 | J32: 18 | K32: 29 | L32: 65.0275 | M32: 47.90948585 | N32: 52.91 | O32: =AVERAGEIFS(E29:E2461,年月日1,">=22737",年月日1,"<23102") -> 97.74166667 | R32: 93.30611135
B33: 1960-06-01 | C33: 1960 | D33: 仙台市宮城野区 | E33: 101.01 | G33: 23285 | H33: 1963 | I33: 19 | J33: 30 | K33: 48 | L33: 130.6294737 | M33: 86.24292884 | N33: 66.97 | O33: =AVERAGEIFS(E29:E2461,年月日1,">=23102",年月日1,"<23468") -> 118.8284211 | R33: 91.1778341 | T33: A | U33: 1 | V33: 2 | W33: 5 | X33: 10 | Y33: 15 | Z33: 20
B34: 1960-09-01 | C34: 1960 | D34: 仙台市宮城野区 | E34: 7.77 | G34: 23651 | H34: 1964 | I34: 12 | J34: 49 | K34: 60 | L34: 80.13583333 | M34: 59.84607637 | N34: 61.05 | O34: =AVERAGEIFS(E29:E2461,年月日1,">=23438",年月日1,"<23833") -> 78.86692308 | R34: 89.09246982 | T34: B | U34: 0.1 | V34: 0.5 | W34: 1 | X34: 2 | Y34: 2.5 | Z34: 3
B35: 1960-12-01 | C35: 1960 | D35: 仙台市宮城野区 | E35: 24.42 | G35: 24016 | H35: 1965 | I35: 12 | J35: 61 | K35: 72 | L35: 40.54583333 | M35: 21.770097 | N35: 32.19 | O35: =AVERAGEIFS(E29:E2461,年月日1,">=23833",年月日1,"<24198") -> 27.13333333 | R35: 87.06030415 | T35: C | U35: 0.01 | V35: 0.03 | W35: 0.05 | X35: 0.1 | Y35: 0.15 | Z35: 0.3
B36: 1961-03-01 | C36: 1961 | D36: 仙台市宮城野区 | E36: 29.23 | G36: 24381 | H36: 1966 | I36: 12 | J36: 73 | K36: 84 | L36: 11.03833333 | M36: 7.330074739 | N36: 8.325 | O36: =AVERAGEIFS(E29:E2461,年月日1,">=24198",年月日1,"<24563") -> 9.743333333 | R36: 85.07449141 | T36: 注) 最頻値は同じ数値がないと#N/Aのエラー
B37: 1961-06-01 | C37: 1961 | D37: 仙台市宮城野区 | E37: 28.12 | G37: 24746 | H37: 1967 | I37: 12 | J37: 85 | K37: 96 | L37: 6.320833333 | M37: 3.77935051 | N37: 3.885 | O37: =AVERAGEIFS(E29:E2461,年月日1,">=24563",年月日1,"<24929") -> 6.259166667 | R37: 83.13397431 | T37: 注) 初出行はMATCH関数で
B38: 1961-08-01 | C38: 1961 | D38: 仙台市宮城野区 | E38: 21.46 | G38: 25112 | H38: 1968 | I38: 12 | J38: 97 | K38: 108 | L38: 6.043333333 | M38: 5.093893777 | N38: 5.735 | O38: =AVERAGEIFS(E29:E2461,年月日1,">=24929",年月日1,"<25294") -> 5.950833333 | R38: 81.23258433 | T38: 注) 幾何平均と中央値は関数式でなくマクロで計算
B39: 1961-09-01 | C39: 1961 | D39: 仙台市宮城野区 | E39: 10.73 | G39: 25477 | H39: 1969 | I39: 12 | J39: 109 | K39: 120 | L39: 3.885 | M39: 2.729040016 | N39: 3.33 | O39: =AVERAGEIFS(E29:E2461,年月日1,">=25294",年月日1,"<25659") -> 3.576666667 | R39: 79.37969968 | T39: 注) 偶数6個の中央値は3番目と4番目の平均
B40: 1961-10-01 | C40: 1961 | D40: 仙台市宮城野区 | E40: 41.44 | G40: 25842 | H40: 1970 | I40: 12 | J40: 121 | K40: 132 | L40: 5.519166667 | M40: 4.055839166 | N40: 4.995 | O40: =AVERAGEIFS(E29:E2461,年月日1,">=25659",年月日1,"<26024") -> 5.55 | R40: 77.56907864
B41: 1961-11-01 | C41: 1961 | D41: 仙台市宮城野区 | E41: 22.57 | G41: 26207 | H41: 1971 | I41: 12 | J41: 133 | K41: 144 | L41: 6.320833333 | M41: 4.015897822 | N41: 3.7 | O41: =AVERAGEIFS(E29:E2461,年月日1,">=26024",年月日1,"<26390") -> 6.66 | R41: 75.79975718 | AB41: 年月日の表記法
B42: 1961-12-01 | C42: 1961 | D42: 仙台市宮城野区 | E42: 17.76 | G42: 26573 | H42: 1972 | I42: 12 | J42: 145 | K42: 156 | L42: 2.559166667 | M42: 2.091773701 | N42: 2.775 | R42: 74.06611098 | T42: <環境放射能に係る主な事案> | AB42: (1900/1/1,M33元日を整数1とする)
B43: 1962-01-01 | C43: 1962 | D43: 仙台市宮城野区 | E43: 11.1 | G43: 26938 | H43: 1973 | I43: 3 | J43: 157 | K43: 159 | L43: 0.9866666667 | M43: 0.6723346193 | N43: 0.37 | R43: 72.37669089 | AB43: シリアル値 | AD43: 年号表記 | AF43: 西暦表記
B44: 1962-02-01 | C44: 1962 | D44: 仙台市宮城野区 | E44: 23.68 | G44: 27303 | H44: 1974 | I44: 10 | J44: 160 | K44: 169 | L44: 3.9442 | M44: 2.386639374 | N44: 2.109 | R44: 70.72580584 | T44: S38／大気･地下同数に､以降地下が主流 | AB44: 23012 | AD44: 1963-01-01 | AF44: 1963-01-01
B45: 1962-03-01 | C45: 1962 | D45: 仙台市宮城野区 | E45: 11.1 | G45: 27668 | H45: 1975 | I45: 11 | J45: 170 | K45: 180 | L45: 1.765909091 | M45: 1.088496547 | N45: 1.11 | R45: 69.11257685 | T45: S38~ | V45: (仏･中は大気圏内を10年超継続) | AB45: 26664 | AD45: 1972-12-31 | AF45: 1972-12-31
B46: 1962-04-01 | C46: 1962 | D46: 仙台市宮城野区 | E46: 90.28 | G46: 28034 | H46: 1976 | I46: 12 | J46: 181 | K46: 192 | L46: 0.7739166667 | M46: 0.6791070637 | N46: 0.6475 | R46: 67.53187579 | T46: S48.7.5／中国15回核実験6/28､全国最高値(蔵王町) | AB46: 26850 | AD46: 1973-07-05 | AF46: 1973-07-05
B47: 1962-05-01 | C47: 1962 | D47: 仙台市宮城野区 | E47: 148.37 | G47: 28399 | H47: 1977 | I47: 24 | J47: 193 | K47: 216 | L47: 2.50675 | M47: 1.780762241 | N47: 2.0535 | R47: 65.99149915 | T47: S54.3.28／スリーマイル島事故(アメリカ) | AB47: 28942 | AD47: 1979-03-28 | AF47: 1979-03-28
B48: 1962-06-01 | C48: 1962 | D48: 仙台市宮城野区 | E48: 118.03 | G48: 28764 | H48: 1978 | I48: 12 | J48: 217 | K48: 228 | L48: 2.694833333 | M48: 1.551046668 | N48: 1.369 | R48: 64.48625791 | T48: S55.10／最後の大気圏内核実験(中国) | AB48: 29495 | AD48: 1980-10-01 | AF48: 1980-10-01
B49: 1962-07-01 | C49: 1962 | D49: 仙台市宮城野区 | E49: 138.38 | G49: 29129 | H49: 1979 | I49: 12 | J49: 229 | K49: 240 | L49: 1.066833333 | M49: 0.809572497 | N49: 0.814 | R49: 63.01535066 | T49: S56.10／測定開始(県原子力センター) | AB49: 29860 | AD49: 1981-10-01 | AF49: 1981-10-01
B50: 1962-08-01 | C50: 1962 | D50: 仙台市宮城野区 | E50: 55.13 | G50: 29495 | H50: 1980 | I50: 12 | J50: 241 | K50: 252 | L50: 0.6491666667 | M50: 0.4054566138 | N50: 0.4995 | R50: 61.57410167 | T50: S59.6.1／１号機営業運転(女川) | AB50: 30834 | AD50: 1984-06-01 | AF50: 1984-06-01
B51: 1962-09-01 | C51: 1962 | D51: 仙台市宮城野区 | E51: 50.69 | G51: 29860 | H51: 1981 | I51: 24 | J51: 253 | K51: 276 | L51: 1.0022375 | M51: 0.5042700284 | N51: 0.3515 | R51: 60.16961961 | T51: S61.4.26／チェルノブイリ事故(旧ソ連) | AB51: 31528 | AD51: 1986-04-26 | AF51: 1986-04-26
B52: 1962-10-01 | C52: 1962 | D52: 仙台市宮城野区 | E52: 44.77 | G52: 30225 | H52: 1982 | I52: 48 | J52: 277 | K52: 324 | L52: 0.4543541667 | M52: 0.2331766755 | N52: 0.259 | R52: 58.79717326 | T52: H7.7.28／２号機営業運転(女川) | AB52: 34908 | AD52: 1995-07-28 | AF52: 1995-07-28
B53: 1962-11-01 | C53: 1962 | D53: 仙台市宮城野区 | E53: 32.56 | G53: 30590 | H53: 1983 | I53: 51 | J53: 325 | K53: 375 | L53: 0.1557490196 | M53: 0.09015513638 | N53: 0.148 | R53: 57.45603189 | T53: H7.12.8／もんじゅNa漏洩事故(敦賀市) | AB53: 35041 | AD53: 1995-12-08 | AF53: 1995-12-08
B54: 1962-12-01 | C54: 1962 | D54: 仙台市宮城野区 | E54: 56.24 | G54: 30956 | H54: 1984 | I54: 61 | J54: 376 | K54: 436 | L54: 0.1042131148 | M54: 0.05528797115 | N54: 0.074 | R54: 56.14193227 | T54: H11.9.30／JCO臨界事故(東海村) | AB54: 36433 | AD54: 1999-09-30 | AF54: 1999-09-30
B55: 1963-01-01 | C55: 1963 | D55: 仙台市宮城野区 | E55: 66.97 | G55: 31321 | H55: 1985 | I55: 57 | J55: 437 | K55: 493 | L55: 0.07131754386 | M55: 0.04092048361 | N55: 0.02 | R55: 54.86135595 | T55: H14.1.30／３号機営業運転(女川) | AB55: 37286 | AD55: 2002-01-30 | AF55: 2002-01-30
B56: 1963-02-01 | C56: 1963 | D56: 仙台市宮城野区 | E56: 64.01 | G56: 31686 | H56: 1986 | I56: 55 | J56: 494 | K56: 548 | L56: 8.177570909 | M56: 0.3887358599 | N56: 0.2849 | R56: 53.60998909 | T56: H19.7.16／中越沖地震(柏崎刈羽原発事故) | AB56: 39279 | AD56: 2007-07-16 | AF56: 2007-07-16
B57: 1963-03-01 | C57: 1963 | D57: 仙台市宮城野区 | E57: 307.47 | G57: 32051 | H57: 1987 | I57: 60 | J57: 549 | K57: 608 | L57: 0.2926433333 | M57: 0.1135015608 | N57: 0.1184 | R57: 52.38716543 | T57: H23.3.11~14／東日本大震災･東京電力福島第1原発事故 | AB57: 40614 | AD57: 2011-03-12 | AF57: 2011-03-12
B58: 1963-04-01 | C58: 1963 | D58: 仙台市宮城野区 | E58: 242.35 | G58: 32417 | H58: 1988 | I58: 59 | J58: 609 | K58: 667 | L58: 0.1112271186 | M58: 0.04632490275 | N58: 0.02 | R58: 51.18899787
B59: 1963-05-01 | C59: 1963 | D59: 仙台市宮城野区 | E59: 126.17 | G59: 32782 | H59: 1989 | I59: 69 | J59: 668 | K59: 736 | L59: 0.06545130435 | M59: 0.03089170071 | N59: 0.0145 | R59: 50.02139611 | T59: 環境放射線監視センター
B60: 1963-06-01 | C60: 1963 | D60: 仙台市宮城野区 | E60: 499.5 | G60: 33147 | H60: 1990 | I60: 72 | J60: 737 | K60: 808 | L60: 0.03621861111 | M60: 0.02361252462 | N60: 0.0145 | R60: 48.88042691 | T60: 原子力安全対策課
B61: 1963-06-01 | C61: 1963 | D61: 仙台市青葉区 | E61: 234.95 | G61: 33512 | H61: 1991 | I61: =COUNTIF(西暦1列,H61) -> 72 | J61: =MATCH(西暦2列,西暦1列,0)+3 -> 809 | K61: =MATCH(西暦2列,西暦1列,0)+3+COUNTIF(西暦1列,西暦2列)-1 -> 880 | L61: =AVERAGEIF(西暦1列,H61,デタ列) -> 0.026125 | M61: 0.01930420417 | N61: 0.0145 | R61: 47.76548279 | T61: 放射能情報サイトみやぎ
B62: 1963-07-01 | C62: 1963 | D62: 仙台市宮城野区 | E62: 293.78 | G62: 33878 | H62: 1992 | I62: 71 | J62: 881 | K62: 951 | L62: 0.03045774648 | M62: 0.02035888917 | N62: 0.0145 | R62: 46.67301955 | T62: kmdみやぎ
B63: 1963-07-01 | C63: 1963 | D63: 仙台市青葉区 | E63: 178.34 | G63: 34243 | H63: 1993 | I63: 72 | J63: 952 | K63: 1023 | L63: 0.02396527778 | M63: 0.01926350445 | N63: 0.0145 | R63: 45.60842556
B64: 1963-08-01 | C64: 1963 | D64: 仙台市宮城野区 | E64: 38.85 | G64: 34608 | H64: 1994 | I64: 72 | J64: 1024 | K64: 1095 | L64: 0.03807638889 | M64: 0.02166804717 | N64: 0.0145 | R64: 44.56811456 | T64: 循環型社会推進課
B65: 1963-08-01 | C65: 1963 | D65: 仙台市青葉区 | E65: 72.52 | G65: 34973 | H65: 1995 | I65: 72 | J65: 1096 | K65: 1167 | L65: 0.02397916667 | M65: 0.01826039895 | N65: 0.0145 | R65: 43.55153266 | T65: 放射性物質汚染廃棄物対策室
B66: 1963-09-01 | C66: 1963 | D66: 仙台市宮城野区 | E66: 62.9 | G66: 35339 | H66: 1996 | I66: 72 | J66: 1168 | K66: 1239 | L66: 0.0189375 | M66: 0.01680269932 | N66: 0.0145 | R66: 42.55544834
B67: 1963-09-02 | C67: 1963 | D67: 仙台市青葉区 | E67: 21.46 | G67: 35704 | H67: 1997 | I67: 72 | J67: 1240 | K67: 1311 | L67: 0.02200694444 | M67: 0.01740295847 | N67: 0.0145 | R67: 41.58477459
B68: 1963-10-01 | C68: 1963 | D68: 仙台市宮城野区 | E68: 53.65 | G68: 36069 | H68: 1998 | I68: 72 | J68: 1312 | K68: 1383 | L68: 0.01566666667 | M68: 0.01555143005 | N68: 0.0145 | R68: 40.63624155
B69: 1963-10-01 | C69: 1963 | D69: 仙台市青葉区 | E69: 43.66 | G69: 36434 | H69: 1999 | I69: 71 | J69: 1384 | K69: 1454 | L69: 0.01568309859 | M69: 0.01556677087 | N69: 0.0145 | R69: 39.70934419
B70: 1963-11-01 | C70: 1963 | D70: 仙台市宮城野区 | E70: 75.11 | G70: 36800 | H70: 2000 | I70: 72 | J70: 1455 | K70: 1526 | L70: 0.02072222222 | M70: 0.01779812207 | N70: 0.0145 | R70: 38.80113609
B71: 1963-11-01 | C71: 1963 | D71: 仙台市青葉区 | E71: 37 | G71: 37165 | H71: 2001 | I71: 70 | J71: 1527 | K71: 1596 | L71: 0.01906428571 | M71: 0.01716923303 | N71: 0.0145 | R71: 37.91609679
B72: 1963-12-01 | C72: 1963 | D72: 仙台市宮城野区 | E72: 27.01 | G72: 37530 | H72: 2002 | I72: 76 | J72: 1597 | K72: 1672 | L72: 0.02390131579 | M72: 0.01898124029 | N72: 0.0145 | R72: 37.05124491
B73: 1963-12-02 | C73: 1963 | D73: 仙台市青葉区 | E73: 36.26 | G73: 37895 | H73: 2003 | I73: 72 | J73: 1673 | K73: 1744 | L73: 0.01566666667 | M73: 0.01555143005 | N73: 0.0145 | R73: 36.20611997
B74: 1964-01-07 | C74: 1964 | D74: 仙台市青葉区 | E74: 44.4 | G74: 38261 | H74: 2004 | I74: 68 | J74: 1745 | K74: 1812 | L74: 0.01598529412 | M74: 0.01575751392 | N74: 0.0145 | R74: 35.37803549
B75: 1964-02-02 | C75: 1964 | D75: 仙台市青葉区 | E75: 81.77 | G75: 38626 | H75: 2005 | I75: 72 | J75: 1813 | K75: 1884 | L75: 0.01694444444 | M75: 0.01642405395 | N75: 0.0145 | R75: 34.57107583
B76: 1964-03-03 | C76: 1964 | D76: 仙台市青葉区 | E76: 88.06 | G76: 38991 | H76: 2006 | I76: 72 | J76: 1885 | K76: 1956 | L76: 0.01986111111 | M76: 0.01801637649 | N76: 0.0145 | R76: 33.78252261
B77: 1964-04-02 | C77: 1964 | D77: 仙台市青葉区 | E77: 105.08 | G77: 39356 | H77: 2007 | I77: 72 | J77: 1957 | K77: 2028 | L77: 0.01819444444 | M77: 0.01737258409 | N77: 0.0145 | R77: 33.011956
B78: 1964-05-02 | C78: 1964 | D78: 仙台市青葉区 | E78: 284.53 | G78: 39722 | H78: 2008 | I78: 71 | J78: 2029 | K78: 2099 | L78: 0.01825352113 | M78: 0.01726779542 | N78: 0.0145 | R78: 32.25692651
B79: 1964-06-01 | C79: 1964 | D79: 仙台市青葉区 | E79: 125.43 | G79: 40087 | H79: 2009 | I79: 18 | J79: 2100 | K79: 2117 | L79: 0.01666666667 | M79: 0.01639912895 | N79: 0.0145 | R79: 31.52115817
B80: 1964-07-01 | C80: 1964 | D80: 仙台市青葉区 | E80: 77.7 | G80: 40452 | H80: 2010 | I80: 32 | J80: 2118 | K80: 2149 | L80: 0.02 | M80: 0.02 | N80: 0.02 | R80: 30.80217242
B81: 1964-08-01 | C81: 1964 | D81: 仙台市青葉区 | E81: 36.63 | G81: 40817 | H81: 2011 | I81: 32 | J81: 2150 | K81: 2181 | L81: 816.6453125 | M81: 12.73553025 | N81: 41.05 | R81: 30.09958648
B82: 1964-09-01 | C82: 1964 | D82: 仙台市青葉区 | E82: 38.48 | G82: 41183 | H82: 2012 | I82: 30 | J82: 2182 | K82: 2211 | L82: 15.817 | M82: 11.44273979 | N82: 12 | R82: 29.41116694
B83: 1964-10-01 | C83: 1964 | D83: 仙台市青葉区 | E83: 33.3 | G83: 41548 | H83: 2013 | I83: 42 | J83: 2212 | K83: 2253 | L83: 7.71047619 | M83: 4.560772599 | N83: 4.03 | R83: 28.7403093
B84: 1964-11-05 | C84: 1964 | D84: 仙台市青葉区 | E84: 15.91 | G84: 41913 | H84: 2014 | I84: 56 | J84: 2254 | K84: 2309 | L84: 2.235272727 | M84: 1.472463075 | N84: 1.4 | R84: 28.08475367
B85: 1964-12-01 | C85: 1964 | D85: 仙台市青葉区 | E85: 30.34 | G85: 42278 | H85: 2015 | I85: 34 | J85: 2310 | K85: 2343 | L85: 1.358823529 | M85: 1.036728269 | N85: 1.13 | R85: 27.44415102
B86: 1965-01-10 | C86: 1965 | D86: 仙台市青葉区 | E86: 120.25 | G86: 42644 | H86: 2016 | I86: 36 | J86: 2344 | K86: 2379 | L86: 0.8602777778 | M86: 0.6780201037 | N86: 0.67 | R86: 26.816465
B87: 1965-02-01 | C87: 1965 | D87: 仙台市青葉区 | E87: 27.75 | G87: 43009 | H87: 2017 | I87: 36 | J87: 2380 | K87: 2415 | L87: 0.7375 | M87: 0.536302326 | N87: 0.515 | R87: 26.20479153
B88: 1965-03-01 | C88: 1965 | D88: 仙台市青葉区 | E88: 41.81 | G88: 43374 | H88: 2018 | I88: 21 | J88: 2416 | K88: 2436 | L88: 0.4495238095 | M88: 0.3979223966 | N88: 0.43 | R88: 25.60707011
B89: 1965-04-01 | C89: 1965 | D89: 仙台市青葉区 | E89: 36.63 | G89: 43739 | H89: 2019 | I89: 0 | M89: 0.3979223966 | N89: 0.43 | R89: 25.02298249
B90: 1965-05-01 | C90: 1965 | D90: 仙台市青葉区 | E90: 66.97 | G90: 44105 | H90: 2020 | I90: 0 | M90: 0.3979223966 | N90: 0.43 | R90: 24.45067197
B91: 1965-06-01 | C91: 1965 | D91: 仙台市青葉区 | E91: 52.17 | G91: 44470 | H91: 2021 | I91: 0 | M91: 0.3979223966 | N91: 0.43 | R91: 23.89296135
B92: 1965-07-01 | C92: 1965 | D92: 仙台市青葉区 | E92: 3.7 | G92: 44835 | H92: 2022 | I92: 0 | M92: 0.3979223966 | N92: 0.43 | R92: 23.3479719
B93: 1965-08-01 | C93: 1965 | D93: 仙台市青葉区 | E93: 15.91 | G93: 45200 | H93: 2023 | I93: =COUNTIF(西暦1列,H93) -> 0 | M93: 0.3979223966 | N93: 0.43 | R93: 22.81541346
B94: 1965-09-01 | C94: =YEAR(B94) -> 1965 | D94: 仙台市青葉区 | E94: 8.88 | G94: 45566 | H94: =YEAR(G94) -> 2024 | I94: 0 | M94: 0.3979223966 | N94: 0.43 | R94: =100*2.71828^(-(0.69315/30.02)*(G94-21824)/365.25) -> 22.29359312
B95: 1965-10-01 | C95: 1965 | D95: 仙台市青葉区 | E95: 0.74 | G95: 45931 | H95: 2025 | I95: 0 | M95: 0.3979223966 | N95: 0.43 | R95: 21.78508466
B96: 1965-11-01 | C96: 1965 | D96: 仙台市青葉区 | E96: 94.35 | G96: 46296 | H96: 2026 | I96: 0 | M96: 0.3979223966 | N96: 0.43 | R96: 21.28817509
B97: 1965-12-01 | C97: 1965 | D97: 仙台市青葉区 | E97: 17.39 | G97: 46661 | H97: 2027 | I97: 0 | M97: 0.3979223966 | N97: 0.43 | R97: 20.80259983
B98: 1966-01-01 | C98: 1966 | D98: 仙台市青葉区 | E98: 10.73
B99: 1966-02-01 | C99: 1966 | D99: 仙台市青葉区 | E99: 8.14
B100: 1966-03-01 | C100: 1966 | D100: 仙台市青葉区 | E100: 9.99
B101: 1966-04-01 | C101: 1966 | D101: 仙台市青葉区 | E101: 24.79
B102: 1966-05-01 | C102: 1966 | D102: 仙台市青葉区 | E102: 30.71
B103: 1966-06-01 | C103: 1966 | D103: 仙台市青葉区 | E103: 22.2
B104: 1966-07-01 | C104: 1966 | D104: 仙台市青葉区 | E104: 1.48
B105: 1966-08-01 | C105: 1966 | D105: 仙台市青葉区 | E105: 8.51
B106: 1966-09-01 | C106: 1966 | D106: 仙台市青葉区 | E106: 1.11
B107: 1966-10-01 | C107: 1966 | D107: 仙台市青葉区 | E107: 4.44
B108: 1966-11-01 | C108: 1966 | D108: 仙台市青葉区 | E108: 5.92
B109: 1966-12-01 | C109: 1966 | D109: 仙台市青葉区 | E109: 4.44
B110: 1967-01-02 | C110: 1967 | D110: 仙台市青葉区 | E110: 4.81
B111: 1967-02-02 | C111: 1967 | D111: 仙台市青葉区 | E111: 2.59
B112: 1967-03-01 | C112: 1967 | D112: 仙台市青葉区 | E112: 5.92
B113: 1967-04-01 | C113: 1967 | D113: 仙台市青葉区 | E113: 19.24
B114: 1967-05-01 | C114: 1967 | D114: 仙台市青葉区 | E114: 6.66
B115: 1967-06-01 | C115: 1967 | D115: 仙台市青葉区 | E115: 21.46
B116: 1967-07-01 | C116: 1967 | D116: 仙台市青葉区 | E116: 6.29
B117: 1967-08-01 | C117: 1967 | D117: 仙台市青葉区 | E117: 1.85
B118: 1967-09-01 | C118: 1967 | D118: 仙台市青葉区 | E118: 2.96
B119: 1967-10-01 | C119: 1967 | D119: 仙台市青葉区 | E119: 1.48
B120: 1967-11-01 | C120: 1967 | D120: 仙台市青葉区 | E120: 0.37
B121: 1967-12-01 | C121: 1967 | D121: 仙台市青葉区 | E121: 2.22
B122: 1968-01-01 | C122: 1968 | D122: 仙台市青葉区 | E122: 3.7
B123: 1968-02-01 | C123: 1968 | D123: 仙台市青葉区 | E123: 5.55
B124: 1968-03-01 | C124: 1968 | D124: 仙台市青葉区 | E124: 3.33
B125: 1968-04-01 | C125: 1968 | D125: 仙台市青葉区 | E125: 6.29
B126: 1968-05-01 | C126: 1968 | D126: 仙台市青葉区 | E126: 10.73
B127: 1968-06-01 | C127: 1968 | D127: 仙台市青葉区 | E127: 11.47
B128: 1968-07-01 | C128: 1968 | D128: 仙台市青葉区 | E128: 7.03
B129: 1968-08-01 | C129: 1968 | D129: 仙台市青葉区 | E129: 5.92
B130: 1968-09-01 | C130: 1968 | D130: 仙台市青葉区 | E130: 10.36
B131: 1968-10-01 | C131: 1968 | D131: 仙台市青葉区 | E131: 4.07
B132: 1968-11-01 | C132: 1968 | D132: 仙台市青葉区 | E132: 1.11
B133: 1968-12-01 | C133: 1968 | D133: 仙台市青葉区 | E133: 2.96
B134: 1969-01-01 | C134: 1969 | D134: 仙台市青葉区 | E134: 4.07
B135: 1969-02-01 | C135: 1969 | D135: 仙台市青葉区 | E135: 2.59
B136: 1969-03-01 | C136: 1969 | D136: 仙台市青葉区 | E136: 4.81
B137: 1969-04-01 | C137: 1969 | D137: 仙台市青葉区 | E137: 2.59
B138: 1969-05-01 | C138: 1969 | D138: 仙台市青葉区 | E138: 8.14
B139: 1969-06-02 | C139: 1969 | D139: 仙台市青葉区 | E139: 5.18
B140: 1969-07-01 | C140: 1969 | D140: 仙台市青葉区 | E140: 9.62
B141: 1969-08-01 | C141: 1969 | D141: 仙台市青葉区 | E141: 4.07
B142: 1969-09-01 | C142: 1969 | D142: 仙台市青葉区 | E142: 2.22
B143: 1969-10-01 | C143: 1969 | D143: 仙台市青葉区 | E143: 2.59
B144: 1969-11-01 | C144: 1969 | D144: 仙台市青葉区 | E144: 0.37
B145: 1969-12-01 | C145: 1969 | D145: 仙台市青葉区 | E145: 0.37
B146: 1970-01-01 | C146: 1970 | D146: 仙台市青葉区 | E146: 2.22
B147: 1970-02-01 | C147: 1970 | D147: 仙台市青葉区 | E147: 1.11
B148: 1970-03-01 | C148: 1970 | D148: 仙台市青葉区 | E148: 4.44
B149: 1970-04-01 | C149: 1970 | D149: 仙台市青葉区 | E149: 5.55
B150: 1970-05-01 | C150: 1970 | D150: 仙台市青葉区 | E150: 11.1
B151: 1970-06-01 | C151: 1970 | D151: 仙台市青葉区 | E151: 11.84
B152: 1970-07-01 | C152: 1970 | D152: 仙台市青葉区 | E152: 11.1
B153: 1970-08-01 | C153: 1970 | D153: 仙台市青葉区 | E153: 5.92
B154: 1970-09-01 | C154: 1970 | D154: 仙台市青葉区 | E154: 2.59
B155: 1970-10-01 | C155: 1970 | D155: 仙台市青葉区 | E155: 2.96
B156: 1970-11-01 | C156: 1970 | D156: 仙台市青葉区 | E156: 6.66
B157: 1970-12-01 | C157: 1970 | D157: 仙台市青葉区 | E157: 0.74
B158: 1971-01-01 | C158: =YEAR(B158) -> 1971 | D158: 仙台市青葉区 | E158: 1.85
B159: 1971-02-01 | C159: 1971 | D159: 仙台市青葉区 | E159: 2.96
B160: 1971-03-01 | C160: 1971 | D160: 仙台市青葉区 | E160: 3.33
B161: 1971-04-01 | C161: 1971 | D161: 仙台市青葉区 | E161: 18.5
B162: 1971-05-01 | C162: 1971 | D162: 仙台市青葉区 | E162: 9.99
B163: 1971-06-01 | C163: 1971 | D163: 仙台市青葉区 | E163: 11.47
B164: 1971-07-01 | C164: 1971 | D164: 仙台市青葉区 | E164: 11.84
B165: 1971-08-01 | C165: 1971 | D165: 仙台市青葉区 | E165: 7.77
B166: 1971-09-01 | C166: 1971 | D166: 仙台市青葉区 | E166: 4.07
B167: 1971-10-01 | C167: 1971 | D167: 仙台市青葉区 | E167: 2.22
B168: 1971-11-01 | C168: 1971 | D168: 仙台市青葉区 | E168: 1.48
B169: 1971-12-01 | C169: 1971 | D169: 仙台市青葉区 | E169: 0.37
B170: 1972-01-01 | C170: 1972 | D170: 仙台市青葉区 | E170: 6.29
B171: 1972-02-01 | C171: 1972 | D171: 仙台市青葉区 | E171: 2.96
B172: 1972-03-01 | C172: 1972 | D172: 仙台市青葉区 | E172: 2.96
B173: 1972-04-01 | C173: 1972 | D173: 仙台市青葉区 | E173: 1.48
B174: 1972-05-01 | C174: 1972 | D174: 仙台市宮城野区 | E174: 3.33
B175: 1972-06-01 | C175: 1972 | D175: 仙台市宮城野区 | E175: 3.33
B176: 1972-07-01 | C176: 1972 | D176: 仙台市宮城野区 | E176: 3.33
B177: 1972-08-01 | C177: 1972 | D177: 仙台市宮城野区 | E177: 2.59
B178: 1972-09-01 | C178: 1972 | D178: 仙台市宮城野区 | E178: 2.22
B179: 1972-10-01 | C179: 1972 | D179: 仙台市宮城野区 | E179: 0.74
B180: 1972-11-01 | C180: 1972 | D180: 仙台市宮城野区 | E180: 0.74
B181: 1972-12-01 | C181: 1972 | D181: 仙台市宮城野区 | E181: 0.74
B182: 1973-01-01 | C182: 1973 | D182: 仙台市宮城野区 | E182: 0.37
B183: 1973-02-01 | C183: 1973 | D183: 仙台市宮城野区 | E183: 0.37
B184: 1973-03-01 | C184: 1973 | D184: 仙台市宮城野区 | E184: 2.22
B185: 1974-03-31 | C185: 1974 | D185: 仙台市宮城野区 | E185: 2.627
B186: 1974-04-30 | C186: 1974 | D186: 仙台市宮城野区 | E186: 8.88
B187: 1974-05-31 | C187: 1974 | D187: 仙台市宮城野区 | E187: 9.62
B188: 1974-07-01 | C188: 1974 | D188: 仙台市宮城野区 | E188: 7.77
B189: 1974-07-31 | C189: 1974 | D189: 仙台市宮城野区 | E189: 1.369
B190: 1974-08-31 | C190: 1974 | D190: 仙台市宮城野区 | E190: 5.55
B191: 1974-09-30 | C191: 1974 | D191: 仙台市宮城野区 | E191: 1.591
B192: 1974-10-31 | C192: 1974 | D192: 仙台市宮城野区 | E192: 0.666
B193: 1974-11-30 | C193: 1974 | D193: 仙台市宮城野区 | E193: 0.888
B194: 1974-12-27 | C194: 1974 | D194: 仙台市宮城野区 | E194: 0.481
B195: 1975-01-31 | C195: 1975 | D195: 仙台市宮城野区 | E195: 1.85
B196: 1975-02-28 | C196: 1975 | D196: 仙台市宮城野区 | E196: 6.66
B197: 1975-03-31 | C197: 1975 | D197: 仙台市宮城野区 | E197: 1.776
B198: 1975-04-30 | C198: 1975 | D198: 仙台市宮城野区 | E198: 1.924
B199: 1975-05-31 | C199: 1975 | D199: 仙台市宮城野区 | E199: 3.404
B200: 1975-06-30 | C200: 1975 | D200: 仙台市宮城野区 | E200: 1.11
B201: 1975-07-31 | C201: 1975 | D201: 仙台市宮城野区 | E201: 0.37
B202: 1975-08-31 | C202: 1975 | D202: 仙台市宮城野区 | E202: 0.592
B203: 1975-09-30 | C203: 1975 | D203: 仙台市宮城野区 | E203: 0.74
B204: 1975-11-01 | C204: 1975 | D204: 仙台市宮城野区 | E204: 0.888
B205: 1975-11-30 | C205: 1975 | D205: 仙台市宮城野区 | E205: 0.111
B206: 1976-01-01 | C206: 1976 | D206: 仙台市宮城野区 | E206: 0.333
B207: 1976-01-31 | C207: 1976 | D207: 仙台市宮城野区 | E207: 0.666
B208: 1976-02-29 | C208: 1976 | D208: 仙台市宮城野区 | E208: 0.444
B209: 1976-03-31 | C209: 1976 | D209: 仙台市宮城野区 | E209: 0.962
B210: 1976-04-30 | C210: 1976 | D210: 仙台市宮城野区 | E210: 0.444
B211: 1976-05-31 | C211: 1976 | D211: 仙台市宮城野区 | E211: 1.813
B212: 1976-06-30 | C212: 1976 | D212: 仙台市宮城野区 | E212: 0.518
B213: 1976-07-31 | C213: 1976 | D213: 仙台市宮城野区 | E213: 0.777
B214: 1976-08-31 | C214: 1976 | D214: 仙台市宮城野区 | E214: 0.74
B215: 1976-09-30 | C215: 1976 | D215: 仙台市宮城野区 | E215: 1.517
B216: 1976-11-01 | C216: 1976 | D216: 仙台市宮城野区 | E216: 0.629
B217: 1976-12-01 | C217: 1976 | D217: 仙台市宮城野区 | E217: 0.444
B218: 1977-01-01 | C218: 1977 | D218: 仙台市宮城野区 | E218: 0.481
B219: 1977-01-05 | C219: 1977 | D219: 仙台市宮城野区 | E219: 0.111
B220: 1977-02-01 | C220: 1977 | D220: 仙台市宮城野区 | E220: 0.851
B221: 1977-02-02 | C221: 1977 | D221: 仙台市宮城野区 | E221: 0.259
B222: 1977-03-01 | C222: =YEAR(B222) -> 1977 | D222: 仙台市宮城野区 | E222: 1.036
B223: 1977-03-01 | C223: 1977 | D223: 仙台市宮城野区 | E223: 1.665
B224: 1977-03-31 | C224: 1977 | D224: 仙台市宮城野区 | E224: 2.553
B225: 1977-04-01 | C225: 1977 | D225: 仙台市宮城野区 | E225: 2.886
... 2236 more rows

Sheet 元デタ
AG1: 降下物中のＣs-137の推移(1) | AL1: ←原子力センター開所以前も含む | BI1: 降下物中のＣs-137の推移(2) | BP1: ←原子力センター開所以降
C2: 環境放射線監視センター | G2: 原子力安全対策課 | J2: 放射能情報サイトみやぎ | N2: kmdみやぎ | P2: (注1) Be-7とK-40は天然､Cs-134とCs-137は主に原発事故､I-131は医療､Sr-90は核実験 由来 | AI2: 日分セDB/Cs-137/MBq/km2.月 | AZ2: 日分セDB/Cs-137/MBq/km2.月 | BJ2: 降下物(Bq/㎡) | BK2: 降下物(Bq/㎡) | BL2: 降下物(Bq/㎡) | BM2: 降下物(Bq/㎡) | BN2: 土壌(kBq/㎡) | BO2: 土壌(kBq/㎡) | BP2: 土壌(kBq/㎡) | BQ2: よもぎ(Bq/kg生) | BR2: よもぎ(Bq/kg生) | BS2: 松葉(Bq/kg生) | BT2: 松葉(Bq/kg生) | BU2: 松葉(Bq/kg生) | BW2: Cs-137崩壊 | CA2: Sr-90崩壊 | CC2: H-3崩壊
B3: 降下物中のCs-137の推移 | P3: (注2) ND(検出されず)は､過去最小値の1/2で表示 | AG3: 年月日 | AI3: 牡鹿郡牡鹿町 | AJ3: 牡鹿郡女川町 | AK3: 石巻市 | AL3: 仙台市宮城野区 | AM3: 仙台市青葉区 | AN3: 日分セDB//// | AO3: 単位 | AQ3: 100からの減衰(Cs-137) | AR3: 最大値からの減衰/牡鹿郡女川町 | AS3: 最大値からの減衰/石巻市 | AT3: 最大値からの減衰/仙台市宮城野区 | AU3: 最大値からの減衰/仙台市青葉区 | AV3: 最大値からの減衰(//) | AX3: 年月日 | AZ3: 仙台市宮城野区 | BA3: 仙台市青葉区 | BB3: 日分セDB//// | BC3: 単位 | BE3: 最大値からの減衰/仙台市宮城野区 | BF3: 最大値からの減衰/仙台市青葉区 | BG3: 最大値からの減衰(//) | BJ3: 女川宿舎←原子力セ(女川) | BK3: 保環セ(仙台) | BL3: 小屋取 | BM3: 牡鹿ゲート | BN3: 谷川浜←前網浜←寄磯 | BO3: 岩出山 | BP3: 牡鹿ゲート付近←前網浜←寄磯(H11)←塚浜 | BQ3: 谷川 | BR3: 前網(電力) | BS3: 小屋取 | BT3: 牡鹿ゲート | BU3: 付替県道 | BW3: １から崩壊(Cs-137) | BX3: 0.30から崩壊 | BY3: 1.7から崩壊 | BZ3: 0.44から崩壊 | CA3: 6から崩壊Sr-90 | CB3: 3から崩壊Sr-90 | CC3: 800から崩壊H-3 | CD3: 500から崩壊H-3
AG4: 1959-09-01 | AH4: 仙台市宮城野区 | AL4: 48.84 | AO4: MBq/km2.月 | AQ4: =100*2.71828^(-(0.69315/30.02)*(AG4-21794)/365.25) -> 100 | AR4: 284.53 | AS4: 0 | AX4: 1959-09-01 | AY4: 仙台市宮城野区 | AZ4: 48.84 | BC4: MBq/km2.月 | BE4: 499.5 | BF4: 284.53 | BG4: 0 | BI4: 1981-10-07 | BQ4: 0.1703703704 | BW4: =1*2.71828^(-(0.69315/30.02)*(BI4-29866)/365.25) -> 1 | CA4: =6*2.71828^(-(0.69315/29)*(BI4-29866)/365.25) -> 6 | CB4: =3*2.71828^(-(0.69315/29)*(BI4-29866)/365.25) -> 3 | CC4: =800*2.71828^(-(0.69315/12)*(BI4-29866)/365.25) -> 800 | CD4: =500*2.71828^(-(0.69315/12)*(BI4-29866)/365.25) -> 500
AG5: 1959-12-01 | AH5: 仙台市宮城野区 | AL5: 58.46 | AO5: MBq/km2.月 | AQ5: 99.42638719 | AR5: 282.9006055 | AS5: 0 | AX5: 1959-12-01 | AY5: 仙台市宮城野区 | AZ5: 58.46 | BC5: MBq/km2.月 | BE5: 496.6395545 | BF5: 282.9006055 | BG5: 0 | BI5: 1981-10-31 | BJ5: 0.3407407407 | BW5: =1*2.71828^(-(0.69315/30.02)*(BI5-29866)/365.25) -> 0.9984839698 | CA5: =6*2.71828^(-(0.69315/29)*(BI5-29866)/365.25) -> 5.990584135 | CB5: =3*2.71828^(-(0.69315/29)*(BI5-29866)/365.25) -> 2.995292068 | CC5: =800*2.71828^(-(0.69315/12)*(BI5-29866)/365.25) -> 796.969371 | CD5: =500*2.71828^(-(0.69315/12)*(BI5-29866)/365.25) -> 498.1058569
AG6: 1960-02-01 | AH6: 仙台市宮城野区 | AL6: 23.31 | AO6: MBq/km2.月 | AQ6: 99.03745976 | AR6: 281.7958162 | AS6: 0 | AX6: 1960-02-01 | AY6: 仙台市宮城野区 | AZ6: 23.31 | BC6: MBq/km2.月 | BE6: 494.7000675 | BF6: 281.7958162 | BG6: 0 | BI6: 1981-10-31 | BL6: 0.2740740741 | BM6: 0.362962963 | BW6: 0.9984839698 | CA6: 5.990584135 | CB6: 2.995292068 | CC6: 796.969371 | CD6: 498.1058569
AG7: 1960-03-01 | AH7: 仙台市宮城野区 | AL7: 34.04 | AO7: MBq/km2.月 | AQ7: 98.85606469 | AR7: 281.2805419 | AS7: 0 | AX7: 1960-03-01 | AY7: 仙台市宮城野区 | AZ7: 34.04 | BC7: MBq/km2.月 | BE7: 493.7954898 | BF7: 281.2805419 | BG7: 0 | BI7: 1981-11-02 | BS7: 0.9259259259 | BT7: 0.962962963 | BU7: 0.8814814815 | BW7: 0.9983577377 | CA7: 5.989800147 | CB7: 2.994900074 | CC7: 796.7173374 | CD7: 497.9483359
AG8: 1960-06-01 | AH8: 仙台市宮城野区 | AL8: 101.01 | AO8: MBq/km2.月 | AQ8: 98.28280041 | AR8: 279.6521063 | AS8: 0 | AX8: 1960-06-01 | AY8: 仙台市宮城野区 | AZ8: 101.01 | BC8: MBq/km2.月 | BE8: 490.9367275 | BF8: 279.6521063 | BG8: 0 | BI8: 1981-11-05 | BN8: 0.5588907407 | BP8: 1.326305556 | BW8: 0.9981684196 | CA8: 5.988624357 | CB8: 2.994312179 | CC8: 796.3394365 | CD8: 497.7121478
AG9: 1960-09-01 | AH9: 仙台市宮城野区 | AL9: 7.77 | AO9: MBq/km2.月 | AQ9: 97.71286048 | AR9: 278.0330982 | AS9: 0 | AX9: 1960-09-01 | AY9: 仙台市宮城野区 | AZ9: 7.77 | BC9: MBq/km2.月 | BE9: 488.0945156 | BF9: 278.0330982 | BG9: 0 | BI9: 1981-11-05 | BQ9: 0.1592592593 | BW9: 0.9981684196 | CA9: 5.988624357 | CB9: 2.994312179 | CC9: 796.3394365 | CD9: 497.7121478
AG10: 1960-12-01 | AH10: 仙台市宮城野区 | AL10: 24.42 | AO10: MBq/km2.月 | AQ10: 97.15236699 | AR10: 276.440909 | AS10: 0 | AX10: 1960-12-01 | AY10: 仙台市宮城野区 | AZ10: 24.42 | BC10: MBq/km2.月 | BE10: 485.299385 | BF10: 276.440909 | BG10: 0 | BI10: 1981-12-01 | BJ10: 0.4333333333 | BW10: 0.9965291652 | CA10: 5.978443843 | CB10: 2.989221921 | CC10: 793.0717944 | CD10: 495.6698715
AG11: 1961-03-01 | AH11: 仙台市宮城野区 | AL11: 29.23 | AO11: MBq/km2.月 | AQ11: 96.6011951 | AR11: 274.8751846 | AS11: 0 | AX11: 1961-03-01 | AY11: 仙台市宮城野区 | AZ11: 29.23 | BC11: MBq/km2.月 | BE11: 482.5507142 | BF11: 274.8751846 | BG11: 0 | BI11: 1981-12-01 | BL11: 0.2518518519 | BM11: 0.7037037037 | BW11: 0.9965291652 | CA11: 5.978443843 | CB11: 2.989221921 | CC11: 793.0717944 | CD11: 495.6698715
AG12: 1961-06-01 | AH12: 仙台市宮城野区 | AL12: 28.12 | AO12: MBq/km2.月 | AQ12: 96.04100676 | AR12: 273.2838319 | AS12: 0 | AX12: 1961-06-01 | AY12: 仙台市宮城野区 | AZ12: 28.12 | BC12: MBq/km2.月 | BE12: 479.7570521 | BF12: 273.2838319 | BG12: 0 | BI12: 1981-12-26 | BL12: 0.162962963 | BM12: 0.2185185185 | BW12: 0.994955498 | CA12: 5.968671208 | CB12: 2.984335604 | CC12: 789.9424761 | CD12: 493.7140475
AG13: 1961-08-01 | AH13: 仙台市宮城野区 | AL13: 21.46 | AO13: MBq/km2.月 | AQ13: 95.67136973 | AR13: 272.2337786 | AS13: 0 | AX13: 1961-08-01 | AY13: 仙台市宮城野区 | AZ13: 21.46 | BC13: MBq/km2.月 | BE13: 477.9136555 | BF13: 272.2337786 | BG13: 0 | BI13: 1981-12-28 | BJ13: 0.2555555556 | BW13: 0.994829712 | CA13: 5.967890088 | CB13: 2.983945044 | CC13: 789.6926647 | CD13: 493.5579154
AG14: 1961-09-01 | AH14: 仙台市宮城野区 | AL14: 10.73 | AO14: MBq/km2.月 | AQ14: 95.48406694 | AR14: 271.7016921 | AS14: 0 | AX14: 1961-09-01 | AY14: 仙台市宮城野区 | AZ14: 10.73 | BC14: MBq/km2.月 | BE14: 476.9795635 | BF14: 271.7016921 | BG14: 0 | BI14: 1982-02-01 | BJ14: 0.3333333333 | BW14: 0.9926310298 | CA14: 5.954237018 | CB14: 2.977118509 | CC14: 785.3337312 | CD14: 490.833582
AG15: 1961-10-01 | AH15: 仙台市宮城野区 | AL15: 41.44 | AO15: MBq/km2.月 | AQ15: 95.30315533 | AR15: 271.1877599 | AS15: 0 | AX15: 1961-10-01 | AY15: 仙台市宮城野区 | AZ15: 41.44 | BC15: MBq/km2.月 | BE15: 476.0773418 | BF15: 271.1877599 | BG15: 0 | BI15: 1982-02-01 | BL15: 0.2222222222 | BM15: 0.4444444444 | BW15: 0.9926310298 | CA15: 5.954237018 | CB15: 2.977118509 | CC15: 785.3337312 | CD15: 490.833582
AG16: 1961-11-01 | AH16: 仙台市宮城野区 | AL16: 22.57 | AO16: MBq/km2.月 | AQ16: 95.11657343 | AR16: 270.6577179 | AS16: 0 | AX16: 1961-11-01 | AY16: 仙台市宮城野区 | AZ16: 22.57 | BC16: MBq/km2.月 | BE16: 475.1468389 | BF16: 270.6577179 | BG16: 0 | BI16: 1982-02-01 | BS16: 1.703703704 | BT16: 0.9111111111 | BU16: 0.7740740741 | BW16: 0.9926310298 | BY16: =1.704*2.71828^(-(0.69315/30.02)*(BI16-29983)/365.25) -> 1.704 | CA16: 5.954237018 | CB16: 2.977118509 | CC16: 785.3337312 | CD16: 490.833582
AG17: 1961-12-01 | AH17: 仙台市宮城野区 | AL17: 17.76 | AO17: MBq/km2.月 | AQ17: 94.9363581 | AR17: 270.1457604 | AS17: 0 | AX17: 1961-12-01 | AY17: 仙台市宮城野区 | AZ17: 17.76 | BC17: MBq/km2.月 | BE17: 474.2480839 | BF17: 270.1457604 | BG17: 0 | BI17: 1982-03-01 | BJ17: 0.2592592593 | BW17: 0.9908755833 | BY17: =1.704*2.71828^(-(0.69315/30.02)*(BI17-29983)/365.25) -> 1.700986513 | CA17: 5.943337054 | CB17: 2.971668527 | CC17: 781.8639143 | CD17: 488.6649464
AG18: 1962-01-01 | AH18: 仙台市宮城野区 | AL18: 11.1 | AO18: MBq/km2.月 | AQ18: 94.7504943 | AR18: 269.617755 | AS18: 0 | AX18: 1962-01-01 | AY18: 仙台市宮城野区 | AZ18: 11.1 | BC18: MBq/km2.月 | BE18: 473.3211564 | BF18: 269.617755 | BG18: 0 | BI18: 1982-03-01 | BL18: 0.2111111111 | BM18: 0.2740740741 | BW18: 0.9908755833 | BY18: 1.700986513 | CA18: 5.943337054 | CB18: 2.971668527 | CC18: 781.8639143 | CD18: 488.6649464
AG19: 1962-02-01 | AH19: 仙台市宮城野区 | AL19: 23.68 | AO19: MBq/km2.月 | AQ19: 94.56499438 | AR19: 269.0907816 | AS19: 0 | AX19: 1962-02-01 | AY19: 仙台市宮城野区 | AZ19: 23.68 | BC19: MBq/km2.月 | BE19: 472.3960405 | BF19: 269.0907816 | BG19: 0 | BI19: 1982-03-31 | BJ19: 0.5703703704 | BW19: 0.9889981927 | BY19: 1.69776369 | CA19: 5.931680663 | CB19: 2.965840332 | CC19: 778.1632637 | CD19: 486.3520398
AG20: 1962-03-01 | AH20: 仙台市宮城野区 | AL20: 11.1 | AO20: MBq/km2.月 | AQ20: 94.39775823 | AR20: 268.615691 | AS20: 0 | AX20: 1962-03-01 | AY20: 仙台市宮城野区 | AZ20: 11.1 | BC20: MBq/km2.月 | BE20: 471.5620062 | BF20: 268.615691 | BG20: 0 | BI20: 1982-03-31 | BL20: 0.5555555556 | BM20: 0.6666666667 | BW20: 0.9889981927 | BY20: 1.69776369 | CA20: 5.931680663 | CB20: 2.965840332 | CC20: 778.1632637 | CD20: 486.3520398
AG21: 1962-04-01 | AH21: 仙台市宮城野区 | AL21: 90.28 | AO21: MBq/km2.月 | AQ21: 94.21294889 | AR21: 268.0906761 | AS21: 0 | AX21: 1962-04-01 | AY21: 仙台市宮城野区 | AZ21: 90.28 | BC21: MBq/km2.月 | BE21: 470.6403287 | BF21: 268.0906761 | BG21: 0 | BI21: 1982-04-28 | BQ21: 0.05185185185 | BW21: 0.9872491708 | BY21: 1.694761232 | CA21: 5.920821992 | CB21: 2.960410996 | CC21: 774.7251279 | CD21: 484.2032049
AG22: 1962-05-01 | AH22: 仙台市宮城野区 | AL22: 148.37 | AO22: MBq/km2.月 | AQ22: 94.03444564 | AR22: 267.5835743 | AS22: 0 | AX22: 1962-05-01 | AY22: 仙台市宮城野区 | AZ22: 148.37 | BC22: MBq/km2.月 | BE22: 469.7500979 | BF22: 267.5835743 | BG22: 0 | BI22: 1982-04-30 | BJ22: 1.518518519 | BK22: 2.222222222 | BW22: 0.987124359 | BY22: 1.694546974 | CA22: 5.920047134 | CB22: 2.960023567 | CC22: 774.4801288 | CD22: 484.0500805
AG23: 1962-06-01 | AH23: 仙台市宮城野区 | AL23: 118.03 | AO23: MBq/km2.月 | AQ23: 93.85034758 | AR23: 267.0605767 | AS23: 0 | AX23: 1962-06-01 | AY23: 仙台市宮城野区 | AZ23: 118.03 | BC23: MBq/km2.月 | BE23: 468.8319617 | BF23: 267.0605767 | BG23: 0 | BI23: 1982-04-30 | BL23: 2.037037037 | BM23: 3.296296296 | BW23: 0.987124359 | BY23: 1.694546974 | CA23: 5.920047134 | CB23: 2.960023567 | CC23: 774.4801288 | CD23: 484.0500805
AG24: 1962-07-01 | AH24: 仙台市宮城野区 | AL24: 138.38 | AO24: MBq/km2.月 | AQ24: 93.67253134 | AR24: 266.5554233 | AS24: 0 | AX24: 1962-07-01 | AY24: 仙台市宮城野区 | AZ24: 138.38 | BC24: MBq/km2.月 | BE24: 467.9451515 | BF24: 266.5554233 | BG24: 0 | BI24: 1982-05-06 | BN24: 0.6582777778 | BP24: 0.6581666667 | BW24: 0.9867500186 | BY24: 1.693904362 | CA24: 5.917723167 | CB24: 2.958861584 | CC24: 773.7455964 | CD24: 483.5909977
AG25: 1962-08-01 | AH25: 仙台市宮城野区 | AL25: 55.13 | AO25: MBq/km2.月 | AQ25: 93.48914183 | AR25: 266.0344353 | AS25: 0 | AX25: 1962-08-01 | AY25: 仙台市宮城野区 | AZ25: 55.13 | BC25: MBq/km2.月 | BE25: 467.0305431 | BF25: 266.0344353 | BG25: 0 | BI25: 1982-05-06 | BS25: 1.222222222 | BT25: 1.333333333 | BU25: 1.037037037 | BW25: 0.9867500186 | BY25: 1.693904362 | CA25: 5.917723167 | CB25: 2.958861584 | CC25: 773.7455964 | CD25: 483.5909977
AG26: 1962-09-01 | AH26: 仙台市宮城野区 | AL26: 50.69 | AO26: MBq/km2.月 | AQ26: 93.30611135 | AR26: 265.5144656 | AS26: 0 | AX26: 1962-09-01 | AY26: 仙台市宮城野区 | AZ26: 50.69 | BC26: MBq/km2.月 | BE26: 466.1177224 | BF26: 265.5144656 | BG26: 0 | BI26: 1982-05-12 | BQ26: 0.07037037037 | BW26: 0.9863758201 | BY26: 1.693261995 | CA26: 5.915400113 | CB26: 2.957700056 | CC26: 773.0117606 | CD26: 483.1323504
AG27: 1962-10-01 | AH27: 仙台市宮城野区 | AL27: 44.77 | AO27: MBq/km2.月 | AQ27: 93.12932626 | AR27: 265.0122367 | AS27: 0 | AX27: 1962-10-01 | AY27: 仙台市宮城野区 | AZ27: 44.77 | BC27: MBq/km2.月 | BE27: 465.2360463 | BF27: 265.0122367 | BG27: 0 | BI27: 1982-05-31 | BJ27: 0.637037037 | BK27: 0.8777777778 | BW27: 0.985191794 | BY27: 1.691229436 | CA27: 5.908049789 | CB27: 2.954024894 | CC27: 770.6925358 | CD27: 481.6828349
AG28: 1962-11-01 | AH28: 仙台市宮城野区 | AL28: 32.56 | AO28: MBq/km2.月 | AQ28: 92.94700022 | AR28: 264.4942649 | AS28: 0 | AX28: 1962-11-01 | AY28: 仙台市宮城野区 | AZ28: 32.56 | BC28: MBq/km2.月 | BE28: 464.3267329 | BF28: 264.4942649 | BG28: 0 | BI28: 1982-06-01 | BL28: 0.8518518519 | BM28: 0.962962963 | BW28: 0.9851295163 | BY28: 1.691122527 | CA28: 5.907663183 | CB28: 2.953831591 | CC28: 770.5706642 | CD28: 481.6066651
AG29: 1962-12-01 | AH29: 仙台市宮城野区 | AL29: 56.24 | AO29: MBq/km2.月 | AQ29: 92.77089554 | AR29: 263.9939658 | AS29: 0 | AX29: 1962-12-01 | AY29: 仙台市宮城野区 | AZ29: 56.24 | BC29: MBq/km2.月 | BE29: 463.4484445 | BF29: 263.9939658 | BG29: 0 | BI29: 1982-06-09 | BQ29: 0.08148148148 | BW29: 0.9846314358 | BY29: 1.690267497 | CA29: 5.904571245 | CB29: 2.952285623 | CC29: 769.5963855 | CD29: 480.9977409
AG30: 1963-01-01 | AH30: 仙台市宮城野区 | AL30: 66.97 | AO30: MBq/km2.月 | AQ30: 92.58927122 | AR30: 263.4779842 | AS30: 0 | AX30: 1963-01-01 | AY30: 仙台市宮城野区 | AZ30: 66.97 | BC30: MBq/km2.月 | BE30: 462.542625 | BF30: 263.4779842 | BG30: 0 | BI30: 1982-06-09 | BR30: 0.023 | BW30: 0.9846314358 | BY30: 1.690267497 | CA30: 5.904571245 | CB30: 2.952285623 | CC30: 769.5963855 | CD30: 480.9977409
AG31: 1963-02-01 | AH31: 仙台市宮城野区 | AL31: 64.01 | AO31: MBq/km2.月 | AQ31: 92.40800248 | AR31: 262.9630111 | AS31: 0 | AX31: 1963-02-01 | AY31: 仙台市宮城野区 | AZ31: 64.01 | BC31: MBq/km2.月 | BE31: 461.638576 | BF31: 262.9630111 | BG31: 0 | BI31: 1982-06-30 | BJ31: 0.5814814815 | BK31: 0.5222222222 | BW31: 0.9833251723 | BY31: 1.6880251 | CA31: 5.896462605 | CB31: 2.948231303 | CC31: 767.0447606 | CD31: 479.4029754
AG32: 1963-03-01 | AH32: 仙台市宮城野区 | AL32: 307.47 | AO32: MBq/km2.月 | AQ32: 92.24458093 | AR32: 262.4987393 | AS32: 0 | AX32: 1963-03-01 | AY32: 仙台市宮城野区 | AZ32: 307.47 | BC32: MBq/km2.月 | BE32: 460.8235345 | BF32: 262.4987393 | BG32: 0 | BI32: 1982-07-01 | BL32: 0.4814814815 | BM32: 0.5185185185 | BW32: 0.9832630125 | BY32: 1.687918394 | CA32: 5.896076758 | CB32: 2.948038379 | CC32: 766.9234659 | CD32: 479.3271662
AG33: 1963-04-01 | AH33: 仙台市宮城野区 | AL33: 242.35 | AO33: MBq/km2.月 | AQ33: 92.06398702 | AR33: 261.9856801 | AS33: 0 | AX33: 1963-04-01 | AY33: 仙台市宮城野区 | AZ33: 242.35 | BC33: MBq/km2.月 | BE33: 459.9228455 | BF33: 261.9856801 | BG33: 0 | BI33: 1982-07-06 | BQ33: 0.1814814815 | BW33: 0.9829522726 | BY33: 1.687384962 | CA33: 5.894147897 | CB33: 2.947073949 | CC33: 766.3172801 | CD33: 478.9483001
AG34: 1963-05-01 | AH34: 仙台市宮城野区 | AL34: 126.17 | AO34: MBq/km2.月 | AQ34: 91.88955536 | AR34: 261.4901261 | AS34: 0 | AX34: 1963-05-01 | AY34: 仙台市宮城野区 | AZ34: 126.17 | BC34: MBq/km2.月 | BE34: 459.0528872 | BF34: 261.4901261 | BG34: 0 | BI34: 1982-07-30 | BJ34: 0.3666666667 | BK34: 0.4481481481 | BW34: 0.9814620872 | BY34: 1.684826835 | CA34: 5.884898147 | CB34: 2.942449074 | CC34: 763.4142509 | CD34: 477.1339068
AG35: 1963-06-01 | AH35: 仙台市宮城野区 | AL35: 499.5 | AO35: MBq/km2.月 | AQ35: 91.70965651 | AR35: 260.9790383 | AS35: 0 | AX35: 1963-06-01 | AY35: 仙台市宮城野区 | AZ35: 499.5 | BC35: MBq/km2.月 | BE35: 458.1556589 | BF35: 260.9790383 | BG35: 0 | BI35: 1982-07-30 | BL35: 0.4074074074 | BM35: 0.362962963 | BW35: 0.9814620872 | BY35: 1.684826835 | CA35: 5.884898147 | CB35: 2.942449074 | CC35: 763.4142509 | CD35: 477.1339068
AG36: 1963-06-01 | AH36: 仙台市青葉区 | AM36: 234.95 | AO36: MBq/km2.月 | AQ36: 91.70965651 | AR36: 260.9790383 | AS36: 0 | AX36: 1963-06-01 | AY36: 仙台市青葉区 | BA36: 234.95 | BC36: MBq/km2.月 | BE36: 458.1556589 | BF36: 260.9790383 | BG36: 0 | BI36: 1982-08-05 | BR36: 0.4444444444 | BW36: 0.981089894 | BY36: 1.68418791 | BZ36: =0.44*2.71828^(-(0.69315/30.02)*(BI36-30168)/365.25) -> 0.44 | CA36: 5.882587979 | CB36: 2.941293989 | CC36: 762.6902135 | CD36: 476.6813835
AG37: 1963-07-01 | AH37: 仙台市宮城野区 | AL37: 293.78 | AO37: MBq/km2.月 | AQ37: 91.53589619 | AR37: 260.4853883 | AS37: 0 | AX37: 1963-07-01 | AY37: 仙台市宮城野区 | AZ37: 293.78 | BC37: MBq/km2.月 | BE37: 457.2890433 | BF37: 260.4853883 | BG37: 0 | BI37: 1982-08-05 | BS37: 1.074074074 | BT37: 0.5740740741 | BU37: 0.937037037 | BW37: 0.981089894 | BY37: 1.68418791 | BZ37: =0.44*2.71828^(-(0.69315/30.02)*(BI37-30168)/365.25) -> 0.44 | CA37: 5.882587979 | CB37: 2.941293989 | CC37: 762.6902135 | CD37: 476.6813835
AG38: 1963-07-01 | AH38: 仙台市青葉区 | AM38: 178.34 | AO38: MBq/km2.月 | AQ38: 91.53589619 | AR38: 260.4853883 | AS38: 0 | AX38: 1963-07-01 | AY38: 仙台市青葉区 | BA38: 178.34 | BC38: MBq/km2.月 | BE38: 457.2890433 | BF38: 260.4853883 | BG38: 0 | BI38: 1982-08-31 | BJ38: 0.2222222222 | BK38: 0.2407407407 | BW38: 0.9794786871 | BY38: 1.681422032 | BZ38: 0.4392774046 | CA38: 5.872587724 | CB38: 2.936293862 | CC38: 759.5606452 | CD38: 474.7254033
AG39: 1963-08-01 | AH39: 仙台市宮城野区 | AL39: 38.85 | AO39: MBq/km2.月 | AQ39: 91.35668972 | AR39: 259.9762643 | AS39: 0 | AX39: 1963-08-01 | AY39: 仙台市宮城野区 | AZ39: 38.85 | BC39: MBq/km2.月 | BE39: 456.3952625 | BF39: 259.9762643 | BG39: 0 | BI39: 1982-09-01 | BL39: 0.162962963 | BM39: 0.2222222222 | BW39: 0.9794167705 | BY39: 1.681315742 | BZ39: 0.4392496362 | CA39: 5.872203438 | CB39: 2.936101719 | CC39: 759.440534 | CD39: 474.6503338
AG40: 1963-08-01 | AH40: 仙台市青葉区 | AM40: 72.52 | AO40: MBq/km2.月 | AQ40: 91.35668972 | AR40: 259.9762643 | AS40: 0 | AX40: 1963-08-01 | AY40: 仙台市青葉区 | BA40: 72.52 | BC40: MBq/km2.月 | BE40: 456.3952625 | BF40: 259.9762643 | BG40: 0 | BI40: 1982-09-08 | BQ40: 0.1259259259 | BW40: 0.9789834637 | BY40: 1.680571906 | BZ40: 0.4390553064 | CA40: 5.869514143 | CB40: 2.934757072 | CC40: 758.6002871 | CD40: 474.1251795
AG41: 1963-09-01 | AH41: 仙台市宮城野区 | AL41: 62.9 | AO41: MBq/km2.月 | AQ41: 91.1778341 | AR41: 259.4681354 | AS41: 0 | AX41: 1963-09-01 | AY41: 仙台市宮城野区 | AZ41: 62.9 | BC41: MBq/km2.月 | BE41: 455.5032286 | BF41: 259.4681354 | BG41: 0 | BI41: 1982-09-30 | BJ41: 0.2888888889 | BK41: 0.2814814815 | BW41: 0.9776228899 | BY41: 1.678236277 | BZ41: 0.4384451151 | CA41: 5.86107009 | CB41: 2.930535045 | CC41: 755.9655586 | CD41: 472.4784741
AG42: 1963-09-02 | AH42: 仙台市青葉区 | AM42: 21.46 | AO42: MBq/km2.月 | AQ42: 91.1720704 | AR42: 259.4517607 | AS42: 0 | AX42: 1963-09-02 | AY42: 仙台市青葉区 | BA42: 21.46 | BC42: MBq/km2.月 | BE42: 455.4744824 | BF42: 259.4517607 | BG42: 0 | BI42: 1982-09-30 | BL42: 0.2444444444 | BM42: 0.2074074074 | BW42: 0.9776228899 | BY42: 1.678236277 | BZ42: 0.4384451151 | CA42: 5.86107009 | CB42: 2.930535045 | CC42: 755.9655586 | CD42: 472.4784741
AG43: 1963-10-01 | AH43: 仙台市宮城野区 | AL43: 53.65 | AO43: MBq/km2.月 | AQ43: 91.00508142 | AR43: 258.9773434 | AS43: 0 | AX43: 1963-10-01 | AY43: 仙台市宮城野区 | AZ43: 53.65 | BC43: MBq/km2.月 | BE43: 454.6416301 | BF43: 258.9773434 | BG43: 0 | BI43: 1982-10-19 | BQ43: 0.1851851852 | BW43: 0.9764493707 | BY43: 1.676221756 | BZ43: 0.4379188143 | CA43: 5.853787275 | CB43: 2.926893638 | CC43: 753.6974766 | CD43: 471.0609229
AG44: 1963-10-01 | AH44: 仙台市青葉区 | AM44: 43.66 | AO44: MBq/km2.月 | AQ44: 91.00508142 | AR44: 258.9773434 | AS44: 0 | AX44: 1963-10-01 | AY44: 仙台市青葉区 | BA44: 43.66 | BC44: MBq/km2.月 | BE44: 454.6416301 | BF44: 258.9773434 | BG44: 0 | BI44: 1982-11-01 | BL44: =0.03/2 -> 0.015 | BM44: 0.2592592593 | BW44: 0.9756472483 | BY44: 1.674844792 | BZ44: 0.4375590778 | CA44: 5.848809512 | CB44: 2.924404756 | CC44: 752.1495529 | CD44: 470.0934706
AG45: 1963-11-01 | AH45: 仙台市宮城野区 | AL45: 75.11 | AO45: MBq/km2.月 | AQ45: 90.82691416 | AR45: 258.4711669 | AS45: 0 | AX45: 1963-11-01 | AY45: 仙台市宮城野区 | AZ45: 75.11 | BC45: MBq/km2.月 | BE45: 453.7530238 | BF45: 258.4711669 | BG45: 0 | BI45: 1982-11-02 | BJ45: 0.2296296296 | BK45: 0.1777777778 | BW45: 0.9755855739 | BY45: 1.674738919 | BZ45: 0.437531418 | CA45: 5.848426782 | CB45: 2.924213391 | CC45: 752.0306137 | CD45: 470.0191335
AG46: 1963-11-01 | AH46: 仙台市青葉区 | AM46: 37 | AO46: MBq/km2.月 | AQ46: 90.82691416 | AR46: 258.4711669 | AS46: 0 | AX46: 1963-11-01 | AY46: 仙台市青葉区 | BA46: 37 | BC46: MBq/km2.月 | BE46: 453.7530238 | BF46: 258.4711669 | BG46: 0 | BI46: 1982-11-05 | BN46: 0.5679259259 | BP46: 0.5983333333 | BW46: 0.975400574 | BY46: 1.674421339 | BZ46: 0.4374484491 | CA46: 5.847278744 | CB46: 2.923639372 | CC46: 751.6739086 | CD46: 469.7961929
AG47: 1963-12-01 | AH47: 仙台市宮城野区 | AL47: 27.01 | AO47: MBq/km2.月 | AQ47: 90.65482636 | AR47: 257.9822606 | AS47: 0 | AX47: 1963-12-01 | AY47: 仙台市宮城野区 | AZ47: 27.01 | BC47: MBq/km2.月 | BE47: 452.8947359 | BF47: 257.9822606 | BG47: 0 | BI47: 1982-11-08 | BS47: 1.003703704 | BT47: 0.4851851852 | BU47: 1.318518519 | BW47: 0.9752156092 | BY47: 1.674103819 | BZ47: 0.4373654959 | CA47: 5.846130931 | CB47: 2.923065465 | CC47: 751.3173728 | CD47: 469.573358
AG48: 1963-12-02 | AH48: 仙台市青葉区 | AM48: 36.26 | AO48: MBq/km2.月 | AQ48: 90.64909572 | AR48: 257.9659797 | AS48: 0 | AX48: 1963-12-02 | AY48: 仙台市青葉区 | BA48: 36.26 | BC48: MBq/km2.月 | BE48: 452.8661542 | BF48: 257.9659797 | BG48: 0 | BI48: 1982-11-30 | BJ48: 0.1592592593 | BK48: 0.1148148148 | BW48: 0.9738602719 | BY48: 1.671777179 | BZ48: 0.4367576531 | CA48: 5.837720517 | CB48: 2.918860259 | CC48: 748.7079389 | CD48: 467.9424618
AG49: 1964-01-07 | AH49: 仙台市青葉区 | AM49: 44.4 | AO49: MBq/km2.月 | AQ49: 90.44303372 | AR49: 257.3805497 | AS49: 0 | AX49: 1964-01-07 | AY49: 仙台市青葉区 | BA49: 44.4 | BC49: MBq/km2.月 | BE49: 451.8384163 | BF49: 257.3805497 | BG49: 0 | BI49: 1982-11-30 | BL49: =0.03/2 -> 0.015 | BM49: =0.032/2 -> 0.016 | BW49: 0.9738602719 | BY49: 1.671777179 | BZ49: 0.4367576531 | CA49: 5.837720517 | CB49: 2.918860259 | CC49: 748.7079389 | CD49: 467.9424618
AG50: 1964-02-02 | AH50: 仙台市青葉区 | AM50: 81.77 | AO50: MBq/km2.月 | AQ50: 90.29450254 | AR50: 256.9585656 | AS50: 0 | AX50: 1964-02-02 | AY50: 仙台市青葉区 | BA50: 81.77 | BC50: MBq/km2.月 | BE50: 451.097612 | BF50: 256.9585656 | BG50: 0 | BI50: 1982-12-28 | BJ50: 0.07407407407 | BK50: 0.1777777778 | BW50: 0.9721380211 | BY50: 1.668820678 | BZ50: 0.4359852567 | CA50: 5.827033851 | CB50: 2.913516926 | CC50: 745.3999447 | CD50: 465.8749654
AG51: 1964-03-03 | AH51: 仙台市青葉区 | AM51: 88.06 | AO51: MBq/km2.月 | AQ51: 90.12342348 | AR51: 256.4725205 | AS51: 0 | AX51: 1964-03-03 | AY51: 仙台市青葉区 | BA51: 88.06 | BC51: MBq/km2.月 | BE51: 450.2443468 | BF51: 256.4725205 | BG51: 0 | BI51: 1982-12-28 | BL51: =0.03/2 -> 0.015 | BM51: =0.032/2 -> 0.016 | BW51: 0.9721380211 | BY51: 1.668820678 | BZ51: 0.4359852567 | CA51: 5.827033851 | CB51: 2.913516926 | CC51: 745.3999447 | CD51: 465.8749654
AG52: 1964-04-02 | AH52: 仙台市青葉区 | AM52: 105.08 | AO52: MBq/km2.月 | AQ52: 89.95266857 | AR52: 255.9873948 | AS52: 0 | AX52: 1964-04-02 | AY52: 仙台市青葉区 | BA52: 105.08 | BC52: MBq/km2.月 | BE52: 449.3926957 | BF52: 255.9873948 | BG52: 0 | BI52: 1983-01-31 | BJ52: 0.162962963 | BW52: 0.9700508107 | BY52: 1.665237668 | BZ52: 0.4350491828 | CA52: 5.814083483 | CB52: 2.907041742 | CC52: 741.4027373 | CD52: 463.3767108
AG53: 1964-05-02 | AH53: 仙台市青葉区 | AM53: 284.53 | AO53: MBq/km2.月 | AQ53: 89.78223718 | AR53: 255.5031867 | AS53: 0 | AX53: 1964-05-02 | AY53: 仙台市青葉区 | BA53: 284.53 | BC53: MBq/km2.月 | BE53: 448.5426554 | BF53: 255.5031867 | BG53: 0 | BI53: 1983-01-31 | BL53: =0.03/2 -> 0.015 | BM53: 0.1333333333 | BW53: 0.9700508107 | BY53: 1.665237668 | BZ53: 0.4350491828 | CA53: 5.814083483 | CB53: 2.907041742 | CC53: 741.4027373 | CD53: 463.3767108
AG54: 1964-06-01 | AH54: 仙台市青葉区 | AM54: 125.43 | AO54: MBq/km2.月 | AQ54: 89.61212871 | AR54: 255.0198945 | AS54: 0 | AX54: 1964-06-01 | AY54: 仙台市青葉区 | BA54: 125.43 | BC54: MBq/km2.月 | BE54: 447.6942231 | BF54: 255.0198945 | BG54: 0 | BI54: 1983-02-01 | BS54: 0.2740740741 | BT54: 0.2111111111 | BU54: 0.6185185185 | BW54: 0.96998949 | BY54: 1.665132402 | BZ54: 0.4350216817 | CA54: 5.813703026 | CB54: 2.906851513 | CC54: 741.2854975 | CD54: 463.3034359
AG55: 1964-07-01 | AH55: 仙台市青葉区 | AM55: 77.7 | AO55: MBq/km2.月 | AQ55: 89.44234253 | AR55: 254.5375164 | AS55: 0 | AX55: 1964-07-01 | AY55: 仙台市青葉区 | BA55: 77.7 | BC55: MBq/km2.月 | BE55: 446.8473956 | BF55: 254.5375164 | BG55: 0 | BI55: 1983-02-28 | BJ55: 0.2333333333 | BW55: 0.9683352968 | BY55: 1.662292731 | BZ55: 0.4342798078 | CA55: 5.803440088 | CB55: 2.901720044 | CC55: 738.1270194 | CD55: 461.3293871
AG56: 1964-08-01 | AH56: 仙台市青葉区 | AM56: 36.63 | AO56: MBq/km2.月 | AQ56: 89.26723477 | AR56: 254.0400177 | AS56: 0 | AX56: 1964-08-01 | AY56: 仙台市青葉区 | BA56: 36.63 | BC56: MBq/km2.月 | BE56: 445.9740232 | BF56: 254.0400177 | BG56: 0 | BI56: 1983-02-28 | BL56: =0.03/2 -> 0.015 | BM56: 0.1666666667 | BW56: 0.9683352968 | BY56: 1.662292731 | BZ56: 0.4342798078 | CA56: 5.803440088 | CB56: 2.901720044 | CC56: 738.1270194 | CD56: 461.3293871
AG57: 1964-09-01 | AH57: 仙台市青葉区 | AM57: 38.48 | AO57: MBq/km2.月 | AQ57: 89.09246982 | AR57: 253.5434913 | AS57: 0 | AX57: 1964-09-01 | AY57: 仙台市青葉区 | BA57: 38.48 | BC57: MBq/km2.月 | BE57: 445.1023579 | BF57: 253.5434913 | BG57: 0 | BI57: 1983-03-31 | BJ57: 0.3333333333 | BW57: 0.9664395165 | BY57: 1.65903834 | BZ57: 0.4334295867 | CA57: 5.791679055 | CB57: 2.895839527 | CC57: 734.5172112 | CD57: 459.073257
AG58: 1964-10-01 | AH58: 仙台市青葉区 | AM58: 33.3 | AO58: MBq/km2.月 | AQ58: 88.92366823 | AR58: 253.0639059 | AS58: 0 | AX58: 1964-10-01 | AY58: 仙台市青葉区 | BA58: 33.3 | BC58: MBq/km2.月 | BE58: 444.2604329 | BF58: 253.0639059 | BG58: 0 | BI58: 1983-03-31 | BL58: 0.1518518519 | BM58: 0.2333333333 | BW58: 0.9664395165 | BY58: 1.65903834 | BZ58: 0.4334295867 | CA58: 5.791679055 | CB58: 2.895839527 | CC58: 734.5172112 | CD58: 459.073257
B59: S38／大気･地下同数に､以降地下が主流に(仏･中は大気圏内を10年超継続) | AG59: 1964-11-05 | AH59: 仙台市青葉区 | AM59: 15.91 | AO59: MBq/km2.月 | AQ59: 88.72713723 | AR59: 252.505536 | AS59: 0 | AX59: 1964-11-05 | AY59: 仙台市青葉区 | BA59: 15.91 | BC59: MBq/km2.月 | BE59: 443.2801998 | BF59: 252.505536 | BG59: 0 | BI59: 1983-04-28 | BQ59: 0.02962962963 | BW59: 0.9647303891 | BY59: 1.656104367 | BZ59: 0.4326630758 | CA59: 5.781076673 | CB59: 2.890538337 | CC59: 731.2719154 | CD59: 457.0449471
B60: S48.7.5／中国15回核実験6/28､全国最高値(蔵王町) | AG60: 1964-12-01 | AH60: 仙台市青葉区 | AM60: 30.34 | AO60: MBq/km2.月 | AQ60: 88.581424 | AR60: 252.0915447 | AS60: 0 | AX60: 1964-12-01 | AY60: 仙台市青葉区 | BA60: 30.34 | BC60: MBq/km2.月 | BE60: 442.5534269 | BF60: 252.0915447 | BG60: 0 | BI60: 1983-04-30 | BJ60: 0.4148148148 | BW60: 0.9646084243 | BY60: 1.655894996 | BZ60: 0.4326083769 | CA60: 5.780320104 | CB60: 2.890160052 | CC60: 731.0406579 | CD60: 456.9004112
B61: S54.3.28／スリーマイル事故(アメリカ) | AG61: 1965-01-10 | AH61: 仙台市青葉区 | AM61: 120.25 | AO61: MBq/km2.月 | AQ61: 88.35771693 | AR61: 251.4559599 | AS61: 0 | AX61: 1965-01-10 | AY61: 仙台市青葉区 | BA61: 120.25 | BC61: MBq/km2.月 | BE61: 441.4376409 | BF61: 251.4559599 | BG61: 0 | BI61: 1983-04-30 | BL61: 0.2148148148 | BM61: 0.2740740741 | BW61: 0.9646084243 | BY61: 1.655894996 | BZ61: 0.4326083769 | CA61: 5.780320104 | CB61: 2.890160052 | CC61: 731.0406579 | CD61: 456.9004112
B62: S55.10／最後の大気圏内核実験(中国) | AG62: 1965-02-01 | AH62: 仙台市青葉区 | AM62: 27.75 | AO62: MBq/km2.月 | AQ62: 88.23491895 | AR62: 251.1070715 | AS62: 0 | AX62: 1965-02-01 | AY62: 仙台市青葉区 | BA62: 27.75 | BC62: MBq/km2.月 | BE62: 440.8251581 | BF62: 251.1070715 | BG62: 0 | BI62: 1983-05-09 | BS62: 0.2962962963 | BT62: 0.1925925926 | BU62: 0.4259259259 | BW62: 0.9640597735 | BY62: 1.654953154 | BZ62: 0.4323623176 | CA62: 5.776916764 | CB62: 2.888458382 | CC62: 730.0009042 | CD62: 456.2505652
B63: S56.10／測定開始(県原子力センター) | AG63: 1965-03-01 | AH63: 仙台市青葉区 | AM63: 41.81 | AO63: MBq/km2.月 | AQ63: 88.07887741 | AR63: 250.6637319 | AS63: 0 | AX63: 1965-03-01 | AY63: 仙台市青葉区 | BA63: 41.81 | BC63: MBq/km2.月 | BE63: 440.0468635 | BF63: 250.6637319 | BG63: 0 | BI63: 1983-05-19 | BN63: 0.562962963 | BP63: 0.8074074074 | BW63: 0.9634505274 | BY63: 1.653907292 | BZ63: 0.4320890824 | CA63: 5.773137627 | CB63: 2.886568813 | CC63: 728.8473567 | CD63: 455.5295979
B64: S59.6.1／１号機営業運転(女川) | AG64: 1965-04-01 | AH64: 仙台市青葉区 | AM64: 36.63 | AO64: MBq/km2.月 | AQ64: 87.90643899 | AR64: 250.1738045 | AS64: 0 | AX64: 1965-04-01 | AY64: 仙台市青葉区 | BA64: 36.63 | BC64: MBq/km2.月 | BE64: 439.1867829 | BF64: 250.1738045 | BG64: 0 | BI64: 1983-05-19 | BQ64: 0.07407407407 | BW64: 0.9634505274 | BY64: 1.653907292 | BZ64: 0.4320890824 | CA64: 5.773137627 | CB64: 2.886568813 | CC64: 728.8473567 | CD64: 455.5295979
B65: S61.4.26／チェルノブイリ事故(旧ソ連) | AG65: 1965-05-01 | AH65: 仙台市青葉区 | AM65: 66.97 | AO65: MBq/km2.月 | AQ65: 87.73988455 | AR65: 249.700593 | AS65: 0 | AX65: 1965-05-01 | AY65: 仙台市青葉区 | BA65: 66.97 | BC65: MBq/km2.月 | BE65: 438.3560475 | BF65: 249.700593 | BG65: 0 | BI65: 1983-05-31 | BJ65: 0.2851851852 | BW65: 0.9627199404 | BY65: 1.65265313 | BZ65: 0.4317614281 | CA65: 5.768605924 | CB65: 2.884302962 | CC65: 727.4655055 | CD65: 454.665941
B66: H7.7.28／２号機営業運転(女川) | AG66: 1965-06-01 | AH66: 仙台市青葉区 | AM66: 52.17 | AO66: MBq/km2.月 | AQ66: 87.56810981 | AR66: 249.2125481 | AS66: 0 | AX66: 1965-06-01 | AY66: 仙台市青葉区 | BA66: 52.17 | BC66: MBq/km2.月 | BE66: 437.4992716 | BF66: 249.2125481 | BG66: 0 | BI66: 1983-05-31 | BL66: 0.2148148148 | BM66: 0.2888888889 | BW66: 0.9627199404 | BY66: 1.65265313 | BZ66: 0.4317614281 | CA66: 5.768605924 | CB66: 2.884302962 | CC66: 727.4655055 | CD66: 454.665941
B67: H7.12.8／もんじゅNa漏洩事故(敦賀市) | AG67: 1965-07-01 | AH67: 仙台市青葉区 | AM67: 3.7 | AO67: MBq/km2.月 | AQ67: 87.4021964 | AR67: 248.7411548 | AS67: 0 | AX67: 1965-07-01 | AY67: 仙台市青葉区 | BA67: 3.7 | BC67: MBq/km2.月 | BE67: 436.6717282 | BF67: 248.7411548 | BG67: 0 | BI67: 1983-06-01 | BQ67: 0.1407407407 | BW67: 0.9626590831 | BY67: 1.652548659 | BZ67: 0.4317341348 | CA67: 5.768228443 | CB67: 2.884114222 | CC67: 727.3504696 | CD67: 454.5940435
B68: H11.9.30／JCO臨界事故(東海村) | AG68: 1965-08-01 | AH68: 仙台市青葉区 | AM68: 15.91 | AO68: MBq/km2.月 | AQ68: =100*2.71828^(-(0.69315/30.02)*(AG68-21794)/365.25) -> 87.23108277 | AR68: 248.2549851 | AS68: 0 | AX68: 1965-08-01 | AY68: 仙台市青葉区 | BA68: 15.91 | BC68: MBq/km2.月 | BE68: 435.8182444 | BF68: 248.2549851 | BG68: 0 | BI68: 1983-06-01 | BR68: 0.1296296296 | BW68: 0.9626590831 | BY68: 1.652548659 | BZ68: 0.4317341348 | CA68: 5.768228443 | CB68: 2.884114222 | CC68: 727.3504696 | CD68: 454.5940435
B69: H14.1.30／３号機営業運転(女川) | AG69: 1965-09-01 | AH69: 仙台市青葉区 | AM69: 8.88 | AO69: MBq/km2.月 | AQ69: 87.06030415 | AR69: 247.7697657 | AS69: 0 | AX69: 1965-09-01 | AY69: 仙台市青葉区 | BA69: 8.88 | BC69: MBq/km2.月 | BE69: 434.9664287 | BF69: 247.7697657 | BG69: 0 | BI69: 1983-06-30 | BJ69: 0.3518518519 | BW69: =1*2.71828^(-(0.69315/30.02)*(BI69-29866)/365.25) -> 0.9608958956 | BY69: 1.649521884 | BZ69: 0.430943379 | CA69: =6*2.71828^(-(0.69315/29)*(BI69-29866)/365.25) -> 5.757292226 | CB69: =3*2.71828^(-(0.69315/29)*(BI69-29866)/365.25) -> 2.878646113 | CC69: =800*2.71828^(-(0.69315/12)*(BI69-29866)/365.25) -> 724.0223288 | CD69: =500*2.71828^(-(0.69315/12)*(BI69-29866)/365.25) -> 452.5139555
B70: H19.716／中越沖地震(柏崎刈羽原発事故) | AG70: 1965-10-01 | AH70: 仙台市青葉区 | AM70: 0.74 | AO70: MBq/km2.月 | AQ70: 86.89535286 | AR70: 247.3011015 | AS70: 0 | AX70: 1965-10-01 | AY70: 仙台市青葉区 | BA70: 0.74 | BC70: MBq/km2.月 | BE70: 434.1436762 | BF70: 247.3011015 | BG70: 0 | BI70: 1983-06-30 | BL70: 0.2481481481 | BM70: 0.2814814815 | BW70: 0.9608958956 | BY70: 1.649521884 | BZ70: 0.430943379 | CA70: 5.757292226 | CB70: 2.878646113 | CC70: 724.0223288 | CD70: 452.5139555
B71: H23.3.11／東日本大震災･東京電力福島第1原発事故 | AG71: 1965-11-01 | AH71: 仙台市青葉区 | AM71: 94.35 | AO71: MBq/km2.月 | AQ71: 86.72523152 | AR71: 246.8177464 | AS71: 0 | AX71: 1965-11-01 | AY71: 仙台市青葉区 | BA71: 94.35 | BC71: MBq/km2.月 | BE71: 433.2951335 | BF71: 246.8177464 | BG71: 0 | BI71: 1983-07-26 | BQ71: 0.1111111111 | BW71: 0.9593178525 | BY71: 1.646812936 | BZ71: 0.430235657 | CA71: 5.74750497 | CB71: 2.873752485 | CC71: 721.0514276 | CD71: 450.6571422
AG72: 1965-12-01 | AH72: 仙台市青葉区 | AM72: 17.39 | AO72: MBq/km2.月 | AQ72: 86.56091509 | AR72: 246.350883 | AS72: 0 | AX72: 1965-12-01 | AY72: 仙台市青葉区 | BA72: 17.39 | BC72: MBq/km2.月 | BE72: 432.4755423 | BF72: 246.350883 | BG72: 0 | BI72: 1983-07-29 | BL72: 0.2703703704 | BM72: 0.2148148148 | BW72: 0.9591359375 | BY72: 1.646500652 | BZ72: 0.4301540716 | CA72: 5.746376743 | CB72: 2.873188371 | CC72: 720.7094167 | CD72: 450.4433854
AG73: 1966-01-01 | AH73: 仙台市青葉区 | AM73: 10.73 | AO73: MBq/km2.月 | AQ73: 86.3914485 | AR73: 245.8693852 | AS73: 0 | AX73: 1966-01-01 | AY73: 仙台市青葉区 | BA73: 10.73 | BC73: MBq/km2.月 | BE73: 431.6302601 | BF73: 245.8693852 | BG73: 0 | BI73: 1983-07-30 | BJ73: 0.2814814815 | BW73: 0.9590753068 | BY73: 1.64639657 | BZ73: 0.4301268799 | CA73: 5.746000716 | CB73: 2.873000358 | CC73: 720.5954491 | CD73: 450.3721557
AG74: 1966-02-01 | AH74: 仙台市青葉区 | AM74: 8.14 | AO74: MBq/km2.月 | AQ74: 86.22231369 | AR74: 245.3888284 | AS74: 0 | AX74: 1966-02-01 | AY74: 仙台市青葉区 | BA74: 8.14 | BC74: MBq/km2.月 | BE74: 430.7866299 | BF74: 245.3888284 | BG74: 0 | BI74: 1983-08-04 | BS74: 0.2444444444 | BT74: 0.2666666667 | BU74: 2.740740741 | BW74: 0.9587722109 | BY74: 1.64587626 | BZ74: 0.4299909472 | CA74: 5.744120952 | CB74: 2.872060476 | CC74: 720.0258815 | CD74: 450.0161759
AG75: 1966-03-01 | AH75: 仙台市青葉区 | AM75: 9.99 | AO75: MBq/km2.月 | AQ75: 86.0698314 | AR75: 244.9555846 | AS75: 0 | AX75: 1966-03-01 | AY75: 仙台市青葉区 | BA75: 9.99 | BC75: MBq/km2.月 | BE75: 430.0260587 | BF75: 244.9555846 | BG75: 0 | BI75: 1983-08-11 | BR75: 0.1740740741 | BW75: 0.9583480375 | BY75: 1.645148103 | BZ75: 0.4298007135 | CA75: 5.741490315 | CB75: 2.870745158 | CC75: 719.2292431 | CD75: 449.5182769
B76: 環境放射線監視センター | AG76: 1966-04-01 | AH76: 仙台市青葉区 | AM76: 24.79 | AO76: MBq/km2.月 | AQ76: 85.90132624 | AR76: 244.4768139 | AS76: 0 | AX76: 1966-04-01 | AY76: 仙台市青葉区 | BA76: 24.79 | BC76: MBq/km2.月 | BE76: 429.185564 | BF76: 244.4768139 | BG76: 0 | BI76: 1983-08-30 | BU76: 0.3851851852 | BW76: 0.9571976554 | BY76: 1.6431733 | BZ76: 0.4292847892 | CA76: 5.734356087 | CB76: 2.867178044 | CC76: 717.0713789 | CD76: 448.1696118
B77: 原子力安全対策課 | AG77: 1966-05-01 | AH77: 仙台市青葉区 | AM77: 30.71 | AO77: MBq/km2.月 | AQ77: 85.73857084 | AR77: 244.0143784 | AS77: 0 | AX77: 1966-05-01 | AY77: 仙台市青葉区 | BA77: 30.71 | BC77: MBq/km2.月 | BE77: 428.3737462 | BF77: 244.0143784 | BG77: 0 | BI77: 1983-08-31 | BJ77: 0.1 | BW77: 0.9571371473 | BY77: 1.643069429 | BZ77: 0.4292576525 | CA77: 5.733980847 | CB77: 2.866990424 | CC77: 716.9579867 | CD77: 448.0987417
B78: 放射能情報サイトみやぎ | AG78: 1966-06-01 | AH78: 仙台市青葉区 | AM78: 22.2 | AO78: MBq/km2.月 | AQ78: 85.57071422 | AR78: 243.5374473 | AS78: 0 | AX78: 1966-06-01 | AY78: 仙台市青葉区 | BA78: 22.2 | BC78: MBq/km2.月 | BE78: 427.536481 | BF78: 243.5374473 | BG78: 0 | BI78: 1983-08-31 | BL78: 0.0962962963 | BM78: 0.1037037037 | BW78: 0.9571371473 | BY78: 1.643069429 | BZ78: 0.4292576525 | CA78: 5.733980847 | CB78: 2.866990424 | CC78: 716.9579867 | CD78: 448.0987417
B79: kmdみやぎ | AG79: 1966-07-01 | AH79: 仙台市青葉区 | AM79: 1.48 | AO79: MBq/km2.月 | AQ79: 85.40858523 | AR79: 243.0767887 | AS79: 0 | AX79: 1966-07-01 | AY79: 仙台市青葉区 | BA79: 1.48 | BC79: MBq/km2.月 | BE79: 426.7277824 | BF79: 243.0767887 | BG79: 0 | BI79: 1983-09-05 | BQ79: 0.1037037037 | BW79: 0.9568346639 | BY79: 1.64255017 | BZ79: 0.4291219945 | CA79: 5.732105015 | CB79: 2.866052508 | CC79: 716.3912941 | CD79: 447.7445588
AG80: 1966-08-01 | AH80: 仙台市青葉区 | AM80: 8.51 | AO80: MBq/km2.月 | AQ80: 85.24137464 | AR80: 242.6016901 | AS80: 0 | AX80: 1966-08-01 | AY80: 仙台市青葉区 | BA80: 8.51 | BC80: MBq/km2.月 | BE80: 425.8937343 | BF80: 242.6016901 | BG80: 0 | BI80: 1983-09-30 | BJ80: 0.1 | BW80: 0.9553236801 | BY80: 1.63995634 | BZ80: 0.4284443473 | CA80: 5.722735057 | CB80: 2.861367529 | CC80: 713.5645432 | CD80: 445.9778395
B81: 循環型社会推進課 | AG81: 1966-09-01 | AH81: 仙台市青葉区 | AM81: 1.11 | AO81: MBq/km2.月 | AQ81: 85.07449141 | AR81: 242.1275202 | AS81: 0 | AX81: 1966-09-01 | AY81: 仙台市青葉区 | BA81: 1.11 | BC81: MBq/km2.月 | BE81: 425.0613163 | BF81: 242.1275202 | BG81: 0 | BI81: 1983-09-30 | BL81: 0.1074074074 | BM81: 0.162962963 | BW81: 0.9553236801 | BY81: =1.704*2.71828^(-(0.69315/30.02)*(BI81-29983)/365.25) -> 1.63995634 | BZ81: 0.4284443473 | CA81: 5.722735057 | CB81: 2.861367529 | CC81: 713.5645432 | CD81: 445.9778395
B82: 放射性物質汚染廃棄物対策室 | AG82: 1966-10-01 | AH82: 仙台市青葉区 | AM82: 4.44 | AO82: MBq/km2.月 | AQ82: 84.9133026 | AR82: 241.6695284 | AS82: 0 | AX82: 1966-10-01 | AY82: 仙台市青葉区 | BA82: 4.44 | BC82: MBq/km2.月 | BE82: 424.2572996 | BF82: 241.6695284 | BG82: 0 | BI82: 1983-10-27 | BQ82: 0.1666666667 | BW82: 0.9536944976 | BY82: 1.637159604 | BZ82: 0.4277136901 | CA82: 5.712632705 | CB82: 2.856316352 | CC82: 710.524179 | CD82: 444.0776119
AG83: 1966-11-01 | AH83: 仙台市青葉区 | AM83: 5.92 | AO83: MBq/km2.月 | AQ83: 84.74706166 | AR83: 241.1971804 | AS83: 0 | AX83: 1966-11-01 | AY83: 仙台市青葉区 | BA83: 5.92 | BC83: MBq/km2.月 | BE83: 423.42808 | BF83: 241.1971804 | BG83: 0 | BI83: 1983-10-31 | BJ83: 0.1074074074 | BK83: 0.1074074074 | BW83: 0.9534533736 | BY83: 1.636745679 | BZ83: 0.4276055507 | CA83: 5.711137578 | CB83: 2.855568789 | CC83: 710.0748577 | CD83: 443.7967861
AG84: 1966-12-01 | AH84: 仙台市青葉区 | AM84: 4.44 | AO84: MBq/km2.月 | AQ84: 84.58649323 | AR84: 240.7409485 | AS84: 0 | AX84: 1966-12-01 | AY84: 仙台市青葉区 | BA84: 4.44 | BC84: MBq/km2.月 | BE84: 422.6271527 | BF84: 240.7409485 | BG84: 0 | BI84: 1983-10-31 | BL84: 0.1074074074 | BM84: 0.1185185185 | BW84: 0.9534533736 | BY84: 1.636745679 | BZ84: 0.4276055507 | CA84: 5.711137578 | CB84: 2.855568789 | CC84: 710.0748577 | CD84: 443.7967861
AG85: 1967-01-02 | AH85: 仙台市青葉区 | AM85: 4.81 | AO85: MBq/km2.月 | AQ85: 84.41555554 | AR85: 240.2552522 | AS85: 0 | AX85: 1967-01-02 | AY85: 仙台市青葉区 | BA85: 4.81 | BC85: MBq/km2.月 | BE85: 421.7744999 | BF85: 240.2552522 | BG85: 0 | BI85: 1983-11-09 | BS85: 0.5703703704 | BT85: 0.3037037037 | BU85: 0.962962963 | BW85: 0.9529110675 | BY85: 1.635814729 | BZ85: 0.4273623368 | CA85: 5.707774972 | CB85: 2.853887486 | CC85: 709.0649235 | CD85: 443.1655772
AG86: 1967-02-02 | AH86: 仙台市青葉区 | AM86: 2.59 | AO86: MBq/km2.月 | AQ86: 84.25028908 | AR86: 239.7856684 | AS86: 0 | AX86: 1967-02-02 | AY86: 仙台市青葉区 | BA86: 2.59 | BC86: MBq/km2.月 | BE86: 420.9501331 | BF86: 239.7856684 | BG86: 0 | BI86: 1983-11-30 | BJ86: 0.0962962963 | BK86: 0.1888888889 | BW86: 0.951646886 | BY86: 1.633644572 | BZ86: 0.4267953756 | CA86: 5.699936589 | CB86: 2.849968294 | CC86: 706.7139929 | CD86: 441.6962456
AG87: 1967-03-01 | AH87: 仙台市青葉区 | AM87: 5.92 | AO87: MBq/km2.月 | AQ87: 84.10661097 | AR87: 239.3774239 | AS87: 0 | AX87: 1967-03-01 | AY87: 仙台市青葉区 | BA87: 5.92 | BC87: MBq/km2.月 | BE87: 420.233449 | BF87: 239.3774239 | BG87: 0 | BI87: 1983-11-30 | BL87: 0.1185185185 | BM87: 0.1074074074 | BW87: 0.951646886 | BY87: 1.633644572 | BZ87: 0.4267953756 | CA87: 5.699936589 | CB87: 2.849968294 | CC87: 706.7139929 | CD87: 441.6962456
AG88: 1967-04-01 | AH88: 仙台市青葉区 | AM88: 19.24 | AO88: MBq/km2.月 | AQ88: 83.94194935 | AR88: 238.9095559 | AS88: 0 | AX88: 1967-04-01 | AY88: 仙台市青葉区 | BA88: 19.24 | BC88: MBq/km2.月 | BE88: 419.4120942 | BF88: 238.9095559 | BG88: 0 | BI88: 1983-12-27 | BJ88: 0.09259259259 | BK88: 0.4444444444 | BW88: 0.9500239737 | BY88: 1.6308586 | BZ88: 0.4260675306 | CA88: 5.689874483 | CB88: 2.844937241 | CC88: 703.7028176 | CD88: 439.814261
AG89: 1967-05-01 | AH89: 仙台市青葉区 | AM89: 6.66 | AO89: MBq/km2.月 | AQ89: 83.78290634 | AR89: 238.457651 | AS89: 0 | AX89: 1967-05-01 | AY89: 仙台市青葉区 | BA89: 6.66 | BC89: MBq/km2.月 | BE89: 418.6187632 | BF89: 238.457651 | BG89: 0 | BI89: 1983-12-27 | BN89: 0.5296296296 | BO89: 0.1814814815 | BP89: 1.059259259 | BW89: 0.9500239737 | BY89: 1.6308586 | BZ89: 0.4260675306 | CA89: 5.689874483 | CB89: 2.844937241 | CC89: 703.7028176 | CD89: 439.814261
AG90: 1967-06-01 | AH90: 仙台市青葉区 | AM90: 21.46 | AO90: MBq/km2.月 | AQ90: 83.61887847 | AR90: 237.9915807 | AS90: 0 | AX90: 1967-06-01 | AY90: 仙台市青葉区 | BA90: 21.46 | BC90: MBq/km2.月 | BE90: 417.8005643 | BF90: 237.9915807 | BG90: 0 | BI90: 1983-12-28 | BL90: =0.03/2 -> 0.015 | BM90: =0.032/2 -> 0.016 | BW90: 0.949963919 | BY90: 1.630755507 | BZ90: 0.4260405972 | CA90: 5.689502154 | CB90: 2.844751077 | CC90: 703.5915393 | CD90: 439.7447121
AG91: 1967-07-01 | AH91: 仙台市青葉区 | AM91: 6.29 | AO91: MBq/km2.月 | AQ91: 83.46044757 | AR91: 237.5414122 | AS91: 0 | AX91: 1967-07-01 | AY91: 仙台市青葉区 | BA91: 6.29 | BC91: MBq/km2.月 | BE91: 417.0102815 | BF91: 237.5414122 | BG91: 0 | BI91: 1984-01-31 | BJ91: 0.08888888889 | BK91: 0.2 | BW91: 0.9479243171 | BY91: 1.627254224 | BZ91: 0.4251258749 | CA91: 5.676857444 | CB91: 2.838428722 | CC91: 699.8185295 | CD91: 437.386581
AG92: 1967-08-01 | AH92: 仙台市青葉区 | AM92: 1.85 | AO92: MBq/km2.月 | AQ92: 83.297051 | AR92: 237.0771327 | AS92: 0 | AX92: 1967-08-01 | AY92: 仙台市青葉区 | BA92: 1.85 | BC92: MBq/km2.月 | BE92: 416.1952264 | BF92: 237.0771327 | BG92: 0 | BI92: 1984-01-31 | BL92: =0.03/2 -> 0.015 | BM92: =0.032/2 -> 0.016 | BW92: 0.9479243171 | BY92: 1.627254224 | BZ92: 0.4251258749 | CA92: 5.676857444 | CB92: 2.838428722 | CC92: 699.8185295 | CD92: 437.386581
AG93: 1967-09-01 | AH93: 仙台市青葉区 | AM93: 2.96 | AO93: MBq/km2.月 | AQ93: 83.13397431 | AR93: 236.6137606 | AS93: 0 | AX93: 1967-09-01 | AY93: 仙台市青葉区 | BA93: 2.96 | BC93: MBq/km2.月 | BE93: 415.3817643 | BF93: 236.6137606 | BG93: 0 | BI93: 1984-02-10 | BS93: 0.4037037037 | BT93: 0.1814814815 | BU93: 0.3851851852 | BW93: 0.947325268 | BY93: 1.626225867 | BZ93: 0.4248572128 | CA93: 5.673143763 | CB93: 2.836571882 | CC93: 698.7126762 | CD93: 436.6954226
AG94: 1967-10-01 | AH94: 仙台市青葉区 | AM94: 1.48 | AO94: MBq/km2.月 | AQ94: 82.97646216 | AR94: 236.1661983 | AS94: 0 | AX94: 1967-10-01 | AY94: 仙台市青葉区 | BA94: 1.48 | BC94: MBq/km2.月 | BE94: 414.5960568 | BF94: 236.1661983 | BG94: 0 | BI94: 1984-02-29 | BJ94: 0.1222222222 | BK94: 0.3555555556 | BW94: 0.9461881175 | BY94: 1.624273777 | BZ94: 0.4243472226 | CA94: 5.666094461 | CB94: 2.83304723 | CC94: 696.6163668 | CD94: 435.3852292
AG95: 1967-11-01 | AH95: 仙台市青葉区 | AM95: 0.37 | AO95: MBq/km2.月 | AQ95: 82.81401312 | AR95: 235.7046067 | AS95: 0 | AX95: 1967-11-01 | AY95: 仙台市青葉区 | BA95: 0.37 | BC95: MBq/km2.月 | BE95: 413.7857204 | BF95: 235.7046067 | BG95: 0 | BI95: 1984-02-29 | BL95: 0.1259259259 | BM95: =0.032/2 -> 0.016 | BW95: 0.9461881175 | BY95: 1.624273777 | BZ95: 0.4243472226 | CA95: 5.666094461 | CB95: 2.83304723 | CC95: 696.6163668 | CD95: 435.3852292
AG96: 1967-12-01 | AH96: 仙台市青葉区 | AM96: 2.22 | AO96: MBq/km2.月 | AQ96: 82.65710718 | AR96: 235.2587641 | AS96: 0 | AX96: 1967-12-01 | AY96: 仙台市青葉区 | BA96: 2.22 | BC96: MBq/km2.月 | BE96: 413.0030319 | BF96: 235.2587641 | BG96: 0 | BI96: 1984-03-30 | BJ96: 0.162962963 | BK96: 0.5777777778 | BW96: 0.9443953952 | BY96: 1.621196301 | BZ96: 0.4235432211 | CA96: 5.654981813 | CB96: 2.827490907 | CC96: 693.3192026 | CD96: 433.3245016
AG97: 1968-01-01 | AH97: 仙台市青葉区 | AM97: 3.7 | AO97: MBq/km2.月 | AQ97: 82.49528337 | AR97: 234.798946 | AS97: 0 | AX97: 1968-01-01 | AY97: 仙台市青葉区 | BA97: 3.7 | BC97: MBq/km2.月 | BE97: 412.195809 | BF97: 234.798946 | BG97: 0 | BI97: 1984-03-30 | BL97: =0.03/2 -> 0.015 | BM97: 0.1222222222 | BW97: 0.9443953952 | BY97: 1.621196301 | BZ97: 0.4235432211 | CA97: 5.654981813 | CB97: 2.827490907 | CC97: 693.3192026 | CD97: 433.3245016
AG98: 1968-02-01 | AH98: 仙台市青葉区 | AM98: 5.55 | AO98: MBq/km2.月 | AQ98: 82.33377636 | AR98: 234.3400267 | AS98: 0 | AX98: 1968-02-01 | AY98: 仙台市青葉区 | BA98: 5.55 | BC98: MBq/km2.月 | BE98: 411.3901639 | BF98: 234.3400267 | BG98: 0 | BI98: 1984-04-27 | BL98: 0.237037037 | BM98: 0.1444444444 | BW98: 0.9427252524 | BY98: 1.61832925 | BZ98: 0.4227941941 | CA98: 5.644629673 | CB98: 2.822314836 | CC98: 690.2559307 | CD98: 431.4099567
AG99: 1968-03-01 | AH99: 仙台市青葉区 | AM99: 3.33 | AO99: MBq/km2.月 | AQ99: 82.18297543 | AR99: 233.9115271 | AS99: 0 | AX99: 1968-03-01 | AY99: 仙台市青葉区 | BA99: 3.33 | BC99: MBq/km2.月 | BE99: 410.6379214 | BF99: 233.9115271 | BG99: 0 | BI99: 1984-04-28 | BJ99: 0.1481481481 | BK99: 0.4148148148 | BW99: 0.9426656591 | BY99: 1.618226949 | BZ99: 0.4227674676 | CA99: 5.644260304 | CB99: 2.822130152 | CC99: 690.1467788 | CD99: 431.3417368
AG100: 1968-04-01 | AH100: 仙台市青葉区 | AM100: 6.29 | AO100: MBq/km2.月 | AQ100: 82.02207985 | AR100: 233.4543423 | AS100: 0 | AX100: 1968-04-01 | AY100: 仙台市青葉区 | BA100: 6.29 | BC100: MBq/km2.月 | BE100: 409.8353212 | BF100: 233.4543423 | BG100: 0 | BI100: 1984-05-09 | BS100: 0.1 | BT100: 0.0962962963 | BU100: 0.5259259259 | BW100: 0.9420103814 | BY100: 1.617102067 | BZ100: 0.4224735881 | CA100: 5.640198845 | CB100: 2.820099422 | CC100: 688.9472466 | CD100: 430.5920291
AG101: 1968-05-01 | AH101: 仙台市青葉区 | AM101: 10.73 | AO101: MBq/km2.月 | AQ101: 81.86667438 | AR101: 233.0127561 | AS101: 0 | AX101: 1968-05-01 | AY101: 仙台市青葉区 | BA101: 10.73 | BC101: MBq/km2.月 | BE101: 409.060105 | BF101: 233.0127561 | BG101: 0 | BI101: 1984-05-25 | BQ101: 0.04074074074 | BW101: 0.9410580632 | BY101: 1.61546727 | BZ101: =0.44*2.71828^(-(0.69315/30.02)*(BI101-30168)/365.25) -> 0.4220464917 | CA101: 5.634296484 | CB101: 2.817148242 | CC101: 687.2061933 | CD101: 429.5038708
AG102: 1968-06-01 | AH102: 仙台市青葉区 | AM102: 11.47 | AO102: MBq/km2.月 | AQ102: 81.70639805 | AR102: 232.5573279 | AS102: 0 | AX102: 1968-06-01 | AY102: 仙台市青葉区 | BA102: 11.47 | BC102: MBq/km2.月 | BE102: 408.2605887 | BF102: 232.5573279 | BG102: 0 | BI102: 1984-05-31 | BJ102: 0.1666666667 | BK102: 0.2740740741 | BW102: 0.9407011921 | BY102: 1.614854647 | BZ102: 0.4218864419 | CA102: 5.632084691 | CB102: 2.816042346 | CC102: 686.5544332 | CD102: 429.0965207
AG103: 1968-07-01 | AH103: 仙台市青葉区 | AM103: 7.03 | AO103: MBq/km2.月 | AQ103: 81.55159069 | AR103: 232.1174385 | AS103: 0 | AX103: 1968-07-01 | AY103: 仙台市青葉区 | BA103: 7.03 | BC103: MBq/km2.月 | BE103: 407.4883511 | BF103: 232.1174385 | BG103: 0 | BI103: 1984-05-31 | BL103: 0.162962963 | BM103: 0.1222222222 | BW103: 0.9407011921 | BY103: 1.614854647 | BZ103: 0.4218864419 | CA103: 5.632084691 | CB103: 2.816042346 | CC103: 686.5544332 | CD103: 429.0965207
AG104: 1968-08-01 | AH104: 仙台市青葉区 | AM104: 5.92 | AO104: MBq/km2.月 | AQ104: 81.39193122 | AR104: 231.6637602 | AS104: 0 | AX104: 1968-08-01 | AY104: 仙台市青葉区 | BA104: 5.92 | BC104: MBq/km2.月 | BE104: 406.6919068 | BF104: 231.6637602 | BG104: 0 | BI104: 1984-06-05 | BR104: 0.023 | BW104: 0.940403903 | BY104: 1.614344306 | BZ104: 0.4217531134 | CA104: 5.630242194 | CB104: 2.815121097 | CC104: 686.011772 | CD104: 428.7573575
AG105: 1968-09-01 | AH105: 仙台市青葉区 | AM105: 10.36 | AO105: MBq/km2.月 | AQ105: 81.23258433 | AR105: 231.2109687 | AS105: 0 | AX105: 1968-09-01 | AY105: 仙台市青葉区 | BA105: 10.36 | BC105: MBq/km2.月 | BE105: 405.8970192 | BF105: 231.2109687 | BG105: 0 | BI105: 1984-06-25 | BN105: 0.5259259259 | BO105: 0.1814814815 | BP105: 0.8259259259 | BW105: 0.9392156855 | BY105: 1.612304552 | BZ105: 0.4212202206 | CA105: 5.622878231 | CB105: 2.811439115 | CC105: 683.8454132 | CD105: 427.4033832
AG106: 1968-10-01 | AH106: 仙台市青葉区 | AM106: 4.07 | AO106: MBq/km2.月 | AQ106: 81.0786747 | AR106: 230.773626 | AS106: 0 | AX106: 1968-10-01 | AY106: 仙台市青葉区 | BA106: 4.07 | BC106: MBq/km2.月 | BE106: 405.1292524 | BF106: 230.773626 | BG106: 0 | BI106: 1984-06-29 | BL106: 0.1111111111 | BM106: 0.1185185185 | BW106: 0.9389782222 | BY106: 1.611896911 | BZ106: 0.4211137229 | CA106: 5.621406594 | CB106: 2.810703297 | CC106: 683.412963 | CD106: 427.1331019
AG107: 1968-11-01 | AH107: 仙台市青葉区 | AM107: 1.11 | AO107: MBq/km2.月 | AQ107: 80.91994109 | AR107: 230.3225742 | AS107: 0 | AX107: 1968-11-01 | AY107: 仙台市青葉区 | BA107: 1.11 | BC107: MBq/km2.月 | BE107: 404.337419 | BF107: 230.3225742 | BG107: 0 | BI107: 1984-06-30 | BJ107: 0.1296296296 | BK107: 0.4222222222 | BW107: 0.9389188658 | BY107: 1.611795017 | BZ107: 0.4210871027 | CA107: 5.621038745 | CB107: 2.810519373 | CC107: 683.3048932 | CD107: 427.0655583
AG108: 1968-12-01 | AH108: 仙台市青葉区 | AM108: 2.96 | AO108: MBq/km2.月 | AQ108: 80.76662382 | AR108: 229.8869119 | AS108: 0 | AX108: 1968-12-01 | AY108: 仙台市青葉区 | BA108: 2.96 | BC108: MBq/km2.月 | BE108: 403.5726022 | BF108: 229.8869119 | BG108: 0 | BI108: 1984-07-25 | BQ108: 0.07407407407 | BW108: 0.9374361737 | BY108: 1.609249753 | BZ108: 0.4204221437 | CA108: 5.611850341 | CB108: 2.80592517 | CC108: 680.6086953 | CD108: 425.3804346
AG109: 1969-01-01 | AH109: 仙台市青葉区 | AM109: 4.07 | AO109: MBq/km2.月 | AQ109: 80.60850113 | AR109: 229.4375932 | AS109: 0 | AX109: 1969-01-01 | AY109: 仙台市青葉区 | BA109: 4.07 | BC109: MBq/km2.月 | BE109: 402.7838113 | BF109: 229.4375932 | BG109: 0 | BI109: 1984-07-31 | BJ109: 0.05185185185 | BK109: 0.07407407407 | BW109: 0.9370806762 | BY109: 1.608639489 | BZ109: 0.4202627099 | CA109: 5.60964736 | CB109: 2.80482368 | CC109: 679.9631925 | CD109: 424.9769953
AG110: 1969-02-01 | AH110: 仙台市青葉区 | AM110: 2.59 | AO110: MBq/km2.月 | AQ110: 80.45068802 | AR110: 228.9891528 | AS110: 0 | AX110: 1969-02-01 | AY110: 仙台市青葉区 | BA110: 2.59 | BC110: MBq/km2.月 | BE110: 401.9965621 | BF110: 228.9891528 | BG110: 0 | BI110: 1984-07-31 | BL110: =0.03/2 -> 0.015 | BM110: =0.032/2 -> 0.016 | BW110: 0.9370806762 | BY110: 1.608639489 | BZ110: 0.4202627099 | CA110: 5.60964736 | CB110: 2.80482368 | CC110: 679.9631925 | CD110: 424.9769953
AG111: 1969-03-01 | AH111: 仙台市青葉区 | AM111: 4.81 | AO111: MBq/km2.月 | AQ111: 80.30841272 | AR111: 228.5848632 | AS111: 0 | AX111: 1969-03-01 | AY111: 仙台市青葉区 | BA111: 4.81 | BC111: MBq/km2.月 | BE111: 401.286821 | BF111: 228.5848632 | BG111: 0 | BI111: 1984-08-07 | BS111: 0.06666666667 | BT111: 0.08148148148 | BU111: 0.3555555556 | BW111: 0.9366660994 | BY111: 1.607927805 | BZ111: 0.4200767802 | CA111: 5.607078308 | CB111: 2.803539154 | CC111: 679.2108795 | CD111: 424.5067997
AG112: 1969-04-01 | AH112: 仙台市青葉区 | AM112: 2.59 | AO112: MBq/km2.月 | AQ112: 80.15118711 | AR112: 228.1380894 | AS112: 0 | AX112: 1969-04-01 | AY112: 仙台市青葉区 | BA112: 2.59 | BC112: MBq/km2.月 | BE112: 400.5024977 | BF112: 228.1380894 | BG112: 0 | BI112: 1984-08-16 | BR112: 0.023 | BW112: 0.9361333416 | BY112: 1.607013247 | BZ112: 0.4198378485 | CA112: 5.60377697 | CB112: 2.801888485 | CC112: 678.2448429 | CD112: 423.9030268
AG113: 1969-05-01 | AH113: 仙台市青葉区 | AM113: 8.14 | AO113: MBq/km2.月 | AQ113: 79.99932638 | AR113: 227.7065591 | AS113: 0 | AX113: 1969-05-01 | AY113: 仙台市青葉区 | BA113: 8.14 | BC113: MBq/km2.月 | BE113: 399.7449348 | BF113: 227.7065591 | BG113: 0 | BI113: 1984-08-31 | BJ113: 0.05185185185 | BK113: 0.07777777778 | BW113: 0.9352460853 | BY113: 1.605490138 | BZ113: 0.4194399311 | CA113: 5.598279059 | CB113: 2.79913953 | CC113: 676.6378342 | CD113: 422.8986464
AG114: 1969-06-02 | AH114: 仙台市青葉区 | AM114: 5.18 | AO114: MBq/km2.月 | AQ114: 79.83765872 | AR114: 227.2471598 | AS114: 0 | AX114: 1969-06-02 | AY114: 仙台市青葉区 | BA114: 5.18 | BC114: MBq/km2.月 | BE114: 398.938447 | BF114: 227.2471598 | BG114: 0 | BI114: 1984-08-31 | BL114: =0.03/2 -> 0.015 | BM114: =0.032/2 -> 0.016 | BW114: 0.9352460853 | BY114: 1.605490138 | BZ114: 0.4194399311 | CA114: 5.598279059 | CB114: 2.79913953 | CC114: 676.6378342 | CD114: 422.8986464
AG115: 1969-07-01 | AH115: 仙台市青葉区 | AM115: 9.62 | AO115: MBq/km2.月 | AQ115: 79.69142963 | AR115: 226.8316298 | AS115: 0 | AX115: 1969-07-01 | AY115: 仙台市青葉区 | BA115: 9.62 | BC115: MBq/km2.月 | BE115: 398.208973 | BF115: 226.8316298 | BG115: 0 | BI115: 1984-09-19 | BQ115: 0.1481481481 | BW115: 0.9341234344 | BY115: 1.60356294 | BZ115: 0.4189364437 | CA115: 5.591322782 | CB115: 2.795661391 | CC115: 674.6077548 | CD115: 421.6298468
AG116: 1969-08-01 | AH116: 仙台市青葉区 | AM116: 4.07 | AO116: MBq/km2.月 | AQ116: 79.53541193 | AR116: 226.3882828 | AS116: 0 | AX116: 1969-08-01 | AY116: 仙台市青葉区 | BA116: 4.07 | BC116: MBq/km2.月 | BE116: 397.4306655 | BF116: 226.3882828 | BG116: 0 | BI116: 1984-09-29 | BJ116: 0.04444444444 | BK116: 0.07777777778 | BW116: 0.9335331069 | BY116: 1.602549554 | BZ116: 0.4186716931 | CA116: 5.587665056 | CB116: 2.793832528 | CC116: 673.5417395 | CD116: 420.9635872
AG117: 1969-09-01 | AH117: 仙台市青葉区 | AM117: 2.22 | AO117: MBq/km2.月 | AQ117: 79.37969968 | AR117: 225.9458023 | AS117: 0 | AX117: 1969-09-01 | AY117: 仙台市青葉区 | BA117: 2.22 | BC117: MBq/km2.月 | BE117: 396.6538791 | BF117: 225.9458023 | BG117: 0 | BI117: 1984-09-29 | BL117: =0.03/2 -> 0.015 | BM117: =0.032/2 -> 0.016 | BW117: 0.9335331069 | BY117: 1.602549554 | BZ117: 0.4186716931 | CA117: 5.587665056 | CB117: 2.793832528 | CC117: 673.5417395 | CD117: 420.9635872
AG118: 1969-10-01 | AH118: 仙台市青葉区 | AM118: 2.59 | AO118: MBq/km2.月 | AQ118: 79.22930067 | AR118: 225.5184188 | AS118: 0 | AX118: 1969-10-01 | AY118: 仙台市青葉区 | BA118: 2.59 | BC118: MBq/km2.月 | BE118: 395.903596 | BF118: 225.5184188 | BG118: 0 | BI118: 1984-10-31 | BJ118: 0.05185185185 | BK118: 0.07777777778 | BW118: 0.9316465646 | BY118: 1.599311021 | BZ118: 0.4178256151 | CA118: 5.575976404 | CB118: 2.787988202 | CC118: 670.1417975 | CD118: 418.8386234
AG119: 1969-11-01 | AH119: 仙台市青葉区 | AM119: 0.37 | AO119: MBq/km2.月 | AQ119: 79.07418772 | AR119: 225.0776384 | AS119: 0 | AX119: 1969-11-01 | AY119: 仙台市青葉区 | BA119: 0.37 | BC119: MBq/km2.月 | BE119: 395.1297943 | BF119: 225.0776384 | BG119: 0 | BI119: 1984-10-31 | BL119: =0.03/2 -> 0.015 | BM119: =0.032/2 -> 0.016 | BW119: 0.9316465646 | BY119: 1.599311021 | BZ119: 0.4178256151 | CA119: 5.575976404 | CB119: 2.787988202 | CC119: 670.1417975 | CD119: 418.8386234
AG120: 1969-12-01 | AH120: 仙台市青葉区 | AM120: 0.37 | AO120: MBq/km2.月 | AQ120: 78.92436756 | AR120: 224.6518971 | AS120: 0 | AX120: 1969-12-01 | AY120: 仙台市青葉区 | BA120: 0.37 | BC120: MBq/km2.月 | BE120: 394.3823941 | BF120: 224.6518971 | BG120: 0 | BI120: 1984-11-14 | BS120: 0.07777777778 | BT120: 0.08888888889 | BU120: 0.3777777778 | BW120: 0.9308224017 | BY120: 1.597896222 | BZ120: 0.4174559938 | CA120: 5.570870311 | CB120: 2.785435155 | CC120: 668.6597247 | CD120: 417.9123279
AG121: 1970-01-01 | AH121: 仙台市青葉区 | AM121: 2.22 | AO121: MBq/km2.月 | AQ121: 78.76985159 | AR121: 224.2128103 | AS121: 0 | AX121: 1970-01-01 | AY121: 仙台市青葉区 | BA121: 2.22 | BC121: MBq/km2.月 | BE121: 393.6115656 | BF121: 224.2128103 | BG121: 0 | BI121: 1984-11-30 | BJ121: 0.06666666667 | BK121: 0.08518518519 | BW121: 0.9298813939 | BY121: 1.596280841 | BZ121: 0.4170339699 | CA121: 5.565040501 | CB121: 2.78252025 | CC121: 666.9699404 | CD121: 416.8562127
AG122: 1970-02-01 | AH122: 仙台市青葉区 | AM122: 1.11 | AO122: MBq/km2.月 | AQ122: 78.61563814 | AR122: 223.7745818 | AS122: 0 | AX122: 1970-02-01 | AY122: 仙台市青葉区 | BA122: 1.11 | BC122: MBq/km2.月 | BE122: 392.8422438 | BF122: 223.7745818 | BG122: 0 | BI122: 1984-11-30 | BL122: =0.03/2 -> 0.015 | BM122: =0.032/2 -> 0.016 | BW122: 0.9298813939 | BY122: 1.596280841 | BZ122: 0.4170339699 | CA122: 5.565040501 | CB122: 2.78252025 | CC122: 666.9699404 | CD122: 416.8562127
AG123: 1970-03-01 | AH123: 仙台市青葉区 | AM123: 4.44 | AO123: MBq/km2.月 | AQ123: 78.47660808 | AR123: 223.3794988 | AS123: 0 | AX123: 1970-03-01 | AY123: 仙台市青葉区 | BA123: 4.44 | BC123: MBq/km2.月 | BE123: 392.148665 | BF123: 223.3794988 | BG123: 0 | BI123: 1984-12-11 | BN123: 0.5074074074 | BO123: 0.2555555556 | BP123: 1 | BW123: 0.929235003 | BY123: 1.595171214 | BZ123: 0.4167440759 | CA123: 5.561036046 | CB123: 2.780518023 | CC123: 665.8106914 | CD123: 416.1316821
AG124: 1970-04-01 | AH124: 仙台市青葉区 | AM124: 5.55 | AO124: MBq/km2.月 | AQ124: 78.32296873 | AR124: 222.942899 | AS124: 0 | AX124: 1970-04-01 | AY124: 仙台市青葉区 | BA124: 5.55 | BC124: MBq/km2.月 | BE124: 391.3822024 | BF124: 222.942899 | BG124: 0 | BI124: 1984-12-27 | BJ124: 0.05925925926 | BK124: 0.1037037037 | BW124: 0.9282955999 | BY124: 1.593558588 | BZ124: 0.4163227717 | CA124: 5.555216527 | CB124: 2.777608264 | CC124: 664.1281069 | CD124: 415.0800668
AG125: 1970-05-01 | AH125: 仙台市青葉区 | AM125: 11.1 | AO125: MBq/km2.月 | AQ125: 78.17457188 | AR125: 222.5211956 | AS125: 0 | AX125: 1970-05-01 | AY125: 仙台市青葉区 | BA125: 11.1 | BC125: MBq/km2.月 | BE125: 390.6418908 | BF125: 222.5211956 | BG125: 0 | BI125: 1984-12-28 | BL125: =0.03/2 -> 0.015 | BM125: =0.032/2 -> 0.016 | BW125: 0.9282369188 | BY125: 1.593457853 | BZ125: 0.4162964543 | CA125: 5.554853009 | CB125: 2.777426505 | CC125: 664.0230867 | CD125: 415.0144292
AG126: 1970-06-01 | AH126: 仙台市青葉区 | AM126: 11.84 | AO126: MBq/km2.月 | AQ126: 78.02152385 | AR126: 222.0862734 | AS126: 0 | AX126: 1970-06-01 | AY126: 仙台市青葉区 | BA126: 11.84 | BC126: MBq/km2.月 | BE126: 389.8783732 | BF126: 222.0862734 | BG126: 0 | BI126: 1985-01-31 | BL126: =0.03/2 -> 0.015 | BM126: =0.032/2 -> 0.016 | BW126: 0.9262439654 | BY126: 1.59003665 | BZ126: 0.415402653 | CA126: 5.542507553 | CB126: 2.771253776 | CC126: 660.4622628 | CD126: 412.7889142
AG127: 1970-07-01 | AH127: 仙台市青葉区 | AM127: 11.1 | AO127: MBq/km2.月 | AQ127: 77.87369814 | AR127: 221.6661903 | AS127: 0 | AX127: 1970-07-01 | AY127: 仙台市青葉区 | BA127: 11.1 | BC127: MBq/km2.月 | BE127: 389.1409062 | BF127: 221.6661903 | BG127: 0 | BI127: 1985-02-01 | BJ127: 0.1185185185 | BK127: 0.4740740741 | BW127: 0.926185414 | BY127: 1.589936137 | BZ127: 0.4153763938 | CA127: 5.542144867 | CB127: 2.771072433 | CC127: 660.3578222 | CD127: 412.7236389
AG128: 1970-08-01 | AH128: 仙台市青葉区 | AM128: 5.92 | AO128: MBq/km2.月 | AQ128: 77.72123915 | AR128: 221.2329392 | AS128: 0 | AX128: 1970-08-01 | AY128: 仙台市青葉区 | BA128: 5.92 | BC128: MBq/km2.月 | BE128: 388.3803224 | BF128: 221.2329392 | BG128: 0 | BI128: 1985-02-05 | BS128: 0.08148148148 | BT128: 0.1296296296 | BU128: 0.4666666667 | BW128: 0.9259512452 | BY128: 1.589534152 | BZ128: 0.4152713735 | CA128: 5.54069436 | CB128: 2.77034718 | CC128: 659.9402252 | CD128: 412.4626407
AG129: 1970-09-01 | AH129: 仙台市青葉区 | AM129: 2.59 | AO129: MBq/km2.月 | AQ129: 77.56907864 | AR129: 220.8005349 | AS129: 0 | AX129: 1970-09-01 | AY129: 仙台市青葉区 | BA129: 2.59 | BC129: MBq/km2.月 | BE129: 387.6212251 | BF129: 220.8005349 | BG129: 0 | BI129: 1985-02-28 | BJ129: 0.1111111111 | BK129: 0.3592592593 | BW129: 0.924605923 | BY129: 1.587224704 | BZ129: 0.4146680224 | CA129: 5.532361311 | CB129: 2.766180655 | CC129: 657.5441618 | CD129: 410.9651011
AG130: 1970-10-01 | AH130: 仙台市青葉区 | AM130: 2.96 | AO130: MBq/km2.月 | AQ130: 77.42211017 | AR130: 220.3828838 | AS130: 0 | AX130: 1970-10-01 | AY130: 仙台市青葉区 | BA130: 2.96 | BC130: MBq/km2.月 | BE130: 386.8880275 | BF130: 220.3828838 | BG130: 0 | BI130: 1985-02-28 | BL130: 0.137037037 | BM130: 0.09259259259 | BW130: 0.924605923 | BY130: 1.587224704 | BZ130: 0.4146680224 | CA130: 5.532361311 | CB130: 2.766180655 | CC130: 657.5441618 | CD130: 410.9651011
AG131: 1970-11-01 | AH131: 仙台市青葉区 | AM131: 6.66 | AO131: MBq/km2.月 | AQ131: 77.27053529 | AR131: 219.952141 | AS131: 0 | AX131: 1970-11-01 | AY131: 仙台市青葉区 | BA131: 6.66 | BC131: MBq/km2.月 | BE131: 386.131847 | BF131: 219.952141 | BG131: 0 | BI131: 1985-03-29 | BJ131: 0.0962962963 | BK131: 0.1296296296 | BW131: 0.9229124329 | BY131: 1.584317575 | BZ131: 0.4139085245 | CA131: 5.521872283 | CB131: 2.760936142 | CC131: 654.5354341 | CD131: 409.0846463
AG132: 1970-12-01 | AH132: 仙台市青葉区 | AM132: 0.74 | AO132: MBq/km2.月 | AQ132: =100*2.71828^(-(0.69315/30.02)*(AG132-21794)/365.25) -> 77.12413247 | AR132: 219.5360947 | AS132: 0 | AX132: 1970-12-01 | AY132: 仙台市青葉区 | BA132: 0.74 | BC132: MBq/km2.月 | BE132: 385.4014666 | BF132: 219.5360947 | BG132: 0 | BI132: 1985-03-29 | BL132: 0.1148148148 | BM132: 0.1148148148 | BW132: 0.9229124329 | BY132: 1.584317575 | BZ132: 0.4139085245 | CA132: 5.521872283 | CB132: 2.760936142 | CC132: 654.5354341 | CD132: 409.0846463
AG133: 1971-01-01 | AH133: 仙台市青葉区 | AM133: 1.85 | AO133: MBq/km2.月 | AQ133: 76.97314095 | AR133: 219.1070069 | AS133: 0 | AX133: 1971-01-01 | AY133: 仙台市青葉区 | BA133: 1.85 | BC133: MBq/km2.月 | BE133: 384.6481915 | BF133: 219.1070069 | BG133: 0 | BI133: 1985-04-30 | BJ133: 0.1518518519 | BK133: 0.2481481481 | BW133: =1*2.71828^(-(0.69315/30.02)*(BI133-29866)/365.25) -> 0.9210473536 | BY133: 1.581115886 | BZ133: 0.4130720722 | CA133: =6*2.71828^(-(0.69315/29)*(BI133-29866)/365.25) -> 5.510321261 | CB133: =3*2.71828^(-(0.69315/29)*(BI133-29866)/365.25) -> 2.755160631 | CC133: =800*2.71828^(-(0.69315/12)*(BI133-29866)/365.25) -> 651.2314331 | CD133: =500*2.71828^(-(0.69315/12)*(BI133-29866)/365.25) -> 407.0196457
AG134: 1971-02-01 | AH134: 仙台市青葉区 | AM134: 2.96 | AO134: MBq/km2.月 | AQ134: 76.82244505 | AR134: 218.6787578 | AS134: 0 | AX134: 1971-02-01 | AY134: 仙台市青葉区 | BA134: 2.96 | BC134: MBq/km2.月 | BE134: 383.8963888 | BF134: 218.6787578 | BG134: 0 | BI134: 1985-04-30 | BL134: 0.07777777778 | BM134: 0.1185185185 | BW134: 0.9210473536 | BY134: 1.581115886 | BZ134: 0.4130720722 | CA134: 5.510321261 | CB134: 2.755160631 | CC134: 651.2314331 | CD134: 407.0196457
AG135: 1971-03-01 | AH135: 仙台市青葉区 | AM135: 3.33 | AO135: MBq/km2.月 | AQ135: 76.68658622 | AR135: 218.2926716 | AS135: 0 | AX135: 1971-03-01 | AY135: 仙台市青葉区 | BA135: 3.33 | BC135: MBq/km2.月 | BE135: 383.2186042 | BF135: 218.2926716 | BG135: 0 | BI135: 1985-05-16 | BS135: 0.07407407407 | BT135: 0.08888888889 | BU135: 0.2296296296 | BW135: 0.9201162278 | BY135: 1.579517469 | BZ135: 0.4126544802 | CA135: 5.504554815 | CB135: 2.752277407 | CC135: 649.5856922 | CD135: 405.9910576
AG136: 1971-04-01 | AH136: 仙台市青葉区 | AM136: 18.5 | AO136: MBq/km2.月 | AQ136: 76.53645132 | AR136: 217.8660141 | AS136: 0 | AX136: 1971-04-01 | AY136: 仙台市青葉区 | BA136: 18.5 | BC136: MBq/km2.月 | BE136: 382.4695956 | BF136: 217.8660141 | BG136: 0 | BI136: 1985-05-20 | BQ136: 0.02222222222 | BW136: 0.9198835935 | BY136: 1.579118118 | BZ136: 0.4125501482 | CA136: 5.503114146 | CB136: 2.751557073 | CC136: 649.1749072 | CD136: 405.734317
AG137: 1971-05-01 | AH137: 仙台市青葉区 | AM137: 9.99 | AO137: MBq/km2.月 | AQ137: 76.39143935 | AR137: 217.4539138 | AS137: 0 | AX137: 1971-05-01 | AY137: 仙台市青葉区 | BA137: 9.99 | BC137: MBq/km2.月 | BE137: 381.7461425 | BF137: 217.4539138 | BG137: 0 | BI137: 1985-05-31 | BJ137: 0.09259259259 | BK137: 0.2222222222 | BW137: 0.9192441523 | BY137: 1.578020421 | BZ137: 0.4122633711 | CA137: 5.499154252 | CB137: 2.749577126 | CC137: 648.0465875 | CD137: 405.0291172
AG138: 1971-06-01 | AH138: 仙台市青葉区 | AM138: 11.47 | AO138: MBq/km2.月 | AQ138: 76.24188228 | AR138: 217.0288957 | AS138: 0 | AX138: 1971-06-01 | AY138: 仙台市青葉区 | BA138: 11.47 | BC138: MBq/km2.月 | BE138: 381.0000119 | BF138: 217.0288957 | BG138: 0 | BI138: 1985-05-31 | BL138: 0.07777777778 | BM138: 0.05925925926 | BW138: 0.9192441523 | BY138: 1.578020421 | BZ138: 0.4122633711 | CA138: 5.499154252 | CB138: 2.749577126 | CC138: 648.0465875 | CD138: 405.0291172
AG139: 1971-07-01 | AH139: 仙台市青葉区 | AM139: 11.84 | AO139: MBq/km2.月 | AQ139: 76.09742843 | AR139: 216.6183788 | AS139: 0 | AX139: 1971-07-01 | AY139: 仙台市青葉区 | BA139: 11.84 | BC139: MBq/km2.月 | BE139: 380.2793386 | BF139: 216.6183788 | BG139: 0 | BI139: 1985-06-10 | BN139: 0.4740740741 | BO139: 0.3 | BP139: 0.8777777778 | BW139: 0.9186632279 | BX139: =0.3*2.71828^(-(0.69315/30.02)*(BI139-31208)/365.25) -> 0.3 | BY139: 1.577023177 | BZ139: 0.4120028376 | CA139: 5.49555682 | CB139: 2.74777841 | CC139: 647.0225442 | CD139: 404.3890901
AG140: 1971-08-01 | AH140: 仙台市青葉区 | AM140: 7.77 | AO140: MBq/km2.月 | AQ140: 75.94844697 | AR140: 216.1949937 | AS140: 0 | AX140: 1971-08-01 | AY140: 仙台市青葉区 | BA140: 7.77 | BC140: MBq/km2.月 | BE140: 379.5360748 | BF140: 216.1949937 | BG140: 0 | BI140: 1985-06-17 | BR140: 0.023 | BW140: 0.9182567993 | BX140: =0.3*2.71828^(-(0.69315/30.02)*(BI140-31208)/365.25) -> 0.2998672761 | BY140: 1.576325481 | BZ140: 0.4118205621 | CA140: 5.493040019 | CB140: 2.746520009 | CC140: 646.3066768 | CD140: 403.941673
AG141: 1971-09-01 | AH141: 仙台市青葉区 | AM141: 4.07 | AO141: MBq/km2.月 | AQ141: 75.79975718 | AR141: 215.7724362 | AS141: 0 | AX141: 1971-09-01 | AY141: 仙台市青葉区 | BA141: 4.07 | BC141: MBq/km2.月 | BE141: 378.7942638 | BF141: 215.7724362 | BG141: 0 | BI141: 1985-06-28 | BL141: 0.06666666667 | BM141: 0.06666666667 | BW141: 0.9176184889 | BX141: 0.2996588285 | BY141: 1.575229726 | BZ141: 0.4115342922 | CA141: 5.489087373 | CB141: 2.744543687 | CC141: 645.1833423 | CD141: 403.2395889
AG142: 1971-10-01 | AH142: 仙台市青葉区 | AM142: 2.22 | AO142: MBq/km2.月 | AQ142: 75.65614101 | AR142: 215.3642959 | AS142: 0 | AX142: 1971-10-01 | AY142: 仙台市青葉区 | BA142: 2.22 | BC142: MBq/km2.月 | BE142: 378.0777627 | BF142: 215.3642959 | BG142: 0 | BI142: 1985-06-29 | BJ142: 0.1 | BK142: 0.1111111111 | BW142: 0.9175604827 | BX142: 0.2996398859 | BY142: 1.57513015 | BZ142: 0.4115082775 | CA142: 5.488728183 | CB142: 2.744364091 | CC142: 645.0813179 | CD142: 403.1758237
AG143: 1971-11-01 | AH143: 仙台市青葉区 | AM143: 1.48 | AO143: MBq/km2.月 | AQ143: 75.50802349 | AR143: 214.943362 | AS143: 0 | AX143: 1971-11-01 | AY143: 仙台市青葉区 | BA143: 1.48 | BC143: MBq/km2.月 | BE143: 377.338802 | BF143: 214.943362 | BG143: 0 | BI143: 1985-07-25 | BQ143: 0.1 | BW143: 0.9160536078 | BX143: 0.2991477987 | BY143: 1.572543373 | BZ143: 0.410832473 | CA143: 5.47939748 | CB143: 2.73969874 | CC143: 642.4343375 | CD143: 401.5214609
AG144: 1971-12-01 | AH144: 仙台市青葉区 | AM144: 0.37 | AO144: MBq/km2.月 | AQ144: 75.36496006 | AR144: 214.53679 | AS144: 0 | AX144: 1971-12-01 | AY144: 仙台市青葉区 | BA144: 0.37 | BC144: MBq/km2.月 | BE144: 376.6250539 | BF144: 214.53679 | BG144: 0 | BI144: 1985-07-31 | BJ144: 0.04074074074 | BK144: =0.024/2 -> 0.012 | BW144: 0.915706219 | BX144: 0.2990343549 | BY144: 1.571947028 | BZ144: 0.4106766758 | CA144: 5.477246494 | CB144: 2.738623247 | CC144: 641.8250399 | CD144: 401.14065
AG145: 1972-01-01 | AH145: 仙台市青葉区 | AM145: 6.29 | AO145: MBq/km2.月 | AQ145: 75.21741261 | AR145: 214.1174734 | AS145: 0 | AX145: 1972-01-01 | AY145: 仙台市青葉区 | BA145: 6.29 | BC145: MBq/km2.月 | BE145: 375.8889326 | BF145: 214.1174734 | BG145: 0 | BI145: 1985-07-31 | BL145: =0.03/2 -> 0.015 | BM145: =0.032/2 -> 0.016 | BW145: 0.915706219 | BX145: 0.2990343549 | BY145: =1.704*2.71828^(-(0.69315/30.02)*(BI145-29983)/365.25) -> 1.571947028 | BZ145: 0.4106766758 | CA145: 5.477246494 | CB145: 2.738623247 | CC145: 641.8250399 | CD145: 401.14065
AG146: 1972-02-01 | AH146: 仙台市青葉区 | AM146: 2.96 | AO146: MBq/km2.月 | AQ146: 75.07015402 | AR146: 213.6989765 | AS146: 0 | AX146: 1972-02-01 | AY146: 仙台市青葉区 | BA146: 2.96 | BC146: MBq/km2.月 | BE146: 375.15425 | BF146: 213.6989765 | BG146: 0 | BI146: 1985-08-06 | BR146: 0.08888888889 | BW146: 0.9153589619 | BX146: 0.2989209541 | BY146: 1.571350909 | BZ146: 0.4105209377 | CA146: 5.475096353 | CB146: 2.737548176 | CC146: 641.2163202 | CD146: 400.7602002
AG147: 1972-03-01 | AH147: 仙台市青葉区 | AM147: 2.96 | AO147: MBq/km2.月 | AQ147: 74.93265699 | AR147: 213.3082198 | AS147: 0 | AX147: 1972-03-01 | AY147: 仙台市青葉区 | BA147: 2.96 | BC147: MBq/km2.月 | BE147: 374.4682663 | BF147: 213.3082198 | BG147: 0 | BI147: 1985-08-07 | BS147: 0.08148148148 | BT147: 0.1 | BU147: 0.3037037037 | BW147: 0.9153010986 | BX147: 0.2989020581 | BY147: 1.571251578 | BZ147: 0.4104949871 | CA147: 5.474738078 | CB147: 2.737369039 | CC147: 641.1149231 | CD147: 400.6968269
AG148: 1972-04-01 | AH148: 仙台市青葉区 | AM148: 1.48 | AO148: MBq/km2.月 | AQ148: 74.78595589 | AR148: 212.8913046 | AS148: 0 | AX148: 1972-04-01 | AY148: 仙台市青葉区 | BA148: 1.48 | BC148: MBq/km2.月 | BE148: 373.7363604 | BF148: 212.8913046 | BG148: 0 | BI148: 1985-08-30 | BJ148: 0.03703703704 | BK148: 0.08148148148 | BW148: 0.9139712501 | BX148: 0.2984677809 | BY148: 1.568968694 | BZ148: 0.4098985755 | CA148: 5.466504225 | CB148: 2.733252112 | CC148: 638.7872093 | CD148: 399.2420058
AG149: 1972-05-01 | AH149: 仙台市宮城野区 | AL149: 3.33 | AO149: MBq/km2.月 | AQ149: 74.64426055 | AT149: 373.0294265 | AU149: 212.4886141 | AV149: 0 | AX149: 1972-05-01 | AY149: 仙台市宮城野区 | AZ149: 3.33 | BC149: MBq/km2.月 | BE149: 373.0294265 | BF149: 212.4886141 | BG149: 0 | BI149: 1985-08-30 | BL149: =0.03/2 -> 0.015 | BM149: =0.032/2 -> 0.016 | BW149: 0.9139712501 | BX149: 0.2984677809 | BY149: 1.568968694 | BZ149: 0.4098985755 | CA149: 5.466504225 | CB149: 2.733252112 | CC149: 638.7872093 | CD149: 399.2420058
AG150: 1972-06-01 | AH150: 仙台市宮城野区 | AL150: 3.33 | AO150: MBq/km2.月 | AQ150: 74.49812406 | AT150: 372.3003329 | AU150: 212.0733007 | AV150: 0 | AX150: 1972-06-01 | AY150: 仙台市宮城野区 | AZ150: 3.33 | BC150: MBq/km2.月 | BE150: 372.3003329 | BF150: 212.0733007 | BG150: 0 | BI150: 1985-09-04 | BQ150: 0.1333333333 | BW150: 0.9136824084 | BX150: 0.2983734563 | BY150: 1.568472854 | BZ150: 0.4097690356 | CA150: 5.464715896 | CB150: 2.732357948 | CC150: 638.2823039 | CD150: 398.9264399
AG151: 1972-07-01 | AH151: 仙台市宮城野区 | AL151: 3.33 | AO151: MBq/km2.月 | AQ151: 74.35697407 | AT151: 371.5961152 | AU151: 211.6721575 | AV151: 0 | AX151: 1972-07-01 | AY151: 仙台市宮城野区 | AZ151: 3.33 | BC151: MBq/km2.月 | BE151: 371.5961152 | BF151: 211.6721575 | BG151: 0 | BI151: 1985-09-30 | BL151: =0.03/2 -> 0.015 | BM151: =0.032/2 -> 0.016 | BW151: 0.9121819022 | BX151: 0.2978834489 | BY151: 1.56589701 | BZ151: 0.4090960873 | CA151: 5.455426013 | CB151: 2.727713007 | CC151: 635.6632221 | CD151: 397.2895138
AG152: 1972-08-01 | AH152: 仙台市宮城野区 | AL152: 2.59 | AO152: MBq/km2.月 | AQ152: 74.21140002 | AT152: 370.869823 | AU152: 211.2584399 | AV152: 0 | AX152: 1972-08-01 | AY152: 仙台市宮城野区 | AZ152: 2.59 | BC152: MBq/km2.月 | BE152: 370.869823 | BF152: 211.2584399 | BG152: 0 | BI152: 1985-10-01 | BJ152: =0.021/2 -> 0.0105 | BK152: =0.024/2 -> 0.012 | BW152: 0.9121242397 | BX152: 0.2978646185 | BY152: 1.565798023 | BZ152: 0.4090702268 | CA152: 5.455069026 | CB152: 2.727534513 | CC152: 635.5627031 | CD152: 397.2266894
AG153: 1972-09-01 | AH153: 仙台市宮城野区 | AL153: 2.22 | AO153: MBq/km2.月 | AQ153: 74.06611098 | AT153: 370.1449504 | AU153: 210.845531 | AV153: 0 | AX153: 1972-09-01 | AY153: 仙台市宮城野区 | AZ153: 2.22 | BC153: MBq/km2.月 | BE153: 370.1449504 | BF153: 210.845531 | BG153: 0 | BI153: 1985-10-31 | BJ153: =0.021/2 -> 0.0105 | BK153: 0.0962962963 | BW153: 0.9103960575 | BX153: 0.2973002608 | BY153: 1.562831339 | BZ153: 0.4082951702 | CA153: 5.444370252 | CB153: 2.722185126 | CC153: 632.5545128 | CD153: 395.3465705
AG154: 1972-10-01 | AH154: 仙台市宮城野区 | AL154: 0.74 | AO154: MBq/km2.月 | AQ154: 73.92577951 | AT154: 369.4448097 | AU154: 210.4467101 | AV154: 0 | AX154: 1972-10-01 | AY154: 仙台市宮城野区 | AZ154: 0.74 | BC154: MBq/km2.月 | BE154: 369.4448097 | BF154: 210.4467101 | BG154: 0 | BI154: 1985-10-31 | BL154: =0.03/2 -> 0.015 | BM154: =0.032/2 -> 0.016 | BW154: 0.9103960575 | BX154: 0.2973002608 | BY154: 1.562831339 | BZ154: 0.4082951702 | CA154: 5.444370252 | CB154: 2.722185126 | CC154: 632.5545128 | CD154: 395.3465705
AG155: 1972-11-01 | AH155: 仙台市宮城野区 | AL155: 0.74 | AO155: MBq/km2.月 | AQ155: 73.78104964 | AT155: 368.7227223 | AU155: 210.0353877 | AV155: 0 | AX155: 1972-11-01 | AY155: 仙台市宮城野区 | AZ155: 0.74 | BC155: MBq/km2.月 | BE155: 368.7227223 | BF155: 210.0353877 | BG155: 0 | BI155: 1985-11-14 | BS155: 0.05555555556 | BT155: 0.08518518519 | BU155: 0.4925925926 | BW155: 0.9095906934 | BX155: 0.2970372599 | BY155: 1.561448811 | BZ155: 0.4079339799 | CA155: 5.439384675 | CB155: 2.719692337 | CC155: 631.1555673 | CD155: 394.4722296
AG156: 1972-12-01 | AH156: 仙台市宮城野区 | AL156: 0.74 | AO156: MBq/km2.月 | AQ156: 73.64125827 | AT156: 368.0252718 | AU156: 209.6380993 | AV156: 0 | AX156: 1972-12-01 | AY156: 仙台市宮城野区 | AZ156: 0.74 | BC156: MBq/km2.月 | BE156: 368.0252718 | BF156: 209.6380993 | BG156: 0 | BI156: 1985-11-29 | BL156: =0.03/2 -> 0.015 | BM156: =0.032/2 -> 0.016 | BW156: 0.9087285939 | BX156: 0.2967557315 | BY156: 1.559968888 | BZ156: 0.4075473448 | CA156: 5.434048051 | CB156: 2.717024025 | CC156: 629.6601303 | CD156: 393.5375814
AG157: 1973-01-01 | AH157: 仙台市宮城野区 | AL157: 0.37 | AO157: MBq/km2.月 | AQ157: 73.49708544 | AT157: 367.3059589 | AU157: 209.2283573 | AV157: 0 | AX157: 1973-01-01 | AY157: 仙台市宮城野区 | AZ157: 0.37 | BC157: MBq/km2.月 | BE157: 367.3059589 | BF157: 209.2283573 | BG157: 0 | BI157: 1985-12-02 | BJ157: 0.04444444444 | BK157: 0.1148148148 | BW157: 0.9085562721 | BX157: 0.2966994578 | BY157: 1.559673072 | BZ157: 0.4074700618 | CA157: 5.432981354 | CB157: 2.716490677 | CC157: 629.3614683 | CD157: 393.3509177
AG158: 1973-02-01 | AH158: 仙台市宮城野区 | AL158: 0.37 | AO158: MBq/km2.月 | AQ158: 73.35319486 | AT158: 366.5880519 | AU158: 208.8194162 | AV158: 0 | AX158: 1973-02-01 | AY158: 仙台市宮城野区 | AZ158: 0.37 | BC158: MBq/km2.月 | BE158: 366.5880519 | BF158: 208.8194162 | BG158: 0 | BI158: 1985-12-18 | BN158: 0.4888888889 | BO158: 0.2444444444 | BP158: 0.7481481481 | BW158: 0.9076377741 | BX158: 0.2963995118 | BY158: 1.558096332 | BZ158: 0.407058133 | CA158: 5.427295842 | CB158: 2.713647921 | CC158: 627.7709955 | CD158: 392.3568722
AG159: 1973-03-01 | AH159: 仙台市宮城野区 | AL159: 2.22 | AO159: MBq/km2.月 | AQ159: 73.22347132 | AT159: 365.9408259 | AU159: 208.4507371 | AV159: 0 | AX159: 1973-03-01 | AY159: 仙台市宮城野区 | AZ159: 2.22 | BC159: MBq/km2.月 | BE159: 365.9408259 | BF159: 208.4507371 | BG159: 0 | BI159: 1985-12-27 | BL159: =0.03/2 -> 0.015 | BM159: =0.032/2 -> 0.016 | BW159: 0.907121527 | BX159: 0.2962309254 | BY159: 1.557210117 | BZ159: 0.4068266061 | CA159: 5.424100357 | CB159: 2.712050178 | CC159: 626.8781215 | CD159: 391.7988259
AG160: 1974-03-31 | AH160: 仙台市宮城野区 | AL160: 2.627 | AO160: MBq/km2.月 | AQ160: 71.41770108 | AT160: 356.9311477 | AU160: 203.3185575 | AV160: 0 | AX160: 1974-03-31 | AY160: 仙台市宮城野区 | AZ160: 2.627 | BC160: MBq/km2.月 | BE160: 356.9311477 | BF160: 203.3185575 | BG160: 0 | BI160: 1986-01-06 | BJ160: =0.021/2 -> 0.0105 | BK160: 0.3925925926 | BW160: 0.9065482636 | BX160: 0.2960437196 | BY160: 1.556226024 | BZ160: 0.4065695085 | CA160: 5.420552024 | CB160: 2.710276012 | CC160: 625.8875286 | CD160: 391.1797053
AG161: 1974-04-30 | AH161: 仙台市宮城野区 | AL161: 8.88 | AO161: MBq/km2.月 | AQ161: 71.2823875 | AT161: 356.2560014 | AU161: 202.9339741 | AV161: 0 | AX161: 1974-04-30 | AY161: 仙台市宮城野区 | AZ161: 8.88 | BC161: MBq/km2.月 | BE161: 356.2560014 | BF161: 202.9339741 | BG161: 0 | BI161: 1986-01-31 | BJ161: =0.021/2 -> 0.0105 | BK161: 0.237037037 | BW161: 0.9051166895 | BX161: 0.2955762227 | BY161: 1.553768513 | BZ161: 0.405927475 | CA161: 5.411691345 | CB161: 2.705845672 | CC161: 623.4178892 | CD161: 389.6361808
AG162: 1974-05-31 | AH162: 仙台市宮城野区 | AL162: 9.62 | AO162: MBq/km2.月 | AQ162: 71.14283279 | AT162: 355.5596917 | AU162: 202.5373355 | AV162: 0 | AX162: 1974-05-31 | AY162: 仙台市宮城野区 | AZ162: 9.62 | BC162: MBq/km2.月 | BE162: 355.5596917 | BF162: 202.5373355 | BG162: 0 | BI162: 1986-01-31 | BL162: =0.03/2 -> 0.015 | BM162: =0.032/2 -> 0.016 | BW162: 0.9051166895 | BX162: 0.2955762227 | BY162: 1.553768513 | BZ162: 0.405927475 | CA162: 5.411691345 | CB162: 2.705845672 | CC162: 623.4178892 | CD162: 389.6361808
AG163: 1974-07-01 | AH163: 仙台市宮城野区 | AL163: 7.77 | AO163: MBq/km2.月 | AQ163: 71.0035513 | AT163: 354.8647431 | AU163: 202.1414722 | AV163: 0 | AX163: 1974-07-01 | AY163: 仙台市宮城野区 | AZ163: 7.77 | BC163: MBq/km2.月 | BE163: 354.8647431 | BF163: 202.1414722 | BG163: 0 | BI163: 1986-02-13 | BS163: 0.05555555556 | BT163: 0.1074074074 | BU163: 0.6148148148 | BW163: 0.9043731646 | BX163: 0.2953334162 | BY163: 1.552492141 | BZ163: 0.4055940183 | CA163: 5.407089517 | CB163: 2.703544758 | CC163: 622.1375303 | CD163: 388.8359564
AG164: 1974-07-31 | AH164: 仙台市宮城野区 | AL164: 1.369 | AO164: MBq/km2.月 | AQ164: 70.8690224 | AT164: 354.1935054 | AU164: 201.7591153 | AV164: 0 | AX164: 1974-07-31 | AY164: 仙台市宮城野区 | AZ164: 1.369 | BC164: MBq/km2.月 | BE164: 354.1935054 | BF164: 201.7591153 | BG164: 0 | BI164: 1986-02-28 | BJ164: 0.06296296296 | BK164: 0.2296296296 | BW164: 0.9035160103 | BX164: 0.2950535026 | BY164: 1.551020707 | BZ164: 0.405209601 | CA164: 5.401784578 | CB164: 2.700892289 | CC164: 620.6634603 | CD164: 387.9146627
AG165: 1974-08-31 | AH165: 仙台市宮城野区 | AL165: 5.55 | AO165: MBq/km2.月 | AQ165: 70.73027697 | AT165: 353.501227 | AU165: 201.364773 | AV165: 0 | AX165: 1974-08-31 | AY165: 仙台市宮城野区 | AZ165: 5.55 | BC165: MBq/km2.月 | BE165: 353.501227 | BF165: 201.364773 | BG165: 0 | BI165: 1986-02-28 | BL165: =0.03/2 -> 0.015 | BM165: =0.032/2 -> 0.016 | BW165: 0.9035160103 | BX165: 0.2950535026 | BY165: 1.551020707 | BZ165: =0.44*2.71828^(-(0.69315/30.02)*(BI165-30168)/365.25) -> 0.405209601 | CA165: 5.401784578 | CB165: 2.700892289 | CC165: 620.6634603 | CD165: 387.9146627
AG166: 1974-09-30 | AH166: 仙台市宮城野区 | AL166: 1.591 | AO166: MBq/km2.月 | AQ166: 70.59626583 | AT166: 352.8325684 | AU166: 200.9838853 | AV166: 0 | AX166: 1974-09-30 | AY166: 仙台市宮城野区 | AZ166: 1.591 | BC166: MBq/km2.月 | BE166: 352.8325684 | BF166: 200.9838853 | BG166: 0 | BI166: 1986-03-31 | BJ166: =0.021/2 -> 0.0105 | BK166: 0.337037037 | BW166: 0.9017471314 | BX166: 0.2944758549 | BY166: 1.547984161 | BZ166: 0.4044162927 | CA166: 5.390837524 | CB166: 2.695418762 | CC166: 617.6281073 | CD166: 386.017567
AG167: 1974-10-31 | AH167: 仙台市宮城野区 | AL167: 0.666 | AO167: MBq/km2.月 | AQ167: 70.4580544 | AT167: 352.14295 | AU167: 200.5910582 | AV167: 0 | AX167: 1974-10-31 | AY167: 仙台市宮城野区 | AZ167: 0.666 | BC167: MBq/km2.月 | BE167: 352.14295 | BF167: 200.5910582 | BG167: 0 | BI167: 1986-03-31 | BL167: 0.05925925926 | BM167: 0.07407407407 | BW167: 0.9017471314 | BX167: 0.2944758549 | BY167: 1.547984161 | BZ167: 0.4044162927 | CA167: 5.390837524 | CB167: 2.695418762 | CC167: 617.6281073 | CD167: 386.017567
AG168: 1974-11-30 | AH168: 仙台市宮城野区 | AL168: 0.888 | AO168: MBq/km2.月 | AQ168: 70.32455904 | AT168: 351.4768606 | AU168: 200.2116339 | AV168: 0 | AX168: 1974-11-30 | AY168: 仙台市宮城野区 | AZ168: 0.888 | BC168: MBq/km2.月 | BE168: 351.4768606 | BF168: 200.2116339 | BG168: 0 | BI168: 1986-04-30 | BW168: 0.9000386105 | BX168: 0.2939179178 | BY168: 1.545051229 | BZ168: 0.4036500539 | CA168: 5.380264725 | CB168: 2.690132363 | CC168: 614.7048034 | CD168: 384.1905021
AG169: 1974-12-27 | AH169: 仙台市宮城野区 | AL169: 0.481 | AO169: MBq/km2.月 | AQ169: 70.20462948 | AT169: 350.8784576 | AU169: 199.8707658 | AV169: 0 | AX169: 1974-12-27 | AY169: 仙台市宮城野区 | AZ169: 0.481 | BC169: MBq/km2.月 | BE169: 350.8784576 | BF169: 199.8707658 | BG169: 0 | BI169: 1986-05-01 | BW169: 0.8999817155 | BX169: 0.2938993381 | BY169: 1.54495356 | BZ169: 0.4036245376 | CA169: 5.379912656 | CB169: 2.689956328 | CC169: 614.6075986 | CD169: 384.1297491
AG170: 1975-01-31 | AH170: 仙台市宮城野区 | AL170: 1.85 | AO170: MBq/km2.月 | AQ170: 70.0494696 | AT170: 350.1042659 | AU170: 199.4297633 | AV170: 0 | AX170: 1975-01-31 | AY170: 仙台市宮城野区 | AZ170: 1.85 | BC170: MBq/km2.月 | BE170: 350.1042659 | BF170: 199.4297633 | BG170: 0 | BI170: 1986-05-19 | BS170: 19.07407407 | BT170: 22.14814815 | BU170: 24.22222222 | BW170: 0.8989582219 | BX170: 0.2935651046 | BY170: 1.54319658 | BZ170: 0.4031655203 | CA170: 5.373579347 | CB170: 2.686789673 | CC170: 612.8605383 | CD170: 383.0378364
AG171: 1975-02-28 | AH171: 仙台市宮城野区 | AL171: 6.66 | AO171: MBq/km2.月 | AQ171: 69.92558862 | AT171: 349.4861427 | AU171: 199.077662 | AV171: 0 | AX171: 1975-02-28 | AY171: 仙台市宮城野区 | AZ171: 6.66 | BC171: MBq/km2.月 | BE171: 349.4861427 | BF171: 199.077662 | BG171: 0 | BI171: 1986-05-21 | BQ171: 8.740740741 | BW171: 0.8988445723 | BX171: 0.293527991 | BY171: 1.543001483 | BZ171: 0.4031145507 | CA171: 5.372876106 | CB171: 2.686438053 | CC171: 612.6667273 | CD171: 382.9167045
AG172: 1975-03-31 | AH172: 仙台市宮城野区 | AL172: 1.776 | AO172: MBq/km2.月 | AQ172: 69.78869022 | AT172: 348.8030649 | AU172: 198.6885607 | AV172: 0 | AX172: 1975-03-31 | AY172: 仙台市宮城野区 | AZ172: 1.776 | BC172: MBq/km2.月 | BE172: 348.8030649 | BF172: 198.6885607 | BG172: 0 | BI172: 1986-05-30 | BL172: 74.81481481 | BM172: 102.2222222 | BW172: 0.8983333267 | BX172: 0.2933610379 | BY172: 1.542123853 | BZ172: 0.4028852668 | CA172: 5.369712662 | CB172: 2.684856331 | CC172: 611.7953359 | CD172: 382.372085
AG173: 1975-04-30 | AH173: 仙台市宮城野区 | AL173: 1.924 | AO173: MBq/km2.月 | AQ173: 69.65646309 | AT173: 348.1432931 | AU173: 198.3127351 | AV173: 0 | AX173: 1975-04-30 | AY173: 仙台市宮城野区 | AZ173: 1.924 | BC173: MBq/km2.月 | BE173: 348.1432931 | BF173: 198.3127351 | BG173: 0 | BI173: 1986-06-03 | BJ173: 71.11111111 | BK173: 90.74074074 | BW173: 0.8981061997 | BX173: 0.293286867 | BY173: 1.541733956 | BZ173: 0.4027834047 | CA173: 5.368307285 | CB173: 2.684153642 | CC173: 611.4084488 | CD173: 382.1302805
AG174: 1975-05-31 | AH174: 仙台市宮城野区 | AL174: 3.404 | AO174: MBq/km2.月 | AQ174: 69.52009158 | AT174: 347.4628399 | AU174: 197.9251288 | AV174: 0 | AX174: 1975-05-31 | AY174: 仙台市宮城野区 | AZ174: 3.404 | BC174: MBq/km2.月 | BE174: 347.4628399 | BF174: 197.9251288 | BG174: 0 | BI174: 1986-06-11 | BR174: 2.592592593 | BW174: 0.8976521181 | BX174: 0.2931385814 | BY174: 1.540954457 | BZ174: 0.4025797579 | CA174: 5.365497634 | CB174: 2.682748817 | CC174: 610.6354084 | CD174: 381.6471303
AG175: 1975-06-30 | AH175: 仙台市宮城野区 | AL175: 1.11 | AO175: MBq/km2.月 | AQ175: 69.38837335 | AT175: 346.8056032 | AU175: 197.5507473 | AV175: 0 | AX175: 1975-06-30 | AY175: 仙台市宮城野区 | AZ175: 1.11 | BC175: MBq/km2.月 | BE175: 346.8056032 | BF175: 197.5507473 | BG175: 0 | BI175: 1986-06-16 | BN175: 0.5111111111 | BO175: 0.2222222222 | BP175: 0.7 | BW175: 0.8973684337 | BX175: 0.293045941 | BY175: 1.54046747 | BZ175: 0.4024525308 | CA175: 5.363742349 | CB175: 2.681871174 | CC175: 610.1527546 | CD175: 381.3454716
AG176: 1975-07-31 | AH176: 仙台市宮城野区 | AL176: 0.37 | AO176: MBq/km2.月 | AQ176: 69.2525267 | AT176: 346.1277645 | AU176: 197.1646303 | AV176: 0 | AX176: 1975-07-31 | AY176: 仙台市宮城野区 | AZ176: 0.37 | BC176: MBq/km2.月 | BE176: 346.1277645 | BF176: 197.1646303 | BG176: 0 | BI176: 1986-06-30 | BL176: 5.666666667 | BM176: 5.296296296 | BW176: 0.8965745943 | BX176: 0.2927867037 | BY176: 1.539104725 | BZ176: 0.4020965091 | CA176: 5.358830604 | CB176: 2.679415302 | CC176: 608.8033524 | CD176: 380.5020953
AG177: 1975-08-31 | AH177: 仙台市宮城野区 | AL177: 0.592 | AO177: MBq/km2.月 | AQ177: 69.116946 | AT177: 345.4512507 | AU177: 196.779268 | AV177: 0 | AX177: 1975-08-31 | AY177: 仙台市宮城野区 | AZ177: 0.592 | BC177: MBq/km2.月 | BE177: 345.4512507 | BF177: 196.779268 | BG177: 0 | BI177: 1986-07-02 | BJ177: 3.592592593 | BK177: 3.481481481 | BW177: 0.896461246 | BX177: 0.2927496885 | BY177: 1.538910146 | BZ177: 0.4020456745 | CA177: 5.358129294 | CB177: 2.679064647 | CC177: 608.6108245 | CD177: 380.3817653
AG178: 1975-09-30 | AH178: 仙台市宮城野区 | AL178: 0.74 | AO178: MBq/km2.月 | AQ178: 68.98599161 | AT178: 344.797819 | AU178: 196.4070539 | AV178: 0 | AX178: 1975-09-30 | AY178: 仙台市宮城野区 | AZ178: 0.74 | BC178: MBq/km2.月 | BE178: 344.797819 | BF178: 196.4070539 | BG178: 0 | BI178: 1986-07-08 | BQ178: 1.82962963 | BW178: 0.8961212871 | BX178: 0.292638671 | BY178: 1.538326556 | BZ178: 0.4018932095 | CA178: 5.356025913 | CB178: 2.678012957 | CC178: 608.0336058 | CD178: 380.0210036
AG179: 1975-11-01 | AH179: 仙台市宮城野区 | AL179: 0.888 | AO179: MBq/km2.月 | AQ179: 68.84658039 | AT179: 344.1021874 | AU179: 196.0108016 | AV179: 0 | AX179: 1975-11-01 | AY179: 仙台市宮城野区 | AZ179: 0.888 | BC179: MBq/km2.月 | BE179: 344.1021874 | BF179: 196.0108016 | BG179: 0 | BI179: 1986-07-31 | BL179: 1.025925926 | BM179: 0.8888888889 | BW179: 0.8948193051 | BX179: 0.2922134939 | BY179: 1.536091508 | BZ179: 0.4013092956 | CA179: 5.3479706 | CB179: 2.6739853 | CC179: 605.8260012 | CD179: 378.6412508
AG180: 1975-11-30 | AH180: 仙台市宮城野区 | AL180: 0.111 | AO180: MBq/km2.月 | AQ180: 68.72048234 | AT180: 343.4729836 | AU180: 195.6523884 | AV180: 0 | AX180: 1975-11-30 | AY180: 仙台市宮城野区 | AZ180: 0.111 | BC180: MBq/km2.月 | BE180: 343.4729836 | BF180: 195.6523884 | BG180: 0 | BI180: 1986-08-01 | BJ180: 0.962962963 | BK180: 0.6074074074 | BW180: 0.8947627401 | BX180: 0.2921950219 | BY180: 1.535994406 | BZ180: 0.4012839272 | CA180: 5.347620644 | CB180: 2.673810322 | CC180: 605.7302005 | CD180: 378.5813753
AG181: 1976-01-01 | AH181: 仙台市宮城野区 | AL181: 0.333 | AO181: MBq/km2.月 | AQ181: 68.58160768 | AT181: 342.7800248 | AU181: 195.2576586 | AV181: 0 | AX181: 1976-01-01 | AY181: 仙台市宮城野区 | AZ181: 0.333 | BC181: MBq/km2.月 | BE181: 342.7800248 | BF181: 195.2576586 | BG181: 0 | BI181: 1986-08-11 | BS181: 8.222222222 | BT181: 10.2962963 | BU181: 11.74074074 | BW181: 0.894197287 | BX181: 0.2920103667 | BY181: 1.535023721 | BZ181: 0.4010303323 | CA181: 5.344122343 | CB181: 2.672061171 | CC181: 604.7730255 | CD181: 377.9831409
AG182: 1976-01-31 | AH182: 仙台市宮城野区 | AL182: 0.666 | AO182: MBq/km2.月 | AQ182: 68.45166758 | AT182: 342.1316458 | AU182: 194.8883227 | AV182: 0 | AX182: 1976-01-31 | AY182: 仙台市宮城野区 | AZ182: 0.666 | BC182: MBq/km2.月 | BE182: 342.1316458 | BF182: 194.8883227 | BG182: 0 | BI182: 1986-08-12 | BR182: 0.2074074074 | BW182: 0.8941407613 | BX182: 0.2919919076 | BY182: 1.534926686 | BZ182: 0.4010049817 | CA182: 5.343772638 | CB182: 2.671886319 | CC182: 604.6773912 | CD182: 377.9233695
AG183: 1976-02-29 | AH183: 仙台市宮城野区 | AL183: 0.444 | AO183: MBq/km2.月 | AQ183: 68.32629285 | AT183: 341.5060452 | AU183: 194.531962 | AV183: 0 | AX183: 1976-02-29 | AY183: 仙台市宮城野区 | AZ183: 0.444 | BC183: MBq/km2.月 | BE183: 341.5060452 | BF183: 194.531962 | BG183: 0 | BI183: 1986-08-29 | BL183: 1 | BM183: 0.2851851852 | BW183: 0.8931803716 | BX183: 0.2916782814 | BY183: 1.533278033 | BZ183: 0.4005742653 | CA183: 5.337831166 | CB183: 2.668915583 | CC183: 603.0539205 | CD183: 376.9087003
AG184: 1976-03-31 | AH184: 仙台市宮城野区 | AL184: 0.962 | AO184: MBq/km2.月 | AQ184: 68.19252551 | AT184: 340.8385646 | AU184: 194.1517453 | AV184: 0 | AX184: 1976-03-31 | AY184: 仙台市宮城野区 | AZ184: 0.962 | BC184: MBq/km2.月 | BE184: 340.8385646 | BF184: 194.1517453 | BG184: 0 | BI184: 1986-09-01 | BJ184: 1.703703704 | BK184: 0.3481481481 | BW184: 0.8930109982 | BX184: 0.2916229705 | BY184: 1.532987278 | BZ184: 0.4004983046 | CA184: 5.336783357 | CB184: 2.668391679 | CC184: 602.7678785 | CD184: 376.7299241
AG185: 1976-04-30 | AH185: 仙台市宮城野区 | AL185: 0.444 | AO185: MBq/km2.月 | AQ185: 68.06332259 | AT185: 340.1938579 | AU185: 193.7845013 | AV185: 0 | AX185: 1976-04-30 | AY185: 仙台市宮城野区 | AZ185: 0.444 | BC185: MBq/km2.月 | BE185: 340.1938579 | BF185: 193.7845013 | BG185: 0 | BI185: 1986-09-10 | BQ185: 0.4555555556 | BW185: 0.8925030706 | BX185: 0.291457101 | BY185: 1.532115345 | BZ185: 0.4002705088 | CA185: 5.333641164 | CB185: 2.666820582 | CC185: 601.9105662 | CD185: 376.1941039
AG186: 1976-05-31 | AH186: 仙台市宮城野区 | AL186: 1.813 | AO186: MBq/km2.月 | AQ186: 67.93007009 | AT186: 339.528942 | AU186: 193.4057455 | AV186: 0 | AX186: 1976-05-31 | AY186: 仙台市宮城野区 | AZ186: 1.813 | BC186: MBq/km2.月 | BE186: 339.528942 | BF186: 193.4057455 | BG186: 0 | BI186: 1986-09-30 | BL186: 0.2259259259 | BM186: 0.2407407407 | BW186: 0.8913753767 | BX186: 0.2910888396 | BY186: 1.530179489 | BZ186: 0.3997647597 | CA186: 5.326665134 | CB186: 2.663332567 | CC186: 600.0097909 | CD186: 375.0061193
AG187: 1976-06-30 | AH187: 仙台市宮城野区 | AL187: 0.518 | AO187: MBq/km2.月 | AQ187: 67.80136444 | AT187: 338.8867125 | AU187: 193.0399125 | AV187: 0 | AX187: 1976-06-30 | AY187: 仙台市宮城野区 | AZ187: 0.518 | BC187: MBq/km2.月 | BE187: 338.8867125 | BF187: 193.0399125 | BG187: 0 | BI187: 1986-10-02 | BJ187: 0.2074074074 | BK187: 0.2296296296 | BW187: 0.8912626857 | BX187: 0.2910520391 | BY187: 1.529986038 | BZ187: 0.39971422 | CA187: 5.325968033 | CB187: 2.662984016 | CC187: 599.8200438 | CD187: 374.8875274
AG188: 1976-07-31 | AH188: 仙台市宮城野区 | AL188: 0.777 | AO188: MBq/km2.月 | AQ188: 67.66862479 | AT188: 338.2243515 | AU188: 192.6626121 | AV188: 0 | AX188: 1976-07-31 | AY188: 仙台市宮城野区 | AZ188: 0.777 | BC188: MBq/km2.月 | BE188: 338.2243515 | BF188: 192.6626121 | BG188: 0 | BI188: 1986-10-31 | BJ188: 0.2037037037 | BK188: 0.3925925926 | BW188: 0.8896302664 | BX188: 0.2905189539 | BY188: 1.527183745 | BZ188: 0.3989821112 | CA188: 5.315870315 | CB188: 2.657935157 | CC188: 597.0754446 | CD188: 373.1721528
AG189: 1976-08-31 | AH189: 仙台市宮城野区 | AL189: 0.74 | AO189: MBq/km2.月 | AQ189: 67.53614501 | AT189: 337.5632851 | AU189: 192.2860491 | AV189: 0 | AX189: 1976-08-31 | AY189: 仙台市宮城野区 | AZ189: 0.74 | BC189: MBq/km2.月 | BE189: 337.5632851 | BF189: 192.2860491 | BG189: 0 | BI189: 1986-10-31 | BL189: 0.2851851852 | BM189: 0.337037037 | BW189: 0.8896302664 | BX189: 0.2905189539 | BY189: 1.527183745 | BZ189: 0.3989821112 | CA189: 5.315870315 | CB189: 2.657935157 | CC189: 597.0754446 | CD189: 373.1721528
AG190: 1976-09-30 | AH190: 仙台市宮城野区 | AL190: 1.517 | AO190: MBq/km2.月 | AQ190: 67.40818573 | AT190: 336.9247737 | AU190: 191.922334 | AV190: 0 | AX190: 1976-09-30 | AY190: 仙台市宮城野区 | AZ190: 1.517 | BC190: MBq/km2.月 | BE190: 336.9247737 | BF190: 191.922334 | BG190: 0 | BI190: 1986-11-13 | BS190: 5.481481481 | BT190: 7.148148148 | BU190: 8.740740741 | BW190: 0.8888994631 | BX190: 0.2902803017 | BY190: 1.525929212 | BZ190: 0.39865436 | CA190: 5.311349968 | CB190: 2.655674984 | CC190: 595.8491871 | CD190: 372.4057419
AG191: 1976-11-01 | AH191: 仙台市宮城野区 | AL191: 0.629 | AO191: MBq/km2.月 | AQ191: 67.27196304 | AT191: 336.245026 | AU191: 191.5351296 | AV191: 0 | AX191: 1976-11-01 | AY191: 仙台市宮城野区 | AZ191: 0.629 | BC191: MBq/km2.月 | BE191: 336.245026 | BF191: 191.5351296 | BG191: 0 | BI191: 1986-11-29 | BL191: 0.1259259259 | BM191: 0.1222222222 | BW191: 0.888000837 | BX191: 0.289986845 | BY191: 1.524386586 | BZ191: 0.3982513434 | CA191: 5.305791741 | CB191: 2.652895871 | CC191: 594.3434038 | CD191: 371.4646274
AG192: 1976-12-01 | AH192: 仙台市宮城野区 | AL192: 0.444 | AO192: MBq/km2.月 | AQ192: 67.1445043 | AT192: 335.6090081 | AU192: 191.172835 | AV192: 0 | AX192: 1976-12-01 | AY192: 仙台市宮城野区 | AZ192: 0.444 | BC192: MBq/km2.月 | BE192: 335.6090081 | BF192: 191.172835 | BG192: 0 | BI192: 1986-12-03 | BJ192: 0.3185185185 | BK192: 0.7148148148 | BW192: 0.8877763225 | BX192: 0.2899135272 | BY192: 1.524001173 | BZ192: 0.3981506529 | CA192: 5.304403094 | CB192: 2.652201547 | CC192: 593.9675529 | CD192: 371.2297206
AG193: 1977-01-01 | AH193: 仙台市宮城野区 | AL193: 0.481 | AO193: MBq/km2.月 | AQ193: 67.01305063 | AT193: 334.9530534 | AU193: 190.7991838 | AV193: 0 | AX193: 1977-01-01 | AY193: 仙台市宮城野区 | AZ193: 0.481 | BC193: MBq/km2.月 | BE193: 334.9530534 | BF193: 190.7991838 | BG193: 0 | BI193: 1986-12-10 | BN193: 0.6444444444 | BO193: 0.337037037 | BP193: 0.6333333333 | BW193: 0.8873835586 | BX193: 0.2897852657 | BY193: 1.523326935 | BZ193: 0.3979745059 | CA193: 5.301973835 | CB193: 2.650986917 | CC193: 593.3103858 | CD193: 370.8189911
AG194: 1977-01-05 | AH194: 仙台市宮城野区 | AL194: 0.111 | AO194: MBq/km2.月 | AQ194: 66.99610762 | AT194: 334.8685076 | AU194: 190.7510239 | AV194: 0 | AX194: 1977-01-05 | AY194: 仙台市宮城野区 | AZ194: 0.111 | BC194: MBq/km2.月 | BE194: 334.8685076 | BF194: 190.7510239 | BG194: 0 | BI194: 1986-12-29 | BL194: 0.1888888889 | BM194: 0.1222222222 | BW194: 0.8863183609 | BX194: 0.2894374132 | BY194: 1.521498363 | BZ194: 0.3974967851 | CA194: 5.295385739 | CB194: 2.647692869 | CC194: 591.5303091 | CD194: 369.7064432
AG195: 1977-02-01 | AH195: 仙台市宮城野区 | AL195: 0.851 | AO195: MBq/km2.月 | AQ195: 66.88185431 | AT195: 334.2983808 | AU195: 190.4262629 | AV195: 0 | AX195: 1977-02-01 | AY195: 仙台市宮城野区 | AZ195: 0.851 | BC195: MBq/km2.月 | BE195: 334.2983808 | BF195: 190.4262629 | BG195: 0 | BI195: 1987-01-06 | BJ195: 0.4037037037 | BK195: 0.6925925926 | BW195: 0.8858702393 | BX195: 0.2892910739 | BY195: 1.520729095 | BZ195: 0.3972958112 | CA195: 5.292614253 | CB195: 2.646307127 | CC195: 590.7824018 | CD195: 369.2390012
AG196: 1977-02-02 | AH196: 仙台市宮城野区 | AL196: 0.259 | AO196: MBq/km2.月 | AQ196: =100*2.71828^(-(0.69315/30.02)*(AG196-21794)/365.25) -> 66.87762645 | AT196: 334.2772837 | AU196: 190.4142453 | AV196: 0 | AX196: 1977-02-02 | AY196: 仙台市宮城野区 | AZ196: 0.259 | BC196: MBq/km2.月 | BE196: 334.2772837 | BF196: 190.4142453 | BG196: 0 | BI196: 1987-01-30 | BL196: 0.2518518519 | BM196: 0.2555555556 | BW196: 0.8845272332 | BX196: 0.2888524999 | BY196: 1.518423624 | BZ196: 0.3966934987 | CA196: 5.284308496 | CB196: 2.642154248 | CC196: 588.544349 | CD196: 367.8402181
AG197: 1977-03-01 | AH197: 仙台市宮城野区 | AL197: 1.665 | AO197: MBq/km2.月 | AQ197: 66.7635752 | AT197: 333.7081636 | AU197: 190.0900576 | AV197: 0 | AX197: 1977-03-01 | AY197: 仙台市宮城野区 | AZ197: 1.665 | BC197: MBq/km2.月 | BE197: 333.7081636 | BF197: 190.0900576 | BG197: 0 | BI197: 1987-02-02 | BJ197: 0.4888888889 | BK197: 2.222222222 | BW197: =1*2.71828^(-(0.69315/30.02)*(BI197-29866)/365.25) -> 0.8843595007 | BX197: 0.2887977249 | BY197: 1.518135686 | BZ197: 0.3966182739 | CA197: =6*2.71828^(-(0.69315/29)*(BI197-29866)/365.25) -> 5.283271194 | CB197: =3*2.71828^(-(0.69315/29)*(BI197-29866)/365.25) -> 2.641635597 | CC197: =800*2.71828^(-(0.69315/12)*(BI197-29866)/365.25) -> 588.2651892 | CD197: =500*2.71828^(-(0.69315/12)*(BI197-29866)/365.25) -> 367.6657432
AG198: 1977-03-01 | AH198: 仙台市宮城野区 | AL198: 1.036 | AO198: MBq/km2.月 | AQ198: 66.7635752 | AT198: 333.7081636 | AU198: 190.0900576 | AV198: 0 | AX198: 1977-03-01 | AY198: 仙台市宮城野区 | AZ198: 1.036 | BC198: MBq/km2.月 | BE198: 333.7081636 | BF198: 190.0900576 | BG198: 0 | BI198: 1987-02-02 | BS198: 5.037037037 | BT198: 5.333333333 | BU198: 6.222222222 | BW198: 0.8843595007 | BX198: 0.2887977249 | BY198: 1.518135686 | BZ198: 0.3966182739 | CA198: 5.283271194 | CB198: 2.641635597 | CC198: 588.2651892 | CD198: 367.6657432
AG199: 1977-03-31 | AH199: 仙台市宮城野区 | AL199: 2.553 | AO199: MBq/km2.月 | AQ199: 66.63707969 | AT199: 333.0769442 | AU199: 189.7304964 | AV199: 0 | AX199: 1977-03-31 | AY199: 仙台市宮城野区 | AZ199: 2.553 | BC199: MBq/km2.月 | BE199: 333.0769442 | BF199: 189.7304964 | BG199: 0 | BI199: 1987-02-27 | BL199: 0.3444444444 | BM199: 0.6666666667 | BW199: 0.8829629659 | BX199: 0.2883416705 | BY199: 1.515738324 | BZ199: 0.3959919548 | CA199: 5.274634919 | CB199: 2.63731746 | CC199: 585.9440008 | CD199: 366.2150005
AG200: 1977-04-01 | AH200: 仙台市宮城野区 | AL200: 2.886 | AO200: MBq/km2.月 | AQ200: 66.6328673 | AT200: 333.0559241 | AU200: 189.7185227 | AV200: 0 | AX200: 1977-04-01 | AY200: 仙台市宮城野区 | AZ200: 2.886 | BC200: MBq/km2.月 | BE200: 333.0559241 | BF200: 189.7185227 | BG200: 0 | BI200: 1987-03-02 | BJ200: 0.362962963 | BK200: 1.851851852 | BW200: 0.88279553 | BX200: 0.2882869924 | BY200: 1.515450896 | BZ200: 0.3959168631 | CA200: 5.273599516 | CB200: 2.636799758 | CC200: 585.6660744 | CD200: 366.0412965
... 925 more rows

Sheet チェルノ&福一
B2: https://www.env.go.jp/chemi/rhm/h29kisoshiryo/h29kiso-02-02-05.html
O16: https://www.env.go.jp/chemi/rhm/h29kisoshiryo/h29kiso-02-02-05.html
O17: 環境省
O19: チェルノブイリと福島第一の放射性核種の推定放出量の比較
O20: 核種 | P20: 核種 | Q20: 半減期 | R20: 半減期_年 | S20: 沸点 | T20: 融点 | U20: 環境への排出量PBq | W20: F/C_比
U21: ﾁｪﾙﾉﾌﾞｲﾘ | V21: 福島第一
O22: キセノン | P22: Xe-133 | Q22: 5日 | R22: =5/365.25 -> 0.01368925394 | S22: -108 | T22: -112 | U22: 6500 | V22: 11000 | W22: =V22/U22 -> 1.692307692
O23: ヨウ素 | P23: I-131 | Q23: 8日 | R23: =8/365.25 -> 0.0219028063 | S23: 184 | T23: 114 | U23: 1760 | V23: 160 | W23: =V23/U23 -> 0.09090909091
O24: セシウム | P24: Cs-134 | Q24: 2年 | R24: 2 | S24: 678 | T24: 28 | U24: 47 | V24: 18 | W24: 0.3829787234
O25: セシウム | P25: Cs-137 | Q25: 30年 | R25: 30 | S25: 678 | T25: 28 | U25: 85 | V25: 15 | W25: 0.1764705882
O26: ストロンチウム | P26: Sr-90 | Q26: 29年 | R26: 29 | S26: 1380 | T26: 769 | U26: 10 | V26: 0.14 | W26: 0.014
O27: プルトニウム | P27: Pu-238 | Q27: 88年 | R27: 88 | S27: 3235 | T27: 640 | U27: =1.5*10^-2 -> 0.015 | V27: =1.9*10^-5 -> 1.9e-05 | W27: 0.001266666667
O28: プルトニウム | P28: Pu-239 | Q28: 24100年 | R28: 24100 | S28: 3236 | T28: 640 | U28: =1.3*10^-2 -> 0.013 | V28: =3.2*10^-6 -> 3.2e-06 | W28: 0.0002461538462
O29: プルトニウム | P29: Pu-240 | Q29: 6540年 | R29: 6540 | S29: 3237 | T29: 640 | U29: =1.8*10^-2 -> 0.018 | V29: =3.2*10^-6 -> 3.2e-06 | W29: 0.0001777777778
P30: PBq=*10^15
P31: 出典：ICRP Publication 72(1996年) 外
O33: 事故発生時に炉心に蓄積されていた放射性核種の環境へ放出された割合％
Q34: ﾁｪﾙﾉﾌﾞｲﾘ | R34: 福島第一
O35: キセノン | P35: Xe-133 | Q35: ほぼ100 | R35: 約60
O36: ヨウ素 | P36: I-131 | Q36: 約50 | R36: 約2～8
O37: セシウム | P37: Cs-137 | Q37: 約30 | R37: 約1~3
O39: この表は、チェルノブイリ原子力発電所の事故及び東京電力福島第一原子力発電所事故により、環境中に放出された放射性物質のうち、代表的なものを比較して示したものです。
O42: これらのうち、セシウム134とセシウム137は人の健康影響上考慮すべき放射性核種の代表とされています。表にはそれぞれの核種の融点と沸点が示されています。
O45: セシウムは沸点が678℃のため、核燃料が溶融（融点は2,850℃）した状態では気体になります。気体状のセシウムが大気中に放出されると格納容器では温度が下がり沸点以下になったところで液体状、さらに温度が融点の28℃以下になると粒子状になります。このため、大気中でセシウムの多くは微少な粒子状になり、風に乗って遠くまで拡散することになります。これが、放射性セシウムが遠方まで拡散した大まかなメカニズムです。
O51: チェルノブイリ原発と東京電力福島第一原子力発電所の放出量を単純に比較、評価することはできませんが、チェルノブイリの場合の放出量が多いのは、爆発した炉心が直接大気にさらされる状態になったことも影響していると思われます。一方、東京電力福島第一原子力発電所では格納容器の大規模な破壊を防げたことが温度の低下、わずかな漏れ量から放出の抑制につながったと考えられます。
O57: しかし、一部キセノン133など大気に放出されやすい希ガスは、東京電力福島第一原子力発電所でも高い割合（福島第一：約60％、チェルノブイリ：最大100％）で原子炉から放出されたと評価されています。そのため発電所の出力規模（福島第一：合計約200万kW、チェルノブイリ：100万kW）が大きく事故当時炉心に溜まっていた希ガスの量が多かった東京電力福島第一原子力発電所では希ガスの放出量が多くなったと考えられます。
O66: 本資料への収録日：平成29年３月31日

Sheet 核実験
T1: S38／大気･地下同数に､以降地下が主流に(仏･中は大気圏内を10年超継続) | AA1: 年月 | AB1: 地点 | AC1: 降下物(雨水･ちり)/牡鹿郡女川町 | AD1: 降下物(雨水･ちり)/仙台市宮城野区 | AE1: 降下物(雨水･ちり)/仙台市青葉区 | AF1: 単位 | AG1: 減衰曲線1 | AH1: 減衰曲線2 | AI1: 減衰曲線3
T2: S48.7.5／中国15回核実験6/28､全国最高値(蔵王町) | AA2: 1959-09-01 | AB2: 仙台市宮城野区 | AD2: 48.84 | AF2: MBq/km2.月 | AG2: =最大値1* 2.71828 ^ (-(0.69315 / 30.07) * (AA2 - 21794) / 365.25) -> 77.7 | AH2: =最大値2 * 2.71828 ^ (-(0.69315 / 30.07) * (AA2 - 21794) / 365.25) -> 499.5 | AI2: =最大値3* 2.71828 ^ (-(0.69315 / 30.07) * (AA2 - 21794) / 365.25) -> 284.53
T3: S54.3.28／スリーマイル事故(アメリカ) | AA3: 1959-12-01 | AB3: 仙台市宮城野区 | AD3: 58.46 | AF3: MBq/km2.月 | AG3: 77.25504182 | AH3: 496.6395545 | AI3: 282.9006055
T4: S55.10／最後の大気圏内核実験(中国) | AA4: 1960-02-01 | AB4: 仙台市宮城野区 | AD4: 23.31 | AF4: MBq/km2.月 | AG4: 76.95334383 | AH4: 494.7000675 | AI4: 281.7958162
T5: S56.10／測定開始(県原子力センター) | AA5: 1960-03-01 | AB5: 仙台市宮城野区 | AD5: 34.04 | AF5: MBq/km2.月 | AG5: 76.81263174 | AH5: 493.7954898 | AI5: 281.2805419
T6: S59.6.1／１号機営業運転(女川) | AA6: 1960-06-01 | AB6: 仙台市宮城野区 | AD6: 101.01 | AF6: MBq/km2.月 | AG6: 76.36793539 | AH6: 490.9367275 | AI6: 279.6521063
T7: S61.4.26／チェルノブイリ事故(旧ソ連) | AA7: 1960-09-01 | AB7: 仙台市宮城野区 | AD7: 7.77 | AF7: MBq/km2.月 | AG7: 75.92581355 | AH7: 488.0945156 | AI7: 278.0330982
T8: H7.7.28／２号機営業運転(女川) | AA8: 1960-12-01 | AB8: 仙台市宮城野区 | AD8: 24.42 | AF8: MBq/km2.月 | AG8: 75.49101545 | AH8: 485.299385 | AI8: 276.440909
T9: H7.12.8／もんじゅNa漏洩事故(敦賀市) | AA9: 1961-03-01 | AB9: 仙台市宮城野区 | AD9: 29.23 | AF9: MBq/km2.月 | AG9: 75.06344444 | AH9: 482.5507142 | AI9: 274.8751846
T10: H11.9.30／JCO臨界事故(東海村) | AA10: 1961-06-01 | AB10: 仙台市宮城野区 | AD10: 28.12 | AF10: MBq/km2.月 | AG10: 74.62887477 | AH10: 479.7570521 | AI10: 273.2838319
T11: H14.1.30／３号機営業運転(女川) | AA11: 1961-08-01 | AB11: 仙台市宮城野区 | AD11: 21.46 | AF11: MBq/km2.月 | AG11: 74.34212418 | AH11: 477.9136555 | AI11: 272.2337786
T12: H19.716／中越沖地震(柏崎刈羽原発事故) | AA12: 1961-09-01 | AB12: 仙台市宮城野区 | AD12: 10.73 | AF12: MBq/km2.月 | AG12: 74.19682098 | AH12: 476.9795635 | AI12: 271.7016921
T13: H23.3.11／東日本大震災･東京電力福島第1原発事故 | AA13: 1961-10-01 | AB13: 仙台市宮城野区 | AD13: 41.44 | AF13: MBq/km2.月 | AG13: 74.05647539 | AH13: 476.0773418 | AI13: 271.1877599
AA14: 1961-11-01 | AB14: 仙台市宮城野区 | AD14: 22.57 | AF14: MBq/km2.月 | AG14: 73.9117305 | AH14: 475.1468389 | AI14: 270.6577179
AA15: 1961-12-01 | AB15: 仙台市宮城野区 | AD15: 17.76 | AF15: MBq/km2.月 | AG15: 73.77192417 | AH15: 474.2480839 | AI15: 270.1457604
AA16: 1962-01-01 | AB16: 仙台市宮城野区 | AD16: 11.1 | AF16: MBq/km2.月 | AG16: 73.62773543 | AH16: 473.3211564 | AI16: 269.617755
AA17: 1962-02-01 | AB17: 仙台市宮城野区 | AD17: 23.68 | AF17: MBq/km2.月 | AG17: 73.48382852 | AH17: 472.3960405 | AI17: 269.0907816
AA18: 1962-03-01 | AB18: 仙台市宮城野区 | AD18: 11.1 | AF18: MBq/km2.月 | AG18: 73.35408986 | AH18: 471.5620062 | AI18: 268.615691
AA19: 1962-04-01 | AB19: 仙台市宮城野区 | AD19: 90.28 | AF19: MBq/km2.月 | AG19: 73.21071779 | AH19: 470.6403287 | AI19: 268.0906761
AA20: 1962-05-01 | AB20: 仙台市宮城野区 | AD20: 148.37 | AF20: MBq/km2.月 | AG20: 73.07223745 | AH20: 469.7500979 | AI20: 267.5835743
AA21: 1962-06-01 | AB21: 仙台市宮城野区 | AD21: 118.03 | AF21: MBq/km2.月 | AG21: 72.92941626 | AH21: 468.8319617 | AI21: 267.0605767
AA22: 1962-07-01 | AB22: 仙台市宮城野区 | AD22: 138.38 | AF22: MBq/km2.月 | AG22: 72.79146801 | AH22: 467.9451515 | AI22: 266.5554233
AA23: 1962-08-01 | AB23: 仙台市宮城野区 | AD23: 55.13 | AF23: MBq/km2.月 | AG23: 72.6491956 | AH23: 467.0305431 | AI23: 266.0344353
AA24: 1962-09-01 | AB24: 仙台市宮城野区 | AD24: 50.69 | AF24: MBq/km2.月 | AG24: 72.50720126 | AH24: 466.1177224 | AI24: 265.5144656
AA25: 1962-10-01 | AB25: 仙台市宮城野区 | AD25: 44.77 | AF25: MBq/km2.月 | AG25: 72.37005164 | AH25: 465.2360463 | AI25: 265.0122367
AA26: 1962-11-01 | AB26: 仙台市宮城野区 | AD26: 32.56 | AF26: MBq/km2.月 | AG26: 72.2286029 | AH26: 464.3267329 | AI26: 264.4942649
AA27: 1962-12-01 | AB27: 仙台市宮城野区 | AD27: 56.24 | AF27: MBq/km2.月 | AG27: 72.09198025 | AH27: 463.4484445 | AI27: 263.9939658
AA28: 1963-01-01 | AB28: 仙台市宮城野区 | AD28: 66.97 | AF28: MBq/km2.月 | AG28: 71.95107501 | AH28: 462.542625 | AI28: 263.4779842
AA29: 1963-02-01 | AB29: 仙台市宮城野区 | AD29: 64.01 | AF29: MBq/km2.月 | AG29: 71.81044516 | AH29: 461.638576 | AI29: 262.9630111
AA30: 1963-03-01 | AB30: 仙台市宮城野区 | AD30: 307.47 | AF30: MBq/km2.月 | AG30: 71.68366092 | AH30: 460.8235345 | AI30: 262.4987393
AA31: 1963-04-01 | AB31: 仙台市宮城野区 | AD31: 242.35 | AF31: MBq/km2.月 | AG31: 71.54355374 | AH31: 459.9228455 | AI31: 261.9856801
AA32: 1963-05-01 | AB32: 仙台市宮城野区 | AD32: 126.17 | AF32: MBq/km2.月 | AG32: 71.40822689 | AH32: 459.0528872 | AI32: 261.4901261
B33: 年次 | D33: アメリカ | G33: (旧)ソ連 | J33: イギリス | M33: フランス | P33: 中国 | S33: インド | W33: 備 考 | AA33: 1963-06-01 | AB33: 仙台市青葉区 | AE33: 234.95 | AF33: MBq/km2.月 | AG33: 71.26865805 | AH33: 458.1556589 | AI33: 260.9790383
D34: 計 | E34: 大気 | F34: 地下 | G34: 計 | H34: 大気 | I34: 地下 | J34: 計 | K34: 大気 | L34: 地下 | M34: 計 | N34: 大気 | O34: 地下 | P34: 計 | Q34: 大気 | R34: 地下 | S34: 計 | T34: 大気 | U34: 地下 | AA34: 1963-06-01 | AB34: 仙台市宮城野区 | AD34: 499.5 | AF34: MBq/km2.月 | AG34: 71.26865805 | AH34: 458.1556589 | AI34: 260.9790383
B35: 1945 | C35: S20 | D35: =SUM(E35-F35) -> 3 | E35: 3 | F35: 0 | G35: =SUM(H35-I35) -> 0 | H35: 0 | I35: 0 | J35: =SUM(K35-L35) -> 0 | K35: 0 | L35: 0 | M35: =SUM(N35-O35) -> 0 | N35: 0 | O35: 0 | P35: =SUM(Q35-R35) -> 0 | Q35: 0 | R35: 0 | S35: =SUM(T35-U35) -> 0 | T35: 0 | U35: 0 | V35: 広島･長崎に原爆投下 | AA35: 1963-07-01 | AB35: 仙台市青葉区 | AE35: 178.34 | AF35: MBq/km2.月 | AG35: 71.13385117 | AH35: 457.2890433 | AI35: 260.4853883
B36: 1946 | C36: S21 | D36: =SUM(E36-F36) -> 1 | E36: 1 | F36: 0 | G36: 0 | H36: 0 | I36: 0 | J36: 0 | K36: 0 | L36: 0 | M36: 0 | N36: 0 | O36: 0 | P36: 0 | Q36: 0 | R36: 0 | S36: 0 | T36: 0 | U36: 0 | AA36: 1963-07-01 | AB36: 仙台市宮城野区 | AD36: 293.78 | AF36: MBq/km2.月 | AG36: 71.13385117 | AH36: 457.2890433 | AI36: 260.4853883
B37: 1947 | C37: S22 | D37: 1 | E37: 1 | F37: 0 | G37: 0 | H37: 0 | I37: 0 | J37: 0 | K37: 0 | L37: 0 | M37: 0 | N37: 0 | O37: 0 | P37: 0 | Q37: 0 | R37: 0 | S37: 0 | T37: 0 | U37: 0 | AA37: 1963-08-01 | AB37: 仙台市青葉区 | AE37: 72.52 | AF37: MBq/km2.月 | AG37: 70.99481861 | AH37: 456.3952625 | AI37: 259.9762643
B38: 1948 | C38: S23 | D38: 1 | E38: 1 | F38: 0 | G38: 0 | H38: 0 | I38: 0 | J38: 0 | K38: 0 | L38: 0 | M38: 0 | N38: 0 | O38: 0 | P38: 0 | Q38: 0 | R38: 0 | S38: 0 | T38: 0 | U38: 0 | AA38: 1963-08-01 | AB38: 仙台市宮城野区 | AD38: 38.85 | AF38: MBq/km2.月 | AG38: 70.99481861 | AH38: 456.3952625 | AI38: 259.9762643
B39: 1949 | C39: S24 | D39: 2 | E39: 2 | F39: 0 | G39: 1 | H39: 1 | I39: 0 | J39: 0 | K39: 0 | L39: 0 | M39: 0 | N39: 0 | O39: 0 | P39: 0 | Q39: 0 | R39: 0 | S39: 0 | T39: 0 | U39: 0 | AA39: 1963-09-01 | AB39: 仙台市宮城野区 | AD39: 62.9 | AF39: MBq/km2.月 | AG39: 70.85605779 | AH39: 455.5032286 | AI39: 259.4681354
B40: 1950 | C40: S25 | D40: 0 | E40: 0 | F40: 0 | G40: 0 | H40: 0 | I40: 0 | J40: 0 | K40: 0 | L40: 0 | M40: 0 | N40: 0 | O40: 0 | P40: 0 | Q40: 0 | R40: 0 | S40: 0 | T40: 0 | U40: 0 | AA40: 1963-09-02 | AB40: 仙台市青葉区 | AE40: 21.46 | AF40: MBq/km2.月 | AG40: 70.85158615 | AH40: 455.4744824 | AI40: 259.4517607
B41: 1951 | C41: S26 | D41: 16 | E41: 16 | F41: 0 | G41: 2 | H41: 2 | I41: 0 | J41: 0 | K41: 0 | L41: 0 | M41: 0 | N41: 0 | O41: 0 | P41: 0 | Q41: 0 | R41: 0 | S41: 0 | T41: 0 | U41: 0 | V41: 米ソ核実験本格化 | AA41: 1963-10-01 | AB41: 仙台市青葉区 | AE41: 43.66 | AF41: MBq/km2.月 | AG41: 70.72203135 | AH41: 454.6416301 | AI41: 258.9773434
B42: 1952 | C42: S27 | D42: 10 | E42: 10 | F42: 0 | G42: 0 | H42: 0 | I42: 0 | J42: 1 | K42: 1 | L42: 0 | M42: 0 | N42: 0 | O42: 0 | P42: 0 | Q42: 0 | R42: 0 | S42: 0 | T42: 0 | U42: 0 | V42: 米国第１回水爆 | AA42: 1963-10-01 | AB42: 仙台市宮城野区 | AD42: 53.65 | AF42: MBq/km2.月 | AG42: 70.72203135 | AH42: 454.6416301 | AI42: 258.9773434
B43: 1953 | C43: S28 | D43: 11 | E43: 11 | F43: 0 | G43: 4 | H43: 4 | I43: 0 | J43: 2 | K43: 2 | L43: 0 | M43: 0 | N43: 0 | O43: 0 | P43: 0 | Q43: 0 | R43: 0 | S43: 0 | T43: 0 | U43: 0 | V43: ソ連第1回水爆､第5福竜丸被災 | AA43: 1963-11-01 | AB43: 仙台市青葉区 | AE43: 37 | AF43: MBq/km2.月 | AG43: 70.5838037 | AH43: 453.7530238 | AI43: 258.4711669
B44: 1954 | C44: S29 | D44: 6 | E44: 6 | F44: 0 | G44: 7 | H44: 7 | I44: 0 | J44: 0 | K44: 0 | L44: 0 | M44: 0 | N44: 0 | O44: 0 | P44: 0 | Q44: 0 | R44: 0 | S44: 0 | T44: 0 | U44: 0 | V44: 俊鶴丸を実験海域に調査派遣 | AA44: 1963-11-01 | AB44: 仙台市宮城野区 | AD44: 75.11 | AF44: MBq/km2.月 | AG44: 70.5838037 | AH44: 453.7530238 | AI44: 258.4711669
B45: 1955 | C45: S30 | D45: 18 | E45: 18 | F45: 0 | G45: 5 | H45: 5 | I45: 0 | J45: 0 | K45: 0 | L45: 0 | M45: 0 | N45: 0 | O45: 0 | P45: 0 | Q45: 0 | R45: 0 | S45: 0 | T45: 0 | U45: 0 | AA45: 1963-12-01 | AB45: 仙台市宮城野区 | AD45: 27.01 | AF45: MBq/km2.月 | AG45: 70.45029224 | AH45: 452.8947359 | AI45: 257.9822606
B46: 1956 | C46: S31 | D46: 18 | E46: 18 | F46: 0 | G46: 9 | H46: 9 | I46: 0 | J46: 6 | K46: 6 | L46: 0 | M46: 0 | N46: 0 | O46: 0 | P46: 0 | Q46: 0 | R46: 0 | S46: 0 | T46: 0 | U46: 0 | V46: 俊鶴丸を実験海域に調査派遣(2次) | AA46: 1963-12-02 | AB46: 仙台市青葉区 | AE46: 36.26 | AF46: MBq/km2.月 | AG46: 70.44584621 | AH46: 452.8661542 | AI46: 257.9659797
B47: 1957 | C47: S32 | D47: 32 | E47: 32 | F47: 0 | G47: 15 | H47: 15 | I47: 0 | J47: 7 | K47: 7 | L47: 0 | M47: 0 | N47: 0 | O47: 0 | P47: 0 | Q47: 0 | R47: 0 | S47: 0 | T47: 0 | U47: 0 | V47: 英国第１回水爆､日本初原子炉JRR-1臨界 | AA47: 1964-01-07 | AB47: 仙台市青葉区 | AE47: 44.4 | AF47: MBq/km2.月 | AG47: 70.28597587 | AH47: 451.8384163 | AI47: 257.3805497
B48: 1958 | C48: S33 | D48: 77 | E48: 77 | F48: 0 | G48: 47 | H48: 47 | I48: 0 | J48: 5 | K48: 5 | L48: 0 | M48: 0 | N48: 0 | O48: 0 | P48: 0 | Q48: 0 | R48: 0 | S48: 0 | T48: 0 | U48: 0 | V48: 中国原子炉完成 | AA48: 1964-02-02 | AB48: 仙台市青葉区 | AE48: 81.77 | AF48: MBq/km2.月 | AG48: 70.17073964 | AH48: 451.097612 | AI48: 256.9585656
B49: 1959 | C49: S34 | D49: 0 | E49: 0 | F49: 0 | G49: 0 | H49: 0 | I49: 0 | J49: 0 | K49: 0 | L49: 0 | M49: 0 | N49: 0 | O49: 0 | P49: 0 | Q49: 0 | R49: 0 | S49: 0 | T49: 0 | U49: 0 | AA49: 1964-03-03 | AB49: 仙台市青葉区 | AE49: 88.06 | AF49: MBq/km2.月 | AG49: 70.03800951 | AH49: 450.2443468 | AI49: 256.4725205
B50: 1960 | C50: S35 | D50: 0 | E50: 0 | F50: 0 | G50: 0 | H50: 0 | I50: 0 | J50: 0 | K50: 0 | L50: 0 | M50: 3 | N50: 3 | O50: 0 | P50: 0 | Q50: 0 | R50: 0 | S50: 0 | T50: 0 | U50: 0 | AA50: 1964-04-02 | AB50: 仙台市青葉区 | AE50: 105.08 | AF50: MBq/km2.月 | AG50: 69.90553044 | AH50: 449.3926957 | AI50: 255.9873948
B51: 1961 | C51: S36 | D51: 10 | E51: 10 | F51: 0 | G51: 51 | H51: 51 | I51: 0 | J51: 0 | K51: 0 | L51: 0 | M51: 2 | N51: 2 | O51: 0 | P51: 0 | Q51: 0 | R51: 0 | S51: 0 | T51: 0 | U51: 0 | V51: 放射能対策本部発足 | AA51: 1964-05-02 | AB51: 仙台市青葉区 | AE51: 284.53 | AF51: MBq/km2.月 | AG51: 69.77330196 | AH51: 448.5426554 | AI51: 255.5031867
B52: 1962 | C52: S37 | D52: 96 | E52: 96 | F52: 0 | G52: 44 | H52: 44 | I52: 0 | J52: 2 | K52: 2 | L52: 0 | M52: 1 | N52: 1 | O52: 0 | P52: 0 | Q52: 0 | R52: 0 | S52: 0 | T52: 0 | U52: 0 | V52: 昭洋丸を実験海域に調査派遣 | AA52: 1964-06-01 | AB52: 仙台市青葉区 | AE52: 125.43 | AF52: MBq/km2.月 | AG52: 69.64132359 | AH52: 447.6942231 | AI52: 255.0198945
B53: 1963 | C53: S38 | D53: 44 | E53: 22 | F53: -22 | G53: 0 | H53: 0 | I53: 0 | J53: 0 | K53: 0 | L53: 0 | M53: 3 | N53: 2 | O53: -1 | P53: 0 | Q53: 0 | R53: 0 | S53: 0 | T53: 0 | U53: 0 | V53: 米英ソ大気圏内核実験停止条約 | AA53: 1964-07-01 | AB53: 仙台市青葉区 | AE53: 77.7 | AF53: MBq/km2.月 | AG53: 69.50959486 | AH53: 446.8473956 | AI53: 254.5375164
B54: 1964 | C54: S39 | D54: 38 | E54: 0 | F54: -38 | G54: 6 | H54: 0 | I54: -6 | J54: 1 | K54: 0 | L54: -1 | M54: 3 | N54: 2 | O54: -1 | P54: 1 | Q54: 1 | R54: 0 | S54: 0 | T54: 0 | U54: 0 | V54: 中国第１回核実験､中国核実験開始 | AA54: 1964-08-01 | AB54: 仙台市青葉区 | AE54: 36.63 | AF54: MBq/km2.月 | AG54: 69.37373694 | AH54: 445.9740232 | AI54: 254.0400177
B55: 1965 | C55: S40 | D55: 36 | E55: 0 | F55: -36 | G55: 10 | H55: 0 | I55: -10 | J55: 1 | K55: 0 | L55: -1 | M55: 4 | N55: 3 | O55: -1 | P55: 1 | Q55: 1 | R55: 0 | S55: 0 | T55: 0 | U55: 0 | V55: 中国第２回核実験､日本初商業発電(原電東海)臨界 | AA55: 1964-09-01 | AB55: 仙台市青葉区 | AE55: 38.48 | AF55: MBq/km2.月 | AG55: 69.23814456 | AH55: 445.1023579 | AI55: 253.5434913
B56: 1966 | C56: S41 | D56: 43 | E56: 0 | F56: -43 | G56: 15 | H56: 0 | I56: -15 | J56: 0 | K56: 0 | L56: 0 | M56: 7 | N56: 5 | O56: -2 | P56: 3 | Q56: 3 | R56: 0 | S56: 0 | T56: 0 | U56: 0 | V56: 中国第3､4､5回核実験 | AA56: 1964-10-01 | AB56: 仙台市青葉区 | AE56: 33.3 | AF56: MBq/km2.月 | AG56: 69.10717846 | AH56: 444.2604329 | AI56: 253.0639059
B57: 1967 | C57: S42 | D57: 34 | E57: 0 | F57: -34 | G57: 17 | H57: 0 | I57: -17 | J57: 0 | K57: 0 | L57: 0 | M57: 3 | N57: 2 | O57: -1 | P57: 2 | Q57: 2 | R57: 0 | S57: 0 | T57: 0 | U57: 0 | V57: 中国第6､7回核実験 | AA57: 1964-11-05 | AB57: 仙台市青葉区 | AE57: 15.91 | AF57: MBq/km2.月 | AG57: 68.95469774 | AH57: 443.2801998 | AI57: 252.505536
B58: 1968 | C58: S43 | D58: 45 | E58: 0 | F58: -45 | G58: 15 | H58: 0 | I58: -15 | J58: 0 | K58: 0 | L58: 0 | M58: 5 | N58: 4 | O58: -1 | P58: 1 | Q58: 1 | R58: 0 | S58: 0 | T58: 0 | U58: 0 | V58: 中国第8回核実験 | AA58: 1964-12-01 | AB58: 仙台市青葉区 | AE58: 30.34 | AF58: MBq/km2.月 | AG58: 68.84164418 | AH58: 442.5534269 | AI58: 252.0915447
B59: 1969 | C59: S44 | D59: 38 | E59: 0 | F59: -38 | G59: 16 | H59: 0 | I59: -16 | J59: 0 | K59: 0 | L59: 0 | M59: 0 | N59: 0 | O59: 0 | P59: 1 | Q59: 1 | R59: 0 | S59: 0 | T59: 0 | U59: 0 | V59: 中国第9､10回核実験 | AA59: 1965-01-10 | AB59: 仙台市青葉区 | AE59: 120.25 | AF59: MBq/km2.月 | AG59: 68.66807747 | AH59: 441.4376409 | AI59: 251.4559599
B60: 1970 | C60: S45 | D60: 35 | E60: 0 | F60: -35 | G60: 17 | H60: 0 | I60: -17 | J60: 0 | K60: 0 | L60: 0 | M60: 8 | N60: 6 | O60: -2 | P60: 2 | Q60: 2 | R60: 0 | S60: 0 | T60: 0 | U60: 0 | V60: 中国第11回核実験 | AA60: 1965-02-01 | AB60: 仙台市青葉区 | AE60: 27.75 | AF60: MBq/km2.月 | AG60: 68.57280237 | AH60: 440.8251581 | AI60: 251.1070715
B61: 1971 | C61: S46 | D61: 17 | E61: 0 | F61: -17 | G61: 19 | H61: 0 | I61: -19 | J61: 0 | K61: 0 | L61: 0 | M61: 7 | N61: 5 | O61: -2 | P61: 1 | Q61: 1 | R61: 0 | S61: 0 | T61: 0 | U61: 0 | V61: 中国第12回核実験 | AA61: 1965-03-01 | AB61: 仙台市青葉区 | AE61: 41.81 | AF61: MBq/km2.月 | AG61: 68.45173432 | AH61: 440.0468635 | AI61: 250.6637319
B62: 1972 | C62: S47 | D62: 18 | E62: 0 | F62: -18 | G62: 22 | H62: 0 | I62: -22 | J62: 0 | K62: 0 | L62: 0 | M62: 3 | N62: 2 | O62: -1 | P62: 2 | Q62: 2 | R62: 0 | S62: 0 | T62: 0 | U62: 0 | V62: 中国第13､14回核実験 | AA62: 1965-04-01 | AB62: 仙台市青葉区 | AE62: 36.63 | AF62: MBq/km2.月 | AG62: 68.31794401 | AH62: 439.1867829 | AI62: 250.1738045
B63: 1973 | C63: S48 | D63: 16 | E63: 0 | F63: -16 | G63: 14 | H63: 0 | I63: -14 | J63: 0 | K63: 0 | L63: 0 | M63: 5 | N63: 4 | O63: -1 | P63: 1 | Q63: 1 | R63: 0 | S63: 0 | T63: 0 | U63: 0 | V63: 中国第15回核実験 | AA63: 1965-05-01 | AB63: 仙台市青葉区 | AE63: 66.97 | AF63: MBq/km2.月 | AG63: 68.1887185 | AH63: 438.3560475 | AI63: 249.700593
B64: 1974 | C64: S49 | D64: 14 | E64: 0 | F64: -14 | G64: 18 | H64: 0 | I64: -18 | J64: 1 | K64: 0 | L64: -1 | M64: 8 | N64: 6 | O64: -2 | P64: 1 | Q64: 1 | R64: 0 | S64: 1 | T64: 0 | U64: -1 | V64: 中国第16回核実験､印第１回地下核実験 | AA64: 1965-06-01 | AB64: 仙台市青葉区 | AE64: 52.17 | AF64: MBq/km2.月 | AG64: 68.05544225 | AH64: 437.4992716 | AI64: 249.2125481
B65: 1975 | C65: S50 | D65: 20 | E65: 0 | F65: -20 | G65: 15 | H65: 0 | I65: -15 | J65: 0 | K65: 0 | L65: 0 | M65: 2 | N65: 0 | O65: -2 | P65: 1 | Q65: 1 | R65: 0 | S65: 0 | T65: 0 | U65: 0 | V65: 中国第17回核実験､動燃再処理工場ウラン試験開始 | AA65: 1965-07-01 | AB65: 仙台市青葉区 | AE65: 3.7 | AF65: MBq/km2.月 | AG65: 67.92671327 | AH65: 436.6717282 | AI65: 248.7411548
B66: 1976 | C66: S51 | D66: 18 | E66: 0 | F66: -18 | G66: 17 | H66: 0 | I66: -17 | J66: 1 | K66: 0 | L66: -1 | M66: 4 | N66: 0 | O66: -4 | P66: 4 | Q66: 3 | R66: -1 | S66: 0 | T66: 0 | U66: 0 | V66: 中国第18､19､20､21回核実験(20回地下)､｢JT-60｣運転開始､動燃大洗｢常陽｣臨界 | AA66: 1965-08-01 | AB66: 仙台市青葉区 | AE66: 15.91 | AF66: MBq/km2.月 | AG66: =最大値1* 2.71828 ^ (-(0.69315 / 30.07) * (AA66 - 21794) / 365.25) -> 67.79394912 | AH66: =最大値2 * 2.71828 ^ (-(0.69315 / 30.07) * (AA66 - 21794) / 365.25) -> 435.8182444 | AI66: =最大値3* 2.71828 ^ (-(0.69315 / 30.07) * (AA66 - 21794) / 365.25) -> 248.2549851
B67: 1977 | C67: S52 | D67: 19 | E67: 0 | F67: -19 | G67: 18 | H67: 0 | I67: -18 | J67: 0 | K67: 0 | L67: 0 | M67: 8 | N67: 0 | O67: -8 | P67: 1 | Q67: 1 | R67: 0 | S67: 0 | T67: 0 | U67: 0 | V67: 中国第22回核実験 | AA67: 1965-09-01 | AB67: 仙台市青葉区 | AE67: 8.88 | AF67: MBq/km2.月 | AG67: 67.66144447 | AH67: 434.9664287 | AI67: 247.7697657
B68: 1978 | C68: S53 | D68: 17 | E68: 0 | F68: -17 | G68: 27 | H68: 0 | I68: -27 | J68: 2 | K68: 0 | L68: -2 | M68: 8 | N68: 0 | O68: -8 | P68: 3 | Q68: 2 | R68: -1 | S68: 0 | T68: 0 | U68: 0 | V68: 中国第23､24､25回核実験(24回は地下)､原電東海第２発電所運転開始 | AA68: 1965-10-01 | AB68: 仙台市青葉区 | AE68: 0.74 | AF68: MBq/km2.月 | AG68: 67.53346074 | AH68: 434.1436762 | AI68: 247.3011015
B69: 1979 | C69: S54 | D69: 15 | E69: 0 | F69: -15 | G69: 29 | H69: 0 | I69: -29 | J69: 1 | K69: 0 | L69: -1 | M69: 9 | N69: 0 | O69: -9 | P69: 1 | Q69: 1 | R69: 0 | S69: 0 | T69: 0 | U69: 0 | V69: 中国第26回核実験､スリーマイル島事故 | AA69: 1965-11-01 | AB69: 仙台市青葉区 | AE69: 94.35 | AF69: MBq/km2.月 | AG69: 67.40146522 | AH69: 433.2951335 | AI69: 246.8177464
B70: 1980 | C70: S55 | D70: 14 | E70: 0 | F70: -14 | G70: 21 | H70: 0 | I70: -21 | J70: 3 | K70: 0 | L70: -3 | M70: 13 | N70: 0 | O70: -13 | P70: 1 | Q70: 0 | R70: -1 | S70: 0 | T70: 0 | U70: 0 | V70: 中国第27回地下核実験 | AA70: 1965-12-01 | AB70: 仙台市青葉区 | AE70: 17.39 | AF70: MBq/km2.月 | AG70: 67.27397325 | AH70: 432.4755423 | AI70: 246.350883
B71: 1981 | C71: S56 | D71: 16 | E71: 0 | F71: -16 | G71: 22 | H71: 0 | I71: -22 | J71: 1 | K71: 0 | L71: -1 | M71: 12 | N71: 0 | O71: -12 | P71: 0 | Q71: 0 | R71: 0 | S71: 0 | T71: 0 | U71: 0 | AA71: 1966-01-01 | AB71: 仙台市青葉区 | AE71: 10.73 | AF71: MBq/km2.月 | AG71: 67.1424849 | AH71: 431.6302601 | AI71: 245.8693852
B72: 1982 | C72: S57 | D72: 18 | E72: 0 | F72: -18 | G72: 32 | H72: 0 | I72: -32 | J72: 1 | K72: 0 | L72: -1 | M72: 6 | N72: 0 | O72: -6 | P72: 1 | Q72: 0 | R72: -1 | S72: 0 | T72: 0 | U72: 0 | V72: 中国第28回地下核実験 | AA72: 1966-02-01 | AB72: 仙台市青葉区 | AE72: 8.14 | AF72: MBq/km2.月 | AG72: 67.01125354 | AH72: 430.7866299 | AI72: 245.3888284
B73: 1983 | C73: S58 | D73: 17 | E73: 0 | F73: -17 | G73: 27 | H73: 0 | I73: -27 | J73: 1 | K73: 0 | L73: -1 | M73: 9 | N73: 0 | O73: -9 | P73: 2 | Q73: 0 | R73: -2 | S73: 0 | T73: 0 | U73: 0 | V73: 中国第29,30回地下核実験 | AA73: 1966-03-01 | AB73: 仙台市青葉区 | AE73: 9.99 | AF73: MBq/km2.月 | AG73: 66.89294247 | AH73: 430.0260587 | AI73: 244.9555846
B74: 1984 | C74: S59 | D74: 17 | E74: 0 | F74: -17 | G74: 29 | H74: 0 | I74: -29 | J74: 2 | K74: 0 | L74: -2 | M74: 8 | N74: 0 | O74: -8 | P74: 2 | Q74: 0 | R74: -2 | S74: 0 | T74: 0 | U74: 0 | V74: 中国第31,32回地下核実験 | AA74: 1966-04-01 | AB74: 仙台市青葉区 | AE74: 24.79 | AF74: MBq/km2.月 | AG74: 66.76219885 | AH74: 429.185564 | AI74: 244.4768139
B75: 1985 | C75: S60 | D75: 17 | E75: 0 | F75: -17 | G75: 9 | H75: 0 | I75: -9 | J75: 1 | K75: 0 | L75: -1 | M75: 8 | N75: 0 | O75: -8 | P75: 0 | Q75: 0 | R75: 0 | S75: 0 | T75: 0 | U75: 0 | V75: 原研東海､動力試験炉｢JPDR｣解体開始 | AA75: 1966-05-01 | AB75: 仙台市青葉区 | AE75: 30.71 | AF75: MBq/km2.月 | AG75: 66.63591607 | AH75: 428.3737462 | AI75: 244.0143784
B76: 1986 | C76: S61 | D76: 14 | E76: 0 | F76: -14 | G76: 0 | H76: 0 | I76: 0 | J76: 1 | K76: 0 | L76: -1 | M76: 8 | N76: 0 | O76: -8 | P76: 0 | Q76: 0 | R76: 0 | S76: 0 | T76: 0 | U76: 0 | V76: チェルノブイリ事故 | AA76: 1966-06-01 | AB76: 仙台市青葉区 | AE76: 22.2 | AF76: MBq/km2.月 | AG76: 66.50567482 | AH76: 427.536481 | AI76: 243.5374473
B77: 1987 | C77: S62 | D77: 14 | E77: 0 | F77: -14 | G77: 23 | H77: 0 | I77: -23 | J77: 1 | K77: 0 | L77: -1 | M77: 8 | N77: 0 | O77: -8 | P77: 1 | Q77: 0 | R77: -1 | S77: 0 | T77: 0 | U77: 0 | V77: 中国第33回地下核実験 | AA77: 1966-07-01 | AB77: 仙台市青葉区 | AE77: 1.48 | AF77: MBq/km2.月 | AG77: 66.37987727 | AH77: 426.7277824 | AI77: 243.0767887
B78: 1988 | C78: S63 | D78: 14 | E78: 0 | F78: -14 | G78: 17 | H78: 0 | I78: -17 | J78: 0 | K78: 0 | L78: 0 | M78: 8 | N78: 0 | O78: -8 | P78: 1 | Q78: 0 | R78: -1 | S78: 0 | T78: 0 | U78: 0 | V78: 中国第34回地下核実験 | AA78: 1966-08-01 | AB78: 仙台市青葉区 | AE78: 8.51 | AF78: MBq/km2.月 | AG78: 66.25013644 | AH78: 425.8937343 | AI78: 242.6016901
B79: 1989 | C79: H1 | D79: 11 | E79: 0 | F79: -11 | G79: 7 | H79: 0 | I79: -7 | J79: 1 | K79: 0 | L79: -1 | M79: 8 | N79: 0 | O79: -8 | P79: 0 | Q79: 0 | R79: 0 | S79: 0 | T79: 0 | U79: 0 | AA79: 1966-09-01 | AB79: 仙台市青葉区 | AE79: 1.11 | AF79: MBq/km2.月 | AG79: 66.1206492 | AH79: 425.0613163 | AI79: 242.1275202
B80: 1990 | C80: H2 | D80: 8 | E80: 0 | F80: -8 | G80: 1 | H80: 0 | I80: -1 | J80: 1 | K80: 0 | L80: -1 | M80: 6 | N80: 0 | O80: -6 | P80: 2 | Q80: 0 | R80: -2 | S80: 0 | T80: 0 | U80: 0 | V80: 中国第35､36回地下核実験 | AA80: 1966-10-01 | AB80: 仙台市青葉区 | AE80: 4.44 | AF80: MBq/km2.月 | AG80: 65.99557994 | AH80: 424.2572996 | AI80: 241.6695284
B81: 1991 | C81: H3 | D81: 7 | E81: 0 | F81: -7 | G81: 0 | H81: 0 | I81: 0 | J81: -1 | K81: 0 | L81: 1 | M81: 6 | N81: 0 | O81: -6 | P81: 0 | Q81: 0 | R81: 0 | S81: 0 | T81: 0 | U81: 0 | V81: 美浜2号炉蒸気発生器細管破断事故 | AA81: 1966-11-01 | AB81: 仙台市青葉区 | AE81: 5.92 | AF81: MBq/km2.月 | AG81: 65.86659023 | AH81: 423.42808 | AI81: 241.1971804
B82: 1992 | C82: H4 | D82: 6 | E82: 0 | F82: -6 | G82: 0 | H82: 0 | I82: 0 | J82: 0 | K82: 0 | L82: 0 | M82: 0 | N82: 0 | O82: 0 | P82: 2 | Q82: 0 | R82: -2 | S82: 0 | T82: 0 | U82: 0 | AA82: 1966-12-01 | AB82: 仙台市青葉区 | AE82: 4.44 | AF82: MBq/km2.月 | AG82: 65.74200153 | AH82: 422.6271527 | AI82: 240.7409485
B83: 1993 | C83: H5 | D83: 0 | E83: 0 | F83: 0 | G83: =SUM(H83-I83) -> 0 | H83: 0 | I83: 0 | J83: =SUM(K83-L83) -> 0 | K83: 0 | L83: 0 | M83: =SUM(N83-O83) -> 0 | N83: 0 | O83: 0 | P83: =SUM(Q83-R83) -> 1 | Q83: 0 | R83: -1 | S83: =SUM(T83-U83) -> 0 | T83: 0 | U83: 0 | AA83: 1967-01-02 | AB83: 仙台市青葉区 | AE83: 4.81 | AF83: MBq/km2.月 | AG83: 65.60936666 | AH83: 421.7744999 | AI83: 240.2552522
B84: 1994 | C84: H6 | D84: =SUM(E84-F84) -> 0 | E84: 0 | F84: 0 | G84: =SUM(H84-I84) -> 0 | H84: 0 | I84: 0 | J84: =SUM(K84-L84) -> 0 | K84: 0 | L84: 0 | M84: =SUM(N84-O84) -> 0 | N84: 0 | O84: 0 | P84: =SUM(Q84-R84) -> 2 | Q84: 0 | R84: -2 | S84: =SUM(T84-U84) -> 0 | T84: 0 | U84: 0 | AA84: 1967-02-02 | AB84: 仙台市青葉区 | AE84: 2.59 | AF84: MBq/km2.月 | AG84: 65.48113181 | AH84: 420.9501331 | AI84: 239.7856684
B85: 1995 | C85: H7 | D85: =SUM(E85-F85) -> 0 | E85: 0 | F85: 0 | G85: =SUM(H85-I85) -> 0 | H85: 0 | I85: 0 | J85: =SUM(K85-L85) -> 0 | K85: 0 | L85: 0 | M85: =SUM(N85-O85) -> 5 | N85: 0 | O85: -5 | P85: =SUM(Q85-R85) -> 2 | Q85: 0 | R85: -2 | S85: =SUM(T85-U85) -> 0 | T85: 0 | U85: 0 | V85: もんじゅナトリウム漏洩事故 | AA85: 1967-03-01 | AB85: 仙台市青葉区 | AE85: 5.92 | AF85: MBq/km2.月 | AG85: 65.36964763 | AH85: 420.233449 | AI85: 239.3774239
B86: 1996 | C86: H8 | D86: =SUM(E86-F86) -> 0 | E86: 0 | F86: 0 | G86: =SUM(H86-I86) -> 0 | H86: 0 | I86: 0 | J86: =SUM(K86-L86) -> 0 | K86: 0 | L86: 0 | M86: =SUM(N86-O86) -> 1 | N86: 0 | O86: -1 | P86: =SUM(Q86-R86) -> 2 | Q86: 0 | R86: -2 | S86: =SUM(T86-U86) -> 0 | T86: 0 | U86: 0 | AA86: 1967-04-01 | AB86: 仙台市青葉区 | AE86: 19.24 | AF86: MBq/km2.月 | AG86: 65.24188132 | AH86: 419.4120942 | AI86: 238.9095559
B87: 1997 | C87: H9 | D87: =SUM(E87-F87) -> 0 | E87: 0 | F87: 0 | G87: =SUM(H87-I87) -> 0 | H87: 0 | I87: 0 | J87: =SUM(K87-L87) -> 0 | K87: 0 | L87: 0 | M87: =SUM(N87-O87) -> 0 | N87: 0 | O87: 0 | P87: =SUM(Q87-R87) -> 0 | Q87: 0 | R87: 0 | S87: =SUM(T87-U87) -> 0 | T87: 0 | U87: 0 | V87: 動燃東海火災爆発事故･ウラン廃棄物貯蔵施設問題 | AA87: 1967-05-01 | AB87: 仙台市青葉区 | AE87: 6.66 | AF87: MBq/km2.月 | AG87: 65.11847427 | AH87: 418.6187632 | AI87: 238.457651
B88: 計 | D88: =SUM(D40:D87) -> 934 | E88: =SUM(E40:E87) -> 316 | F88: -618 | G88: 647 | H88: 184 | I88: -463 | J88: 42 | K88: 23 | L88: -19 | M88: 199 | N88: 47 | O88: -152 | P88: 45 | Q88: 24 | R88: -21 | S88: 1 | T88: 0 | U88: =SUM(U40:U87) -> -1 | V88: 原電東海運転停止 | AA88: 1967-06-01 | AB88: 仙台市青葉区 | AE88: 21.46 | AF88: MBq/km2.月 | AG88: 64.99119889 | AH88: 417.8005643 | AI88: 237.9915807
B89: 注1)地下核実験回数の欄は－符号付けてある｡ | AA89: 1967-07-01 | AB89: 仙台市青葉区 | AE89: 6.29 | AF89: MBq/km2.月 | AG89: 64.86826601 | AH89: 417.0102815 | AI89: 237.5414122
B90: 注2)旧ソ連が1949～58年に時期不明で18回の実験をしている分を1958年に一括計上 | AA90: 1967-08-01 | AB90: 仙台市青葉区 | AE90: 1.85 | AF90: MBq/km2.月 | AG90: 64.74147966 | AH90: 416.1952264 | AI90: 237.0771327
B91: 注3)アメリカが1946～49に5回実施しているが各年に案分 | AA91: 1967-09-01 | AB91: 仙台市青葉区 | AE91: 2.96 | AF91: MBq/km2.月 | AG91: 64.61494112 | AH91: 415.3817643 | AI91: 236.6137606
B92: 注4)本表は地下核実験を含む｡1963年8月以降の米英ソの核実験は部分的核実験停止条約 | AA92: 1967-10-01 | AB92: 仙台市青葉区 | AE92: 1.48 | AF92: MBq/km2.月 | AG92: 64.49271995 | AH92: 414.5960568 | AI92: 236.1661983
B93: によりすべて地下実験｡また､仏は1963年8月～1974年12月まで41回の大気核実験(この間の大気/地下の割合は案分)｡ | AA93: 1967-11-01 | AB93: 仙台市青葉区 | AE93: 0.37 | AF93: MBq/km2.月 | AG93: 64.36666762 | AH93: 413.7857204 | AI93: 235.7046067
B94: (WORLD ARMAMENT AND DISARMAMENT(SIPRI年鑑95年版)から引用) | AA94: 1967-12-01 | AB94: 仙台市青葉区 | AE94: 2.22 | AF94: MBq/km2.月 | AG94: 64.24491607 | AH94: 413.0030319 | AI94: 235.2587641
AA95: 1968-01-01 | AB95: 仙台市青葉区 | AE95: 3.7 | AF95: MBq/km2.月 | AG95: 64.11934807 | AH95: 412.195809 | AI95: 234.798946
AA96: 1968-02-01 | AB96: 仙台市青葉区 | AE96: 5.55 | AF96: MBq/km2.月 | AG96: 63.99402549 | AH96: 411.3901639 | AI96: 234.3400267
AA97: 1968-03-01 | AB97: 仙台市青葉区 | AE97: 3.33 | AF97: MBq/km2.月 | AG97: 63.87701 | AH97: 410.6379214 | AI97: 233.9115271
AA98: 1968-04-01 | AB98: 仙台市青葉区 | AE98: 6.29 | AF98: MBq/km2.月 | AG98: 63.75216108 | AH98: 409.8353212 | AI98: 233.4543423
AA99: 1968-05-01 | AB99: 仙台市青葉区 | AE99: 10.73 | AF99: MBq/km2.月 | AG99: 63.63157189 | AH99: 409.060105 | AI99: 233.0127561
AA100: 1968-06-01 | AB100: 仙台市青葉区 | AE100: 11.47 | AF100: MBq/km2.月 | AG100: 63.50720268 | AH100: 408.2605887 | AI100: 232.5573279
AA101: 1968-07-01 | AB101: 仙台市青葉区 | AE101: 7.03 | AF101: MBq/km2.月 | AG101: 63.38707684 | AH101: 407.4883511 | AI101: 232.1174385
AA102: 1968-08-01 | AB102: 仙台市青葉区 | AE102: 5.92 | AF102: MBq/km2.月 | AG102: 63.2631855 | AH102: 406.6919068 | AI102: 231.6637602
AA103: 1968-09-01 | AB103: 仙台市青葉区 | AE103: 10.36 | AF103: MBq/km2.月 | AG103: 63.13953632 | AH103: 405.8970192 | AI103: 231.2109687
AA104: 1968-10-01 | AB104: 仙台市青葉区 | AE104: 4.07 | AF104: MBq/km2.月 | AG104: 63.02010592 | AH104: 405.1292524 | AI104: 230.773626
AA105: 1968-11-01 | AB105: 仙台市青葉区 | AE105: 1.11 | AF105: MBq/km2.月 | AG105: 62.89693184 | AH105: 404.337419 | AI105: 230.3225742
AA106: 1968-12-01 | AB106: 仙台市青葉区 | AE106: 2.96 | AF106: MBq/km2.月 | AG106: 62.77796034 | AH106: 403.5726022 | AI106: 229.8869119
AA107: 1969-01-01 | AB107: 仙台市青葉区 | AE107: 4.07 | AF107: MBq/km2.月 | AG107: 62.65525953 | AH107: 402.7838113 | AI107: 229.4375932
AA108: 1969-02-01 | AB108: 仙台市青葉区 | AE108: 2.59 | AF108: MBq/km2.月 | AG108: 62.53279855 | AH108: 401.9965621 | AI108: 228.9891528
AA109: 1969-03-01 | AB109: 仙台市青葉区 | AE109: 4.81 | AF109: MBq/km2.月 | AG109: 62.42239437 | AH109: 401.286821 | AI109: 228.5848632
AA110: 1969-04-01 | AB110: 仙台市青葉区 | AE110: 2.59 | AF110: MBq/km2.月 | AG110: 62.30038853 | AH110: 400.5024977 | AI110: 228.1380894
AA111: 1969-05-01 | AB111: 仙台市青葉区 | AE111: 8.14 | AF111: MBq/km2.月 | AG111: 62.18254541 | AH111: 399.7449348 | AI111: 227.7065591
AA112: 1969-06-02 | AB112: 仙台市青葉区 | AE112: 5.18 | AF112: MBq/km2.月 | AG112: 62.05709176 | AH112: 398.938447 | AI112: 227.2471598
AA113: 1969-07-01 | AB113: 仙台市青葉区 | AE113: 9.62 | AF113: MBq/km2.月 | AG113: 61.94361803 | AH113: 398.208973 | AI113: 226.8316298
AA114: 1969-08-01 | AB114: 仙台市青葉区 | AE114: 4.07 | AF114: MBq/km2.月 | AG114: 61.82254796 | AH114: 397.4306655 | AI114: 226.3882828
AA115: 1969-09-01 | AB115: 仙台市青葉区 | AE115: 2.22 | AF115: MBq/km2.月 | AG115: 61.70171453 | AH115: 396.6538791 | AI115: 225.9458023
AA116: 1969-10-01 | AB116: 仙台市青葉区 | AE116: 2.59 | AF116: MBq/km2.月 | AG116: 61.58500382 | AH116: 395.903596 | AI116: 225.5184188
AA117: 1969-11-01 | AB117: 仙台市青葉区 | AE117: 0.37 | AF117: MBq/km2.月 | AG117: 61.46463468 | AH117: 395.1297943 | AI117: 225.0776384
AA118: 1969-12-01 | AB118: 仙台市青葉区 | AE118: 0.37 | AF118: MBq/km2.月 | AG118: 61.34837241 | AH118: 394.3823941 | AI118: 224.6518971
AA119: 1970-01-01 | AB119: 仙台市青葉区 | AE119: 2.22 | AF119: MBq/km2.月 | AG119: 61.22846576 | AH119: 393.6115656 | AI119: 224.2128103
AA120: 1970-02-01 | AB120: 仙台市青葉区 | AE120: 1.11 | AF120: MBq/km2.月 | AG120: 61.10879348 | AH120: 392.8422438 | AI120: 223.7745818
AA121: 1970-03-01 | AB121: 仙台市青葉区 | AE121: 4.44 | AF121: MBq/km2.月 | AG121: 61.00090344 | AH121: 392.148665 | AI121: 223.3794988
AA122: 1970-04-01 | AB122: 仙台市青葉区 | AE122: 5.55 | AF122: MBq/km2.月 | AG122: 60.88167593 | AH122: 391.3822024 | AI122: 222.942899
AA123: 1970-05-01 | AB123: 仙台市青葉区 | AE123: 11.1 | AF123: MBq/km2.月 | AG123: 60.76651635 | AH123: 390.6418908 | AI123: 222.5211956
AA124: 1970-06-01 | AB124: 仙台市青葉区 | AE124: 11.84 | AF124: MBq/km2.月 | AG124: 60.64774695 | AH124: 389.8783732 | AI124: 222.0862734
AA125: 1970-07-01 | AB125: 仙台市青葉区 | AE125: 11.1 | AF125: MBq/km2.月 | AG125: 60.53302985 | AH125: 389.1409062 | AI125: 221.6661903
AA126: 1970-08-01 | AB126: 仙台市青葉区 | AE126: 5.92 | AF126: MBq/km2.月 | AG126: 60.41471681 | AH126: 388.3803224 | AI126: 221.2329392
AA127: 1970-09-01 | AB127: 仙台市青葉区 | AE127: 2.59 | AF127: MBq/km2.月 | AG127: 60.29663501 | AH127: 387.6212251 | AI127: 220.8005349
AA128: 1970-10-01 | AB128: 仙台市青葉区 | AE128: 2.96 | AF128: MBq/km2.月 | AG128: 60.18258206 | AH128: 386.8880275 | AI128: 220.3828838
AA129: 1970-11-01 | AB129: 仙台市青葉区 | AE129: 6.66 | AF129: MBq/km2.月 | AG129: 60.06495397 | AH129: 386.131847 | AI129: 219.952141
AA130: 1970-12-01 | AB130: 仙台市青葉区 | AE130: 0.74 | AF130: MBq/km2.月 | AG130: =最大値1* 2.71828 ^ (-(0.69315 / 30.07) * (AA130 - 21794) / 365.25) -> 59.95133925 | AH130: =最大値2 * 2.71828 ^ (-(0.69315 / 30.07) * (AA130 - 21794) / 365.25) -> 385.4014666 | AI130: =最大値3* 2.71828 ^ (-(0.69315 / 30.07) * (AA130 - 21794) / 365.25) -> 219.5360947
AA131: 1971-01-01 | AB131: 仙台市青葉区 | AE131: 1.85 | AF131: MBq/km2.月 | AG131: 59.83416313 | AH131: 384.6481915 | AI131: 219.1070069
AA132: 1971-02-01 | AB132: 仙台市青葉区 | AE132: 2.96 | AF132: MBq/km2.月 | AG132: 59.71721604 | AH132: 383.8963888 | AI132: 218.6787578
AA133: 1971-03-01 | AB133: 仙台市青葉区 | AE133: 3.33 | AF133: MBq/km2.月 | AG133: 59.61178288 | AH133: 383.2186042 | AI133: 218.2926716
AA134: 1971-04-01 | AB134: 仙台市青葉区 | AE134: 18.5 | AF134: MBq/km2.月 | AG134: 59.49527043 | AH134: 382.4695956 | AI134: 217.8660141
AA135: 1971-05-01 | AB135: 仙台市青葉区 | AE135: 9.99 | AF135: MBq/km2.月 | AG135: 59.38273328 | AH135: 381.7461425 | AI135: 217.4539138
AA136: 1971-06-01 | AB136: 仙台市青葉区 | AE136: 11.47 | AF136: MBq/km2.月 | AG136: 59.26666852 | AH136: 381.0000119 | AI136: 217.0288957
AA137: 1971-07-01 | AB137: 仙台市青葉区 | AE137: 11.84 | AF137: MBq/km2.月 | AG137: 59.15456377 | AH137: 380.2793386 | AI137: 216.6183788
AA138: 1971-08-01 | AB138: 仙台市青葉区 | AE138: 7.77 | AF138: MBq/km2.月 | AG138: 59.03894497 | AH138: 379.5360748 | AI138: 216.1949937
AA139: 1971-09-01 | AB139: 仙台市青葉区 | AE139: 4.07 | AF139: MBq/km2.月 | AG139: 58.92355215 | AH139: 378.7942638 | AI139: 215.7724362
AA140: 1971-10-01 | AB140: 仙台市青葉区 | AE140: 2.22 | AF140: MBq/km2.月 | AG140: 58.81209642 | AH140: 378.0777627 | AI140: 215.3642959
AA141: 1971-11-01 | AB141: 仙台市青葉区 | AE141: 1.48 | AF141: MBq/km2.月 | AG141: 58.69714698 | AH141: 377.338802 | AI141: 214.943362
AA142: 1971-12-01 | AB142: 仙台市青葉区 | AE142: 0.37 | AF142: MBq/km2.月 | AG142: 58.5861195 | AH142: 376.6250539 | AI142: 214.53679
AA143: 1972-01-01 | AB143: 仙台市青葉区 | AE143: 6.29 | AF143: MBq/km2.月 | AG143: 58.47161173 | AH143: 375.8889326 | AI143: 214.1174734
AA144: 1972-02-01 | AB144: 仙台市青葉区 | AE144: 2.96 | AF144: MBq/km2.月 | AG144: 58.35732778 | AH144: 375.15425 | AI144: 213.6989765
AA145: 1972-03-01 | AB145: 仙台市青葉区 | AE145: 2.96 | AF145: MBq/km2.月 | AG145: 58.2506192 | AH145: 374.4682663 | AI145: 213.3082198
AA146: 1972-04-01 | AB146: 仙台市青葉区 | AE146: 1.48 | AF146: MBq/km2.月 | AG146: 58.13676718 | AH146: 373.7363604 | AI146: 212.8913046
AA147: 1972-05-01 | AB147: 仙台市宮城野区 | AD147: 3.33 | AF147: MBq/km2.月 | AG147: 58.02679968 | AH147: 373.0294265 | AI147: 212.4886141
AA148: 1972-06-01 | AB148: 仙台市宮城野区 | AD148: 3.33 | AF148: MBq/km2.月 | AG148: 57.91338511 | AH148: 372.3003329 | AI148: 212.0733007
AA149: 1972-07-01 | AB149: 仙台市宮城野区 | AD149: 3.33 | AF149: MBq/km2.月 | AG149: 57.80384015 | AH149: 371.5961152 | AI149: 211.6721575
AA150: 1972-08-01 | AB150: 仙台市宮城野区 | AD150: 2.59 | AF150: MBq/km2.月 | AG150: 57.69086136 | AH150: 370.869823 | AI150: 211.2584399
AA151: 1972-09-01 | AB151: 仙台市宮城野区 | AD151: 2.22 | AF151: MBq/km2.月 | AG151: 57.5781034 | AH151: 370.1449504 | AI151: 210.845531
AA152: 1972-10-01 | AB152: 仙台市宮城野区 | AD152: 0.74 | AF152: MBq/km2.月 | AG152: 57.46919263 | AH152: 369.4448097 | AI152: 210.4467101
AA153: 1972-11-01 | AB153: 仙台市宮城野区 | AD153: 0.74 | AF153: MBq/km2.月 | AG153: 57.35686792 | AH153: 368.7227223 | AI153: 210.0353877
AA154: 1972-12-01 | AB154: 仙台市宮城野区 | AD154: 0.74 | AF154: MBq/km2.月 | AG154: 57.24837562 | AH154: 368.0252718 | AI154: 209.6380993
AA155: 1973-01-01 | AB155: 仙台市宮城野区 | AD155: 0.37 | AF155: MBq/km2.月 | AG155: 57.1364825 | AH155: 367.3059589 | AI155: 209.2283573
AA156: 1973-02-01 | AB156: 仙台市宮城野区 | AD156: 0.37 | AF156: MBq/km2.月 | AG156: 57.02480808 | AH156: 366.5880519 | AI156: 208.8194162
AA157: 1973-03-01 | AB157: 仙台市宮城野区 | AD157: 2.22 | AF157: MBq/km2.月 | AG157: 56.92412848 | AH157: 365.9408259 | AI157: 208.4507371
AA158: 1974-03-31 | AB158: 仙台市宮城野区 | AD158: 2.627 | AF158: MBq/km2.月 | AG158: 55.52262298 | AH158: 356.9311477 | AI158: 203.3185575
AA159: 1974-04-30 | AB159: 仙台市宮城野区 | AD159: 8.88 | AF159: MBq/km2.月 | AG159: 55.41760021 | AH159: 356.2560014 | AI159: 202.9339741
AA160: 1974-05-31 | AB160: 仙台市宮城野区 | AD160: 9.62 | AF160: MBq/km2.月 | AG160: 55.30928538 | AH160: 355.5596917 | AI160: 202.5373355
AA161: 1974-07-01 | AB161: 仙台市宮城野区 | AD161: 7.77 | AF161: MBq/km2.月 | AG161: 55.20118226 | AH161: 354.8647431 | AI161: 202.1414722
AA162: 1974-07-31 | AB162: 仙台市宮城野区 | AD162: 1.369 | AF162: MBq/km2.月 | AG162: 55.09676751 | AH162: 354.1935054 | AI162: 201.7591153
AA163: 1974-08-31 | AB163: 仙台市宮城野区 | AD163: 5.55 | AF163: MBq/km2.月 | AG163: 54.98907975 | AH163: 353.501227 | AI163: 201.364773
AA164: 1974-09-30 | AB164: 仙台市宮城野区 | AD164: 1.591 | AF164: MBq/km2.月 | AG164: 54.8850662 | AH164: 352.8325684 | AI164: 200.9838853
AA165: 1974-10-31 | AB165: 仙台市宮城野区 | AD165: 0.666 | AF165: MBq/km2.月 | AG165: 54.77779221 | AH165: 352.14295 | AI165: 200.5910582
AA166: 1974-11-30 | AB166: 仙台市宮城野区 | AD166: 0.888 | AF166: MBq/km2.月 | AG166: 54.67417832 | AH166: 351.4768606 | AI166: 200.2116339
AA167: 1974-12-27 | AB167: 仙台市宮城野区 | AD167: 0.481 | AF167: MBq/km2.月 | AG167: 54.5810934 | AH167: 350.8784576 | AI167: 199.8707658
AA168: 1975-01-31 | AB168: 仙台市宮城野区 | AD168: 1.85 | AF168: MBq/km2.月 | AG168: 54.46066359 | AH168: 350.1042659 | AI168: 199.4297633
AA169: 1975-02-28 | AB169: 仙台市宮城野区 | AD169: 6.66 | AF169: MBq/km2.月 | AG169: 54.36451109 | AH169: 349.4861427 | AI169: 199.077662
AA170: 1975-03-31 | AB170: 仙台市宮城野区 | AD170: 1.776 | AF170: MBq/km2.月 | AG170: 54.25825454 | AH170: 348.8030649 | AI170: 198.6885607
AA171: 1975-04-30 | AB171: 仙台市宮城野区 | AD171: 1.924 | AF171: MBq/km2.月 | AG171: 54.15562337 | AH171: 348.1432931 | AI171: 198.3127351
AA172: 1975-05-31 | AB172: 仙台市宮城野区 | AD172: 3.404 | AF172: MBq/km2.月 | AG172: 54.0497751 | AH172: 347.4628399 | AI172: 197.9251288
AA173: 1975-06-30 | AB173: 仙台市宮城野区 | AD173: 1.11 | AF173: MBq/km2.月 | AG173: 53.94753827 | AH173: 346.8056032 | AI173: 197.5507473
AA174: 1975-07-31 | AB174: 仙台市宮城野区 | AD174: 0.37 | AF174: MBq/km2.月 | AG174: 53.84209671 | AH174: 346.1277645 | AI174: 197.1646303
AA175: 1975-08-31 | AB175: 仙台市宮城野区 | AD175: 0.592 | AF175: MBq/km2.月 | AG175: 53.73686123 | AH175: 345.4512507 | AI175: 196.779268
AA176: 1975-09-30 | AB176: 仙台市宮城野区 | AD176: 0.74 | AF176: MBq/km2.月 | AG176: 53.63521629 | AH176: 344.797819 | AI176: 196.4070539
AA177: 1975-11-01 | AB177: 仙台市宮城野区 | AD177: 0.888 | AF177: MBq/km2.月 | AG177: 53.52700693 | AH177: 344.1021874 | AI177: 196.0108016
AA178: 1975-11-30 | AB178: 仙台市宮城野区 | AD178: 0.111 | AF178: MBq/km2.月 | AG178: 53.42913078 | AH178: 343.4729836 | AI178: 195.6523884
AA179: 1976-01-01 | AB179: 仙台市宮城野区 | AD179: 0.333 | AF179: MBq/km2.月 | AG179: 53.32133719 | AH179: 342.7800248 | AI179: 195.2576586
AA180: 1976-01-31 | AB180: 仙台市宮城野区 | AD180: 0.666 | AF180: MBq/km2.月 | AG180: 53.22047823 | AH180: 342.1316458 | AI180: 194.8883227
AA181: 1976-02-29 | AB181: 仙台市宮城野区 | AD181: 0.444 | AF181: MBq/km2.月 | AG181: 53.12316258 | AH181: 341.5060452 | AI181: 194.531962
AA182: 1976-03-31 | AB182: 仙台市宮城野区 | AD182: 0.962 | AF182: MBq/km2.月 | AG182: 53.01933227 | AH182: 340.8385646 | AI182: 194.1517453
AA183: 1976-04-30 | AB183: 仙台市宮城野区 | AD183: 0.444 | AF183: MBq/km2.月 | AG183: 52.91904456 | AH183: 340.1938579 | AI183: 193.7845013
AA184: 1976-05-31 | AB184: 仙台市宮城野区 | AD184: 1.813 | AF184: MBq/km2.月 | AG184: 52.81561321 | AH184: 339.528942 | AI184: 193.4057455
AA185: 1976-06-30 | AB185: 仙台市宮城野区 | AD185: 0.518 | AF185: MBq/km2.月 | AG185: 52.71571084 | AH185: 338.8867125 | AI185: 193.0399125
AA186: 1976-07-31 | AB186: 仙台市宮城野区 | AD186: 0.777 | AF186: MBq/km2.月 | AG186: 52.6126769 | AH186: 338.2243515 | AI186: 192.6626121
AA187: 1976-08-31 | AB187: 仙台市宮城野区 | AD187: 0.74 | AF187: MBq/km2.月 | AG187: 52.50984435 | AH187: 337.5632851 | AI187: 192.2860491
AA188: 1976-09-30 | AB188: 仙台市宮城野区 | AD188: 1.517 | AF188: MBq/km2.月 | AG188: 52.41052035 | AH188: 336.9247737 | AI188: 191.922334
AA189: 1976-11-01 | AB189: 仙台市宮城野区 | AD189: 0.629 | AF189: MBq/km2.月 | AG189: 52.30478182 | AH189: 336.245026 | AI189: 191.5351296
AA190: 1976-12-01 | AB190: 仙台市宮城野区 | AD190: 0.444 | AF190: MBq/km2.月 | AG190: 52.2058457 | AH190: 335.6090081 | AI190: 191.172835
AA191: 1977-01-01 | AB191: 仙台市宮城野区 | AD191: 0.481 | AF191: MBq/km2.月 | AG191: 52.10380831 | AH191: 334.9530534 | AI191: 190.7991838
AA192: 1977-01-05 | AB192: 仙台市宮城野区 | AD192: 0.111 | AF192: MBq/km2.月 | AG192: 52.09065673 | AH192: 334.8685076 | AI192: 190.7510239
AA193: 1977-02-01 | AB193: 仙台市宮城野区 | AD193: 0.851 | AF193: MBq/km2.月 | AG193: 52.00197035 | AH193: 334.2983808 | AI193: 190.4262629
AA194: 1977-02-02 | AB194: 仙台市宮城野区 | AD194: 0.259 | AF194: MBq/km2.月 | AG194: =最大値1* 2.71828 ^ (-(0.69315 / 30.07) * (AA194 - 21794) / 365.25) -> 51.99868857 | AH194: =最大値2 * 2.71828 ^ (-(0.69315 / 30.07) * (AA194 - 21794) / 365.25) -> 334.2772837 | AI194: =最大値3* 2.71828 ^ (-(0.69315 / 30.07) * (AA194 - 21794) / 365.25) -> 190.4142453
AA195: 1977-03-01 | AB195: 仙台市宮城野区 | AD195: 1.665 | AF195: MBq/km2.月 | AG195: 51.91015878 | AH195: 333.7081636 | AI195: 190.0900576
AA196: 1977-03-01 | AB196: 仙台市宮城野区 | AD196: 1.036 | AF196: MBq/km2.月 | AG196: 51.91015878 | AH196: 333.7081636 | AI196: 190.0900576
AA197: 1977-03-31 | AB197: 仙台市宮城野区 | AD197: 2.553 | AF197: MBq/km2.月 | AG197: 51.8119691 | AH197: 333.0769442 | AI197: 189.7304964
AA198: 1977-04-01 | AB198: 仙台市宮城野区 | AD198: 2.886 | AF198: MBq/km2.月 | AG198: 51.80869931 | AH198: 333.0559241 | AI198: 189.7185227
AA199: 1977-05-01 | AB199: 仙台市宮城野区 | AD199: 2.923 | AF199: MBq/km2.月 | AG199: 51.71070155 | AH199: 332.4259385 | AI199: 189.3596642
AA200: 1977-05-02 | AB200: 仙台市宮城野区 | AD200: 3.663 | AF200: MBq/km2.月 | AG200: 51.70743815 | AH200: 332.4049595 | AI200: 189.347714
... 1593 more rows
